Workbook

Sheet CURVA ABC (2) (hidden)
B7: ='PLANILHA ORÇAM.'!A7 -> GOVERNO DE RONDÔNIA
B8: ='PLANILHA ORÇAM.'!A8 -> PREFEITURA DE CEREJEIRAS
B10: CURVA ABC
J12: ='PLANILHA ORÇAM.'!F12 -> FONTES : | K12: ='PLANILHA ORÇAM.'!G12 -> "A" - SINAPI/ABRIL/2019
C13: ='PLANILHA ORÇAM.'!A12 -> OBRA : | D13: ='PLANILHA ORÇAM.'!B12 -> REFORMA DA SALA DE RAIO-X DO HOSPITAL | K13: ='PLANILHA ORÇAM.'!G13 -> "B" - COTAÇÃO
C14: ='PLANILHA ORÇAM.'!A13 -> END. : | D14: ='PLANILHA ORÇAM.'!B13 -> RUA NOVA ZELÂNDIA,1192, BAIRRO CENTRO | K14: ='PLANILHA ORÇAM.'!G14 -> "C" - COMPOSIÇÃO DE CUSTO
C15: ='PLANILHA ORÇAM.'!A14 -> LOCAL: | D15: ='PLANILHA ORÇAM.'!B14 -> CEREJEIRAS / RO | J15: ='PLANILHA ORÇAM.'!F15 -> BDI: | K15: ='PLANILHA ORÇAM.'!G15 -> 0.2047
C16: ='PLANILHA ORÇAM.'!A15 -> ÁREA : | D16: ='PLANILHA ORÇAM.'!B15 -> 52,91m²
B17: Tab. | C17: Codigo | D17: DISCRIMINAÇÃO DOS SERVIÇOS | E17: Unid. | F17: Quant. | G17: Valor Unit. | H17: Total | I17: Total acumulado | J17: (%) | K17: (%) Acum. | L17: Class.
A19: 2 | C19: ='PLANILHA ORÇAM.'!C20 -> 74209/1 | D19: ='PLANILHA ORÇAM.'!D20 -> Placa de obra em chapa de aco galvanizado | E19: ='PLANILHA ORÇAM.'!E20 -> m² | F19: ='PLANILHA ORÇAM.'!F20 -> 2.88 | G19: ='PLANILHA ORÇAM.'!G20 -> 312.33 | H19: =G19*F19 -> 899.5104 | I19: =H19 -> 899.5104 | J19: =H19/$M$217 -> 1 | K19: =J19 -> 1 | L19: =IF(K19>95%,"C",IF(K19>80%,"B","A")) -> C
A20: 3 | J20: =H20/$M$217 -> 0 | K20: =J20+K19 -> 1 | L20: C
A21: 4 | J21: 0 | K21: =J21+K20 -> 1 | L21: C
A22: 5 | J22: 0 | K22: 1 | L22: C
A23: 6 | J23: 0 | K23: 1 | L23: C
A24: 7 | J24: 0 | K24: 1 | L24: C
A25: 8 | J25: 0 | K25: 1 | L25: C
A26: 9 | J26: 0 | K26: 1 | L26: C
A27: 10 | J27: 0 | K27: 1 | L27: C
A28: 11 | J28: 0 | K28: 1 | L28: C
A29: 12 | J29: 0 | K29: 1 | L29: C
A30: 13 | J30: 0 | K30: 1 | L30: C
A31: 14 | J31: 0 | K31: 1 | L31: C
A32: 15 | J32: 0 | K32: 1 | L32: C
A33: 16 | J33: 0 | K33: 1 | L33: C
A34: 17 | J34: 0 | K34: 1 | L34: C
A35: 18 | J35: 0 | K35: 1 | L35: C
A36: 19 | J36: 0 | K36: 1 | L36: C
A37: 20 | J37: 0 | K37: 1 | L37: C
A38: 21 | J38: 0 | K38: 1 | L38: C
A39: 22 | J39: 0 | K39: 1 | L39: C
A40: 23 | J40: 0 | K40: 1 | L40: C
A41: 24 | J41: 0 | K41: 1 | L41: C
A42: 25 | J42: 0 | K42: 1 | L42: C
A43: 26 | J43: 0 | K43: 1 | L43: C
A44: 27 | J44: 0 | K44: 1 | L44: C
A45: 28 | J45: 0 | K45: 1 | L45: C
A46: 29 | J46: 0 | K46: 1 | L46: C
A47: 30 | J47: 0 | K47: 1 | L47: C
A48: 31 | J48: 0 | K48: 1 | L48: C
A49: 32 | J49: 0 | K49: 1 | L49: C
A50: 33 | J50: 0 | K50: 1 | L50: C
A51: 34 | J51: 0 | K51: 1 | L51: C
A52: 35 | J52: 0 | K52: 1 | L52: C
A53: 36 | J53: 0 | K53: 1 | L53: C
A54: 37 | J54: 0 | K54: 1 | L54: C
A55: 38 | J55: 0 | K55: 1 | L55: C
A56: 39 | J56: 0 | K56: 1 | L56: C
A57: 40 | J57: 0 | K57: 1 | L57: C
A58: 41 | J58: 0 | K58: 1 | L58: C
A59: 42 | J59: 0 | K59: 1 | L59: C
A60: 43 | J60: 0 | K60: 1 | L60: C
A61: 44 | J61: 0 | K61: 1 | L61: C
A62: 45 | J62: 0 | K62: 1 | L62: C
A63: 46 | J63: 0 | K63: 1 | L63: C
A64: 47 | J64: 0 | K64: 1 | L64: C
A65: 48 | J65: 0 | K65: 1 | L65: C
A66: 49 | J66: 0 | K66: 1 | L66: C
A67: 50 | J67: 0 | K67: 1 | L67: C
A68: 51 | J68: 0 | K68: 1 | L68: C
A69: 52 | J69: 0 | K69: 1 | L69: C
A70: 53 | J70: 0 | K70: 1 | L70: C
A71: 54 | J71: 0 | K71: 1 | L71: C
A72: 55 | J72: 0 | K72: 1 | L72: C
A73: 56 | J73: 0 | K73: 1 | L73: C
A74: 57 | J74: 0 | K74: 1 | L74: C
A75: 58 | J75: 0 | K75: 1 | L75: C
A76: 59 | J76: 0 | K76: 1 | L76: C
A77: 60 | J77: 0 | K77: 1 | L77: C
A78: 61 | J78: 0 | K78: 1 | L78: C
A79: 62 | J79: 0 | K79: 1 | L79: C
A80: 63 | J80: 0 | K80: 1 | L80: C
A81: 1 | J81: 0 | K81: 1 | L81: C
A82: 64 | J82: 0 | K82: 1 | L82: C
A83: 65 | J83: 0 | K83: 1 | L83: C
A84: 66 | J84: =H84/$M$217 -> 0 | K84: 1 | L84: =IF(K84>95%,"C",IF(K84>80%,"B","A")) -> C
A85: 67 | J85: 0 | K85: =J85+K84 -> 1 | L85: C
A86: 68 | J86: 0 | K86: 1 | L86: C
A87: 69 | J87: 0 | K87: 1 | L87: C
A88: 70 | J88: 0 | K88: 1 | L88: C
A89: 71 | J89: 0 | K89: 1 | L89: C
A90: 72 | J90: 0 | K90: 1 | L90: C
A91: 73 | J91: 0 | K91: 1 | L91: C
A92: 74 | J92: 0 | K92: 1 | L92: C
A93: 75 | J93: 0 | K93: 1 | L93: C
A94: 76 | J94: 0 | K94: 1 | L94: C
A95: 77 | J95: 0 | K95: 1 | L95: C
A96: 78 | J96: 0 | K96: 1 | L96: C
A97: 79 | J97: 0 | K97: 1 | L97: C
A98: 80 | J98: 0 | K98: 1 | L98: C
A99: 81 | J99: 0 | K99: 1 | L99: C
A100: 82 | J100: 0 | K100: 1 | L100: C
A101: 83 | J101: 0 | K101: 1 | L101: C
A102: 84 | J102: 0 | K102: 1 | L102: C
A103: 85 | J103: 0 | K103: 1 | L103: C
A104: 86 | J104: 0 | K104: 1 | L104: C
A105: 87 | J105: 0 | K105: 1 | L105: C
A106: 88 | J106: 0 | K106: 1 | L106: C
A107: 89 | J107: 0 | K107: 1 | L107: C
A108: 90 | J108: 0 | K108: 1 | L108: C
A109: 91 | J109: 0 | K109: 1 | L109: C
A110: 92 | J110: 0 | K110: 1 | L110: C
A111: 93 | J111: 0 | K111: 1 | L111: C
A112: 94 | J112: 0 | K112: 1 | L112: C
A113: 95 | J113: 0 | K113: 1 | L113: C
A114: 96 | J114: 0 | K114: 1 | L114: C
A115: 97 | J115: 0 | K115: 1 | L115: C
A116: 98 | J116: 0 | K116: 1 | L116: C
A117: 99 | J117: 0 | K117: 1 | L117: C
A118: 100 | J118: 0 | K118: 1 | L118: C
A119: 101 | J119: 0 | K119: 1 | L119: C
A120: 102 | J120: 0 | K120: 1 | L120: C
A121: 103 | J121: 0 | K121: 1 | L121: C
A122: 104 | J122: 0 | K122: 1 | L122: C
A123: 105 | J123: 0 | K123: 1 | L123: C
A124: 106 | J124: 0 | K124: 1 | L124: C
A125: 107 | J125: 0 | K125: 1 | L125: C
A126: 108 | J126: 0 | K126: 1 | L126: C
A127: 109 | J127: 0 | K127: 1 | L127: C
A128: 110 | J128: 0 | K128: 1 | L128: C
A129: 111 | J129: 0 | K129: 1 | L129: C
A130: 112 | J130: 0 | K130: 1 | L130: C
A131: 113 | J131: 0 | K131: 1 | L131: C
A132: 114 | J132: 0 | K132: 1 | L132: C
A133: 115 | J133: 0 | K133: 1 | L133: C
A134: 116 | J134: 0 | K134: 1 | L134: C
A135: 117 | J135: 0 | K135: 1 | L135: C
A136: 118 | J136: 0 | K136: 1 | L136: C
A137: 119 | J137: 0 | K137: 1 | L137: C
A138: 120 | J138: 0 | K138: 1 | L138: C
A139: 121 | J139: 0 | K139: 1 | L139: C
A140: 122 | J140: 0 | K140: 1 | L140: C
A141: 123 | J141: 0 | K141: 1 | L141: C
A142: 124 | J142: 0 | K142: 1 | L142: C
A143: 125 | J143: 0 | K143: 1 | L143: C
A144: 126 | J144: 0 | K144: 1 | L144: C
A145: 127 | J145: 0 | K145: 1 | L145: C
A146: 128 | J146: 0 | K146: 1 | L146: C
A147: 129 | J147: 0 | K147: 1 | L147: C
A148: 130 | J148: =H148/$M$217 -> 0 | K148: 1 | L148: =IF(K148>95%,"C",IF(K148>80%,"B","A")) -> C
A149: 131 | J149: 0 | K149: =J149+K148 -> 1 | L149: C
A150: 132 | J150: 0 | K150: 1 | L150: C
A151: 133 | J151: 0 | K151: 1 | L151: C
A152: 134 | J152: 0 | K152: 1 | L152: C
A153: 135 | J153: 0 | K153: 1 | L153: C
A154: 136 | J154: 0 | K154: 1 | L154: C
J155: 0 | K155: 1 | L155: C
J156: 0 | K156: 1 | L156: C
J157: 0 | K157: 1 | L157: C
J158: 0 | K158: 1 | L158: C
J159: 0 | K159: 1 | L159: C
J160: 0 | K160: 1 | L160: C
J161: 0 | K161: 1 | L161: C
J162: 0 | K162: 1 | L162: C
J163: 0 | K163: 1 | L163: C
J164: 0 | K164: 1 | L164: C
J165: 0 | K165: 1 | L165: C
J166: 0 | K166: 1 | L166: C
J167: 0 | K167: 1 | L167: C
J168: 0 | K168: 1 | L168: C
J169: 0 | K169: 1 | L169: C
J170: 0 | K170: 1 | L170: C
J171: 0 | K171: 1 | L171: C
J172: 0 | K172: 1 | L172: C
J173: 0 | K173: 1 | L173: C
J174: 0 | K174: 1 | L174: C
J175: 0 | K175: 1 | L175: C
J176: 0 | K176: 1 | L176: C
J177: 0 | K177: 1 | L177: C
J178: 0 | K178: 1 | L178: C
J179: 0 | K179: 1 | L179: C
J180: 0 | K180: 1 | L180: C
J181: 0 | K181: 1 | L181: C
J182: 0 | K182: 1 | L182: C
J183: 0 | K183: 1 | L183: C
J184: 0 | K184: 1 | L184: C
J185: 0 | K185: 1 | L185: C
J186: 0 | K186: 1 | L186: C
J187: 0 | K187: 1 | L187: C
J188: 0 | K188: 1 | L188: C
J189: 0 | K189: 1 | L189: C
J190: 0 | K190: 1 | L190: C
J191: 0 | K191: 1 | L191: C
J192: 0 | K192: 1 | L192: C
J193: 0 | K193: 1 | L193: C
J194: 0 | K194: 1 | L194: C
J195: 0 | K195: 1 | L195: C
J196: 0 | K196: 1 | L196: C
J197: 0 | K197: 1 | L197: C
J198: 0 | K198: 1 | L198: C
J199: 0 | K199: 1 | L199: C
J200: 0 | K200: 1 | L200: C
J201: 0 | K201: 1 | L201: C
J202: 0 | K202: 1 | L202: C
J203: 0 | K203: 1 | L203: C
J204: 0 | K204: 1 | L204: C
J205: 0 | K205: 1 | L205: C
J206: 0 | K206: 1 | L206: C
J207: 0 | K207: 1 | L207: C
J208: 0 | K208: 1 | L208: C
J209: 0 | K209: 1 | L209: C
... 13 more rows

Sheet QCI (hidden)
A6: =[1]Planilha!A6 -> ESTADO DE RONDÔNIA
A7: ='PLANILHA ORÇAM.'!A8:H8 -> PREFEITURA DE CEREJEIRAS
A9: QCI - QUADRO DE COMPOSIÇÃO DO INVESTIMENTO
A11: ='PLANILHA ORÇAM.'!A12 -> OBRA : | B11: ='PLANILHA ORÇAM.'!B12 -> REFORMA DA SALA DE RAIO-X DO HOSPITAL
A12: ='PLANILHA ORÇAM.'!A13 -> END. : | B12: ='PLANILHA ORÇAM.'!B13 -> RUA NOVA ZELÂNDIA,1192, BAIRRO CENTRO
A13: ='PLANILHA ORÇAM.'!A14 -> LOCAL: | B13: ='PLANILHA ORÇAM.'!B14 -> CEREJEIRAS / RO
A14: ='PLANILHA ORÇAM.'!A15 -> ÁREA : | B14: ='PLANILHA ORÇAM.'!B15 -> 52,91m²
G15: 549998.26 | H15: valor do contrato
A16: QCI - QUADRO DE COMPOSIÇÃO DO INVESTIMENTO | G16: 0 | H16: contrapartida
A17: ITENS | B17: DISCRIMINAÇÃO DOS SERVIÇOS | C17: VALORES C/ BDI R$ | G17: 0.1 | H17: fração percentual
C18: C. PARTIDA | D18: REPASSE | E18: TOTAL
A19: =RESUMO!A18 -> 1.0 | B19: =RESUMO!B18 -> SERVIÇOS PRELIMINARES | C19: =E19*$G$17 -> 115.8749297 | D19: =E19-C19 -> 1042.874368 | E19: =G19*1.2882 -> 1158.749297 | G19: =RESUMO!C18 -> 899.5104
A20: =RESUMO!A19 -> 2.0 | B20: =RESUMO!B19 -> DEMOLIÇÕES E RETIRADAS | C20: 176.486015 | D20: =E20-C20 -> 1588.374135 | E20: 1764.86015 | G20: =RESUMO!C19 -> 1370.0203
A21: =RESUMO!#REF! ->  | B21: =RESUMO!#REF! ->  | D21: =E21-C21 ->  | G21: =RESUMO!#REF! -> 
A22: =RESUMO!#REF! ->  | B22: =RESUMO!#REF! ->  | G22: =RESUMO!#REF! -> 
A23: =RESUMO!#REF! ->  | B23: =RESUMO!#REF! ->  | G23: =RESUMO!#REF! -> 
A24: =RESUMO!#REF! ->  | B24: =RESUMO!#REF! ->  | G24: =RESUMO!#REF! -> 
A25: =RESUMO!#REF! ->  | B25: =RESUMO!#REF! ->  | G25: =RESUMO!#REF! -> 
A26: =RESUMO!#REF! ->  | B26: =RESUMO!#REF! ->  | G26: =RESUMO!#REF! -> 
A27: =RESUMO!A21 -> 4.0 | B27: =RESUMO!B21 -> ESQUADRIAS | C27: 2268.350158 | D27: 20415.15142 | E27: 22683.50158 | G27: =RESUMO!C21 -> 17608.68
A28: =RESUMO!A22 -> 5.0 | B28: =RESUMO!B22 -> PINTURA | C28: 365.6912403 | D28: 3291.221162 | E28: 3656.912403 | G28: =RESUMO!C22 -> 2838.7769
A29: =RESUMO!#REF! ->  | B29: =RESUMO!#REF! ->  | G29: =RESUMO!#REF! -> 
A30: =RESUMO!A23 -> 6.0 | B30: =RESUMO!B23 -> INSTALAÇÕES ELÉTRICAS | C30: 4270.383 | D30: 38433.447 | E30: 42703.83 | G30: =RESUMO!C23 -> 33150
A31: =RESUMO!#REF! ->  | B31: =RESUMO!#REF! ->  | D31: =E31-C31 ->  | E31: =G31*1.2882 ->  | G31: =RESUMO!#REF! -> 
A32: =RESUMO!#REF! ->  | B32: =RESUMO!#REF! ->  | G32: =RESUMO!#REF! -> 
A33: =RESUMO!#REF! ->  | B33: =RESUMO!#REF! ->  | D33: =E33-C33 ->  | E33: =G33*1.2882 ->  | G33: =RESUMO!#REF! -> 
A34: =RESUMO!#REF! ->  | B34: =RESUMO!#REF! ->  | G34: =RESUMO!#REF! -> 
A35: =RESUMO!#REF! ->  | B35: =RESUMO!#REF! ->  | D35: =E35-C35 ->  | E35: =G35*1.2882 ->  | G35: =RESUMO!#REF! -> 
A36: =RESUMO!#REF! ->  | B36: =RESUMO!#REF! ->  | G36: =RESUMO!#REF! -> 
A37: =RESUMO!#REF! ->  | B37: =RESUMO!#REF! ->  | D37: =E37-C37 ->  | E37: =G37*1.2882 ->  | G37: =RESUMO!#REF! -> 
A38: =RESUMO!#REF! ->  | B38: =RESUMO!#REF! ->  | G38: =RESUMO!#REF! -> 
A39: =RESUMO!#REF! ->  | B39: =RESUMO!#REF! ->  | D39: =E39-C39 ->  | E39: =G39*1.2882 ->  | G39: =RESUMO!#REF! -> 
A40: =RESUMO!#REF! ->  | B40: =RESUMO!#REF! ->  | G40: =RESUMO!#REF! -> 
A41: =RESUMO!#REF! ->  | B41: =RESUMO!#REF! ->  | D41: =E41-C41 ->  | E41: =G41*1.2882 ->  | G41: =RESUMO!#REF! -> 
A42: =RESUMO!#REF! ->  | B42: =RESUMO!#REF! ->  | G42: =RESUMO!#REF! -> 
A43: =RESUMO!#REF! ->  | B43: =RESUMO!#REF! ->  | D43: =E43-C43 ->  | E43: =G43*1.2882 ->  | G43: =RESUMO!#REF! -> 
A44: =RESUMO!#REF! ->  | B44: =RESUMO!#REF! ->  | G44: =RESUMO!#REF! -> 
A45: =RESUMO!#REF! ->  | B45: =RESUMO!#REF! ->  | D45: =E45-C45 ->  | E45: =G45*1.2882 ->  | G45: =RESUMO!#REF! -> 
A46: =RESUMO!A24 -> 7.0 | B46: =RESUMO!B24 -> DIVERSOS | C46: 17.99388677 | D46: 161.9449809 | E46: 179.9388677 | G46: =RESUMO!C24 -> 139.6824
A47: VALOR TOTAL EM R$ - COM BDI | D47: =SUM(D19:D46) ->  | E47: =C47+D47 ->  | G47: =SUM(G19:G46) -> 

Sheet RESUMO
A6: ='PLANILHA ORÇAM.'!A7:H7 -> GOVERNO DE RONDÔNIA
A7: ='PLANILHA ORÇAM.'!A8:H8 -> PREFEITURA DE CEREJEIRAS
A9: PLANILHA RESUMO
A11: ='PLANILHA ORÇAM.'!A12 -> OBRA : | B11: ='PLANILHA ORÇAM.'!B12 -> REFORMA DA SALA DE RAIO-X DO HOSPITAL
A12: ='PLANILHA ORÇAM.'!A13 -> END. : | B12: ='PLANILHA ORÇAM.'!B13 -> RUA NOVA ZELÂNDIA,1192, BAIRRO CENTRO
A13: ='PLANILHA ORÇAM.'!A14 -> LOCAL: | B13: ='PLANILHA ORÇAM.'!B14 -> CEREJEIRAS / RO
A14: ='PLANILHA ORÇAM.'!A15 -> ÁREA : | B14: ='PLANILHA ORÇAM.'!B15 -> 52,91m²
B15: BDI: | C15: ='PLANILHA ORÇAM.'!G15 -> 0.2047
A16: ITEM | B16: DISCRIMINAÇÃO DE SERVIÇOS | C16: TOTAL
A18: ='PLANILHA ORÇAM.'!A19 -> 1.0 | B18: ='PLANILHA ORÇAM.'!B19:H19 -> SERVIÇOS PRELIMINARES | C18: ='PLANILHA ORÇAM.'!H21 -> 899.5104
A19: ='PLANILHA ORÇAM.'!A22 -> 2.0 | B19: ='PLANILHA ORÇAM.'!B22:H22 -> DEMOLIÇÕES E RETIRADAS | C19: ='PLANILHA ORÇAM.'!H29 -> 1370.0203
A20: ='PLANILHA ORÇAM.'!A30 -> 3.0 | B20: ='PLANILHA ORÇAM.'!B30:H30 -> REVESTIMENTOS DE PAREDES | C20: ='PLANILHA ORÇAM.'!H33 -> 3821.52835
A21: ='PLANILHA ORÇAM.'!A34 -> 4.0 | B21: ='PLANILHA ORÇAM.'!B34 -> ESQUADRIAS | C21: ='PLANILHA ORÇAM.'!H40 -> 17608.68
A22: ='PLANILHA ORÇAM.'!A41 -> 5.0 | B22: ='PLANILHA ORÇAM.'!B41:H41 -> PINTURA | C22: ='PLANILHA ORÇAM.'!H45 -> 2838.7769
A23: ='PLANILHA ORÇAM.'!A46 -> 6.0 | B23: ='PLANILHA ORÇAM.'!B46:H46 -> INSTALAÇÕES ELÉTRICAS | C23: ='PLANILHA ORÇAM.'!H54 -> 33150
A24: ='PLANILHA ORÇAM.'!A55 -> 7.0 | B24: ='PLANILHA ORÇAM.'!B55:H55 -> DIVERSOS | C24: ='PLANILHA ORÇAM.'!H57 -> 139.6824
A25: CUSTO TOTAL DA OBRA SEM BDI | C25: =SUM(C18:C24) -> 59828.19835
A27: CUSTO GERAL SEM BDI | C27: =C25 -> 59828.19835
A28: CUSTO DO BDI | C28: =C27*C15 -> 12246.8322
A29: CUSTO GERAL COM BDI | C29: =SUM(C27:C28) -> 72075.03055

Sheet PLANILHA ORÇAM.
H1: Rev_00
L4: PROFISSIONAL
L5: ELAINE
A7: GOVERNO DE RONDÔNIA
A8: PREFEITURA DE CEREJEIRAS
A10: PLANILHA ORÇAMENTÁRIA
A12: OBRA : | B12: REFORMA DA SALA DE RAIO-X DO HOSPITAL | F12: FONTES : | G12: "A" - SINAPI/ABRIL/2019
A13: END. : | B13: RUA NOVA ZELÂNDIA,1192, BAIRRO CENTRO | G13: "B" - COTAÇÃO
A14: LOCAL: | B14: CEREJEIRAS / RO | G14: "C" - COMPOSIÇÃO DE CUSTO | J14: =BDI_DESO!F33 -> 0.2649
A15: ÁREA : | B15: 52,91m² | F15: BDI: | G15: =BDI_NÃO_DESO!G32 -> 0.2047 | I15: PLANILHA COMPARATIVA
A16: ITEM | B16: TABELA | C16: CÓDIGO | D16: DISCRIMINAÇÃO DE SERVIÇOS | E16: UNID | F16: QUANT. | G16: VALOR UNIT. | H16: TOTAL | I16: VALOR | J16: TOTAL
A19: 1.0 | B19: SERVIÇOS PRELIMINARES
A20: 1.1 | B20: A | C20: 74209/1 | D20: =IFERROR(VLOOKUP(C20,'SEM DESONERADO'!$A$2:$E$15000,2,0),IFERROR(VLOOKUP(C20,COTAÇÕES!$A$2:$E$15000,2,0),IFERROR(VLOOKUP(C20,'COMP.NÃO.DESO.'!$B$1:$H$13689,2,0),""))) -> Placa de obra em chapa de aco galvanizado | E20: =IFERROR(VLOOKUP(C20,'SEM DESONERADO'!$A$2:$E$15000,3,0),IFERROR(VLOOKUP(C20,COTAÇÕES!$A$2:$E$15000,3,0),IFERROR(VLOOKUP(C20,'COMP.NÃO.DESO.'!$B$1:$H$13689,3,0),""))) -> m² | F20: ='MEMORIA CALC.'!D23 -> 2.88 | G20: =IFERROR(VLOOKUP(C20,'SEM DESONERADO'!$A$2:$E$15000,4,0),IFERROR(VLOOKUP(C20,COTAÇÕES!$A$2:$E$15000,4,0),IFERROR(VLOOKUP(C20,'COMP.NÃO.DESO.'!$B$1:$H$13689,7,0),""))) -> 312.33 | H20: =F20*G20 -> 899.5104 | I20: =IFERROR(VLOOKUP(C20,'COM DESONERADO'!$A$2:$E$15001,4,0),IFERROR(VLOOKUP(C20,COTAÇÕES!$A$2:$E$15000,4,0),IFERROR(VLOOKUP(C20,'COMP.DESO.'!$B$1:$H$15000,7,0),""))) -> 306.92 | J20: =I20*F20 -> 883.9296
A21: CUSTO TOTAL DE SERVIÇOS PRELIMINARES | H21: =SUM(H20:H20) -> 899.5104 | J21: =SUM(J20:J20) -> 883.9296
A22: 2.0 | B22: DEMOLIÇÕES E RETIRADAS
A23: 2.1 | B23: A | C23: 85421 | D23: =IFERROR(VLOOKUP(C23,'SEM DESONERADO'!$A$2:$E$15000,2,0),IFERROR(VLOOKUP(C23,COTAÇÕES!$A$2:$E$15000,2,0),IFERROR(VLOOKUP(C23,'COMP.NÃO.DESO.'!$B$1:$H$13689,2,0),""))) -> Remocao de vidro comum | E23: =IFERROR(VLOOKUP(C23,'SEM DESONERADO'!$A$2:$E$15000,3,0),IFERROR(VLOOKUP(C23,COTAÇÕES!$A$2:$E$15000,3,0),IFERROR(VLOOKUP(C23,'COMP.NÃO.DESO.'!$B$1:$H$13689,3,0),""))) -> m² | F23: ='MEMORIA CALC.'!D33 -> 0.32 | G23: =IFERROR(VLOOKUP(C23,'SEM DESONERADO'!$A$2:$E$15000,4,0),IFERROR(VLOOKUP(C23,COTAÇÕES!$A$2:$E$15000,4,0),IFERROR(VLOOKUP(C23,'COMP.NÃO.DESO.'!$B$1:$H$13689,7,0),""))) -> 13.07 | H23: =F23*G23 -> 4.1824 | I23: =IFERROR(VLOOKUP(C23,'COM DESONERADO'!$A$2:$E$15001,4,0),IFERROR(VLOOKUP(C23,COTAÇÕES!$A$2:$E$15000,4,0),IFERROR(VLOOKUP(C23,'COMP.DESO.'!$B$1:$H$15000,7,0),""))) -> 11.75 | J23: =I23*F23 -> 3.76
A24: 2.2 | B24: C | C24: CP0008 | D24: =IFERROR(VLOOKUP(C24,'SEM DESONERADO'!$A$2:$E$15000,2,0),IFERROR(VLOOKUP(C24,COTAÇÕES!$A$2:$E$15000,2,0),IFERROR(VLOOKUP(C24,'COMP.NÃO.DESO.'!$B$1:$H$13689,2,0),""))) -> Remoção de Pintura | E24: =IFERROR(VLOOKUP(C24,'SEM DESONERADO'!$A$2:$E$15000,3,0),IFERROR(VLOOKUP(C24,COTAÇÕES!$A$2:$E$15000,3,0),IFERROR(VLOOKUP(C24,'COMP.NÃO.DESO.'!$B$1:$H$13689,3,0),""))) -> m² | F24: ='MEMORIA CALC.'!D60 -> 141.75 | G24: =IFERROR(VLOOKUP(C24,'SEM DESONERADO'!$A$2:$E$15000,4,0),IFERROR(VLOOKUP(C24,COTAÇÕES!$A$2:$E$15000,4,0),IFERROR(VLOOKUP(C24,'COMP.NÃO.DESO.'!$B$1:$H$13689,7,0),""))) -> 8.96 | H24: 1270.08 | I24: =IFERROR(VLOOKUP(C24,'COM DESONERADO'!$A$2:$E$15001,4,0),IFERROR(VLOOKUP(C24,COTAÇÕES!$A$2:$E$15000,4,0),IFERROR(VLOOKUP(C24,'COMP.DESO.'!$B$1:$H$15000,7,0),""))) -> 8.11 | J24: 1149.5925
A25: 2.3 | B25: A | C25: 97622 | D25: =IFERROR(VLOOKUP(C25,'SEM DESONERADO'!$A$2:$E$15000,2,0),IFERROR(VLOOKUP(C25,COTAÇÕES!$A$2:$E$15000,2,0),IFERROR(VLOOKUP(C25,'COMP.NÃO.DESO.'!$B$1:$H$13689,2,0),""))) -> Demolição de alvenaria de bloco furado, de forma manual, sem reaproveitamento. af_12/2017 | E25: =IFERROR(VLOOKUP(C25,'SEM DESONERADO'!$A$2:$E$15000,3,0),IFERROR(VLOOKUP(C25,COTAÇÕES!$A$2:$E$15000,3,0),IFERROR(VLOOKUP(C25,'COMP.NÃO.DESO.'!$B$1:$H$13689,3,0),""))) -> m³ | F25: ='MEMORIA CALC.'!D68 -> 0.27 | G25: =IFERROR(VLOOKUP(C25,'SEM DESONERADO'!$A$2:$E$15000,4,0),IFERROR(VLOOKUP(C25,COTAÇÕES!$A$2:$E$15000,4,0),IFERROR(VLOOKUP(C25,'COMP.NÃO.DESO.'!$B$1:$H$13689,7,0),""))) -> 44.57 | H25: 12.0339 | I25: =IFERROR(VLOOKUP(C25,'COM DESONERADO'!$A$2:$E$15001,4,0),IFERROR(VLOOKUP(C25,COTAÇÕES!$A$2:$E$15000,4,0),IFERROR(VLOOKUP(C25,'COMP.DESO.'!$B$1:$H$15000,7,0),""))) -> 40.18 | J25: 10.8486
A26: 2.4 | B26: A | C26: 97644 | D26: =IFERROR(VLOOKUP(C26,'SEM DESONERADO'!$A$2:$E$15000,2,0),IFERROR(VLOOKUP(C26,COTAÇÕES!$A$2:$E$15000,2,0),IFERROR(VLOOKUP(C26,'COMP.NÃO.DESO.'!$B$1:$H$13689,2,0),""))) -> Remoção de portas, de forma manual, sem reaproveitamento. af_12/2017 | E26: =IFERROR(VLOOKUP(C26,'SEM DESONERADO'!$A$2:$E$15000,3,0),IFERROR(VLOOKUP(C26,COTAÇÕES!$A$2:$E$15000,3,0),IFERROR(VLOOKUP(C26,'COMP.NÃO.DESO.'!$B$1:$H$13689,3,0),""))) -> m² | F26: ='MEMORIA CALC.'!D78 -> 6.72 | G26: =IFERROR(VLOOKUP(C26,'SEM DESONERADO'!$A$2:$E$15000,4,0),IFERROR(VLOOKUP(C26,COTAÇÕES!$A$2:$E$15000,4,0),IFERROR(VLOOKUP(C26,'COMP.NÃO.DESO.'!$B$1:$H$13689,7,0),""))) -> 6.98 | H26: 46.9056 | I26: =IFERROR(VLOOKUP(C26,'COM DESONERADO'!$A$2:$E$15001,4,0),IFERROR(VLOOKUP(C26,COTAÇÕES!$A$2:$E$15000,4,0),IFERROR(VLOOKUP(C26,'COMP.DESO.'!$B$1:$H$15000,7,0),""))) -> 6.28 | J26: 42.2016
A27: 2.5 | B27: A | C27: 72898 | D27: =IFERROR(VLOOKUP(C27,'SEM DESONERADO'!$A$2:$E$15000,2,0),IFERROR(VLOOKUP(C27,COTAÇÕES!$A$2:$E$15000,2,0),IFERROR(VLOOKUP(C27,'COMP.NÃO.DESO.'!$B$1:$H$13689,2,0),""))) -> Carga e descarga mecanizadas de entulho em caminhao basculante 6 m3 | E27: =IFERROR(VLOOKUP(C27,'SEM DESONERADO'!$A$2:$E$15000,3,0),IFERROR(VLOOKUP(C27,COTAÇÕES!$A$2:$E$15000,3,0),IFERROR(VLOOKUP(C27,'COMP.NÃO.DESO.'!$B$1:$H$13689,3,0),""))) -> m³ | F27: ='MEMORIA CALC.'!D89 -> 3.48 | G27: =IFERROR(VLOOKUP(C27,'SEM DESONERADO'!$A$2:$E$15000,4,0),IFERROR(VLOOKUP(C27,COTAÇÕES!$A$2:$E$15000,4,0),IFERROR(VLOOKUP(C27,'COMP.NÃO.DESO.'!$B$1:$H$13689,7,0),""))) -> 4.17 | H27: 14.5116 | I27: =IFERROR(VLOOKUP(C27,'COM DESONERADO'!$A$2:$E$15001,4,0),IFERROR(VLOOKUP(C27,COTAÇÕES!$A$2:$E$15000,4,0),IFERROR(VLOOKUP(C27,'COMP.DESO.'!$B$1:$H$15000,7,0),""))) -> 4.06 | J27: 14.1288
A28: 2.6 | B28: A | C28: 72900 | D28: =IFERROR(VLOOKUP(C28,'SEM DESONERADO'!$A$2:$E$15000,2,0),IFERROR(VLOOKUP(C28,COTAÇÕES!$A$2:$E$15000,2,0),IFERROR(VLOOKUP(C28,'COMP.NÃO.DESO.'!$B$1:$H$13689,2,0),""))) -> Transporte de entulho com caminhao basculante 6 m3, rodovia pavimentada, dmt 0,5 a 1,0 km | E28: =IFERROR(VLOOKUP(C28,'SEM DESONERADO'!$A$2:$E$15000,3,0),IFERROR(VLOOKUP(C28,COTAÇÕES!$A$2:$E$15000,3,0),IFERROR(VLOOKUP(C28,'COMP.NÃO.DESO.'!$B$1:$H$13689,3,0),""))) -> m³ | F28: ='MEMORIA CALC.'!D94 -> 3.48 | G28: =IFERROR(VLOOKUP(C28,'SEM DESONERADO'!$A$2:$E$15000,4,0),IFERROR(VLOOKUP(C28,COTAÇÕES!$A$2:$E$15000,4,0),IFERROR(VLOOKUP(C28,'COMP.NÃO.DESO.'!$B$1:$H$13689,7,0),""))) -> 6.41 | H28: 22.3068 | I28: =IFERROR(VLOOKUP(C28,'COM DESONERADO'!$A$2:$E$15001,4,0),IFERROR(VLOOKUP(C28,COTAÇÕES!$A$2:$E$15000,4,0),IFERROR(VLOOKUP(C28,'COMP.DESO.'!$B$1:$H$15000,7,0),""))) -> 6.31 | J28: 21.9588
A29: CUSTO TOTAL DE DEMOLIÇÕES E RETIRADAS | H29: =SUM(H23:H28) -> 1370.0203 | J29: =SUM(J23:J28) -> 1242.4903
A30: 3.0 | B30: REVESTIMENTOS DE PAREDES
A31: 3.1 | B31: A | C31: 87878 | D31: =IFERROR(VLOOKUP(C31,'SEM DESONERADO'!$A$2:$E$15000,2,0),IFERROR(VLOOKUP(C31,COTAÇÕES!$A$2:$E$15000,2,0),IFERROR(VLOOKUP(C31,'COMP.NÃO.DESO.'!$B$1:$H$13689,2,0),""))) -> Chapisco aplicado em alvenarias e estruturas de concreto internas, com colher de pedreiro. argamassa traço 1:3 com preparo manual. af_06/2014 | E31: =IFERROR(VLOOKUP(C31,'SEM DESONERADO'!$A$2:$E$15000,3,0),IFERROR(VLOOKUP(C31,COTAÇÕES!$A$2:$E$15000,3,0),IFERROR(VLOOKUP(C31,'COMP.NÃO.DESO.'!$B$1:$H$13689,3,0),""))) -> m² | F31: ='MEMORIA CALC.'!D115 -> 59.53 | G31: =IFERROR(VLOOKUP(C31,'SEM DESONERADO'!$A$2:$E$15000,4,0),IFERROR(VLOOKUP(C31,COTAÇÕES!$A$2:$E$15000,4,0),IFERROR(VLOOKUP(C31,'COMP.NÃO.DESO.'!$B$1:$H$13689,7,0),""))) -> 3.63 | H31: =F31*G31 -> 216.0939 | I31: =IFERROR(VLOOKUP(C31,'COM DESONERADO'!$A$2:$E$15001,4,0),IFERROR(VLOOKUP(C31,COTAÇÕES!$A$2:$E$15000,4,0),IFERROR(VLOOKUP(C31,'COMP.DESO.'!$B$1:$H$15000,7,0),""))) -> 3.4 | J31: =I31*F31 -> 202.402
A32: 3.2 | B32: C | C32: CP0386 | D32: =IFERROR(VLOOKUP(C32,'SEM DESONERADO'!$A$2:$E$15000,2,0),IFERROR(VLOOKUP(C32,COTAÇÕES!$A$2:$E$15000,2,0),IFERROR(VLOOKUP(C32,'COMP.NÃO.DESO.'!$B$1:$H$13689,2,0),""))) -> Argamassa Baritada (espessura 2,0cm) | E32: =IFERROR(VLOOKUP(C32,'SEM DESONERADO'!$A$2:$E$15000,3,0),IFERROR(VLOOKUP(C32,COTAÇÕES!$A$2:$E$15000,3,0),IFERROR(VLOOKUP(C32,'COMP.NÃO.DESO.'!$B$1:$H$13689,3,0),""))) -> m² | F32: ='MEMORIA CALC.'!D120 -> 59.53 | G32: =IFERROR(VLOOKUP(C32,'SEM DESONERADO'!$A$2:$E$15000,4,0),IFERROR(VLOOKUP(C32,COTAÇÕES!$A$2:$E$15000,4,0),IFERROR(VLOOKUP(C32,'COMP.NÃO.DESO.'!$B$1:$H$13689,7,0),""))) -> 60.565 | H32: =F32*G32 -> 3605.43445 | I32: =IFERROR(VLOOKUP(C32,'COM DESONERADO'!$A$2:$E$15001,4,0),IFERROR(VLOOKUP(C32,COTAÇÕES!$A$2:$E$15000,4,0),IFERROR(VLOOKUP(C32,'COMP.DESO.'!$B$1:$H$15000,7,0),""))) -> 57.765 | J32: =I32*F32 -> 3438.75045
A33: CUSTO TOTAL DE REVESTIMENTOS DE PAREDES | H33: =SUM(H31:H32) -> 3821.52835 | J33: =SUM(J31:J32) -> 3641.15245
A34: 4.0 | B34: ESQUADRIAS
A35: 4.1 | B35: A | C35: 90843 | D35: =IFERROR(VLOOKUP(C35,'SEM DESONERADO'!$A$2:$E$15000,2,0),IFERROR(VLOOKUP(C35,COTAÇÕES!$A$2:$E$15000,2,0),IFERROR(VLOOKUP(C35,'COMP.NÃO.DESO.'!$B$1:$H$13689,2,0),""))) -> Kit de porta de madeira para pintura, semi-oca (leve ou média), padrão médio, 80x210cm, espessura de 3,5cm, itens inclusos: dobradiças, montagem e instalação do batente, fechadura com execução do furo - fornecimento e instalação. af_08/2015 | E35: =IFERROR(VLOOKUP(C35,'SEM DESONERADO'!$A$2:$E$15000,3,0),IFERROR(VLOOKUP(C35,COTAÇÕES!$A$2:$E$15000,3,0),IFERROR(VLOOKUP(C35,'COMP.NÃO.DESO.'!$B$1:$H$13689,3,0),""))) -> und | F35: ='MEMORIA CALC.'!D126 -> 1 | G35: =IFERROR(VLOOKUP(C35,'SEM DESONERADO'!$A$2:$E$15000,4,0),IFERROR(VLOOKUP(C35,COTAÇÕES!$A$2:$E$15000,4,0),IFERROR(VLOOKUP(C35,'COMP.NÃO.DESO.'!$B$1:$H$13689,7,0),""))) -> 608.68 | H35: =F35*G35 -> 608.68 | I35: =IFERROR(VLOOKUP(C35,'COM DESONERADO'!$A$2:$E$15001,4,0),IFERROR(VLOOKUP(C35,COTAÇÕES!$A$2:$E$15000,4,0),IFERROR(VLOOKUP(C35,'COMP.DESO.'!$B$1:$H$15000,7,0),""))) -> 585.19 | J35: =I35*F35 -> 585.19
A36: 4.2 | B36: B | C36: COTAÇÃO | D36: Porta radiológica em madeira, dimensões 1,20m x 2,10m, espessura do chumbo = 2mm | E36: und | F36: ='MEMORIA CALC.'!D130 -> 1 | G36: =MEDIAN(6180,3300,2835.1) -> 3300 | H36: =F36*G36 -> 3300 | I36: =G36 -> 3300 | J36: 3300
A37: 4.3 | B37: B | C37: COTAÇÃO | D37: Porta radiológica em madeira, dimensões 0,80m x 2,10m, espessura do chumbo = 2mm | E37: und | F37: ='MEMORIA CALC.'!D134 -> 1 | G37: =MEDIAN(4160,2800,1874.8) -> 2800 | H37: =F37*G37 -> 2800 | I37: =G37 -> 2800 | J37: =I37*F37 -> 2800
A38: 4.4 | B38: B | C38: COTAÇÃO | D38: Porta radiológica em madeira, dimensões 0,60m x 2,10m, espessura do chumbo = 2mm | E38: und | F38: ='MEMORIA CALC.'!D138 -> 2 | G38: =MEDIAN(3450,2500,1417.6) -> 2500 | H38: =F38*G38 -> 5000 | I38: 2500 | J38: 5000
A39: 4.5 | B39: B | C39: COTAÇÃO | D39: Vidro plumbifero, dimensões 0,80m x 0,40m | E39: und | F39: ='MEMORIA CALC.'!D142 -> 1 | G39: =MEDIAN(5900,12606.1,1376.8) -> 5900 | H39: =F39*G39 -> 5900 | I39: 5900 | J39: =I39*F39 -> 5900
A40: CUSTO TOTAL DE ESQUADRIAS | H40: =SUM(H35:H39) -> 17608.68 | J40: =SUM(J35:J39) -> 17585.19
A41: 5.0 | B41: PINTURA
A42: 5.1 | B42: A | C42: 88497 | D42: =IFERROR(VLOOKUP(C42,'SEM DESONERADO'!$A$2:$E$15000,2,0),IFERROR(VLOOKUP(C42,COTAÇÕES!$A$2:$E$15000,2,0),IFERROR(VLOOKUP(C42,'COMP.NÃO.DESO.'!$B$1:$H$13689,2,0),""))) -> Aplicação e lixamento de massa látex em paredes, duas demãos. af_06/2014 | E42: =IFERROR(VLOOKUP(C42,'SEM DESONERADO'!$A$2:$E$15000,3,0),IFERROR(VLOOKUP(C42,COTAÇÕES!$A$2:$E$15000,3,0),IFERROR(VLOOKUP(C42,'COMP.NÃO.DESO.'!$B$1:$H$13689,3,0),""))) -> m² | F42: ='MEMORIA CALC.'!D149 -> 59.53 | G42: =IFERROR(VLOOKUP(C42,'SEM DESONERADO'!$A$2:$E$15000,4,0),IFERROR(VLOOKUP(C42,COTAÇÕES!$A$2:$E$15000,4,0),IFERROR(VLOOKUP(C42,'COMP.NÃO.DESO.'!$B$1:$H$13689,7,0),""))) -> 11.12 | H42: =F42*G42 -> 661.9736 | I42: =IFERROR(VLOOKUP(C42,'COM DESONERADO'!$A$2:$E$15001,4,0),IFERROR(VLOOKUP(C42,COTAÇÕES!$A$2:$E$15000,4,0),IFERROR(VLOOKUP(C42,'COMP.DESO.'!$B$1:$H$15000,7,0),""))) -> 10.33 | J42: =I42*F42 -> 614.9449
A43: 5.2 | B43: A | C43: 88489 | D43: =IFERROR(VLOOKUP(C43,'SEM DESONERADO'!$A$2:$E$15000,2,0),IFERROR(VLOOKUP(C43,COTAÇÕES!$A$2:$E$15000,2,0),IFERROR(VLOOKUP(C43,'COMP.NÃO.DESO.'!$B$1:$H$13689,2,0),""))) -> Aplicação manual de pintura com tinta látex acrílica em paredes, duas demãos. af_06/2014 | E43: =IFERROR(VLOOKUP(C43,'SEM DESONERADO'!$A$2:$E$15000,3,0),IFERROR(VLOOKUP(C43,COTAÇÕES!$A$2:$E$15000,3,0),IFERROR(VLOOKUP(C43,'COMP.NÃO.DESO.'!$B$1:$H$13689,3,0),""))) -> m² | F43: ='MEMORIA CALC.'!D154 -> 141.75 | G43: =IFERROR(VLOOKUP(C43,'SEM DESONERADO'!$A$2:$E$15000,4,0),IFERROR(VLOOKUP(C43,COTAÇÕES!$A$2:$E$15000,4,0),IFERROR(VLOOKUP(C43,'COMP.NÃO.DESO.'!$B$1:$H$13689,7,0),""))) -> 12.43 | H43: =F43*G43 -> 1761.9525 | I43: =IFERROR(VLOOKUP(C43,'COM DESONERADO'!$A$2:$E$15001,4,0),IFERROR(VLOOKUP(C43,COTAÇÕES!$A$2:$E$15000,4,0),IFERROR(VLOOKUP(C43,'COMP.DESO.'!$B$1:$H$15000,7,0),""))) -> 11.95 | J43: 1693.9125
A44: 5.3 | B44: A | C44: 84645 | D44: =IFERROR(VLOOKUP(C44,'SEM DESONERADO'!$A$2:$E$15000,2,0),IFERROR(VLOOKUP(C44,COTAÇÕES!$A$2:$E$15000,2,0),IFERROR(VLOOKUP(C44,'COMP.NÃO.DESO.'!$B$1:$H$13689,2,0),""))) -> Verniz sintetico brilhante, 2 demaos | E44: =IFERROR(VLOOKUP(C44,'SEM DESONERADO'!$A$2:$E$15000,3,0),IFERROR(VLOOKUP(C44,COTAÇÕES!$A$2:$E$15000,3,0),IFERROR(VLOOKUP(C44,'COMP.NÃO.DESO.'!$B$1:$H$13689,3,0),""))) -> m² | F44: ='MEMORIA CALC.'!D163 -> 24.36 | G44: =IFERROR(VLOOKUP(C44,'SEM DESONERADO'!$A$2:$E$15000,4,0),IFERROR(VLOOKUP(C44,COTAÇÕES!$A$2:$E$15000,4,0),IFERROR(VLOOKUP(C44,'COMP.NÃO.DESO.'!$B$1:$H$13689,7,0),""))) -> 17.03 | H44: =F44*G44 -> 414.8508 | I44: =IFERROR(VLOOKUP(C44,'COM DESONERADO'!$A$2:$E$15001,4,0),IFERROR(VLOOKUP(C44,COTAÇÕES!$A$2:$E$15000,4,0),IFERROR(VLOOKUP(C44,'COMP.DESO.'!$B$1:$H$15000,7,0),""))) -> 15.93 | J44: 388.0548
A45: CUSTO TOTAL DE PINTURA | H45: =SUM(H42:H44) -> 2838.7769 | J45: =SUM(J42:J44) -> 2696.9122
A46: 6.0 | B46: INSTALAÇÕES ELÉTRICAS
A47: Alimentação
A48: 6.1 | B48: C | C48: CP0148 | D48: =IFERROR(VLOOKUP(C48,'SEM DESONERADO'!$A$2:$E$15000,2,0),IFERROR(VLOOKUP(C48,COTAÇÕES!$A$2:$E$15000,2,0),IFERROR(VLOOKUP(C48,'COMP.NÃO.DESO.'!$B$1:$H$13689,2,0),""))) -> Desmontagem do equipamento TECNO DESING e armazenagem do mesmo em local adequado | E48: =IFERROR(VLOOKUP(C48,'SEM DESONERADO'!$A$2:$E$15000,3,0),IFERROR(VLOOKUP(C48,COTAÇÕES!$A$2:$E$15000,3,0),IFERROR(VLOOKUP(C48,'COMP.NÃO.DESO.'!$B$1:$H$13689,3,0),""))) -> und | F48: ='MEMORIA CALC.'!D171 -> 1 | G48: =IFERROR(VLOOKUP(C48,'SEM DESONERADO'!$A$2:$E$15000,4,0),IFERROR(VLOOKUP(C48,COTAÇÕES!$A$2:$E$15000,4,0),IFERROR(VLOOKUP(C48,'COMP.NÃO.DESO.'!$B$1:$H$13689,7,0),""))) -> 3000 | H48: =G48*F48 -> 3000 | I48: =IFERROR(VLOOKUP(C48,'COM DESONERADO'!$A$2:$E$15001,4,0),IFERROR(VLOOKUP(C48,COTAÇÕES!$A$2:$E$15000,4,0),IFERROR(VLOOKUP(C48,'COMP.DESO.'!$B$1:$H$15000,7,0),""))) -> 3000 | J48: =I48*F48 -> 3000
A49: 6.2 | B49: C | C49: CP0149 | D49: =IFERROR(VLOOKUP(C49,'SEM DESONERADO'!$A$2:$E$15000,2,0),IFERROR(VLOOKUP(C49,COTAÇÕES!$A$2:$E$15000,2,0),IFERROR(VLOOKUP(C49,'COMP.NÃO.DESO.'!$B$1:$H$13689,2,0),""))) -> Colocação de caixas metálicas de interligação no piso conforme layout fornecido pelo fabricante VMI TECNOLOGIAS | E49: =IFERROR(VLOOKUP(C49,'SEM DESONERADO'!$A$2:$E$15000,3,0),IFERROR(VLOOKUP(C49,COTAÇÕES!$A$2:$E$15000,3,0),IFERROR(VLOOKUP(C49,'COMP.NÃO.DESO.'!$B$1:$H$13689,3,0),""))) -> und | F49: ='MEMORIA CALC.'!D175 -> 1 | G49: =IFERROR(VLOOKUP(C49,'SEM DESONERADO'!$A$2:$E$15000,4,0),IFERROR(VLOOKUP(C49,COTAÇÕES!$A$2:$E$15000,4,0),IFERROR(VLOOKUP(C49,'COMP.NÃO.DESO.'!$B$1:$H$13689,7,0),""))) -> 4150 | H49: 4150 | I49: =IFERROR(VLOOKUP(C49,'COM DESONERADO'!$A$2:$E$15001,4,0),IFERROR(VLOOKUP(C49,COTAÇÕES!$A$2:$E$15000,4,0),IFERROR(VLOOKUP(C49,'COMP.DESO.'!$B$1:$H$15000,7,0),""))) -> 4150 | J49: 4150
A50: 6.3 | B50: C | C50: CP0150 | D50: =IFERROR(VLOOKUP(C50,'SEM DESONERADO'!$A$2:$E$15000,2,0),IFERROR(VLOOKUP(C50,COTAÇÕES!$A$2:$E$15000,2,0),IFERROR(VLOOKUP(C50,'COMP.NÃO.DESO.'!$B$1:$H$13689,2,0),""))) -> Confecção de aterramento exclusivo para o equipamento com aproximadamente 3 a 5 ohms de resistência especificações do fabricante | E50: =IFERROR(VLOOKUP(C50,'SEM DESONERADO'!$A$2:$E$15000,3,0),IFERROR(VLOOKUP(C50,COTAÇÕES!$A$2:$E$15000,3,0),IFERROR(VLOOKUP(C50,'COMP.NÃO.DESO.'!$B$1:$H$13689,3,0),""))) -> und | F50: ='MEMORIA CALC.'!D179 -> 1 | G50: =IFERROR(VLOOKUP(C50,'SEM DESONERADO'!$A$2:$E$15000,4,0),IFERROR(VLOOKUP(C50,COTAÇÕES!$A$2:$E$15000,4,0),IFERROR(VLOOKUP(C50,'COMP.NÃO.DESO.'!$B$1:$H$13689,7,0),""))) -> 4500 | H50: 4500 | I50: =IFERROR(VLOOKUP(C50,'COM DESONERADO'!$A$2:$E$15001,4,0),IFERROR(VLOOKUP(C50,COTAÇÕES!$A$2:$E$15000,4,0),IFERROR(VLOOKUP(C50,'COMP.DESO.'!$B$1:$H$15000,7,0),""))) -> 4500 | J50: 4500
A51: 6.4 | B51: C | C51: CP0151 | D51: =IFERROR(VLOOKUP(C51,'SEM DESONERADO'!$A$2:$E$15000,2,0),IFERROR(VLOOKUP(C51,COTAÇÕES!$A$2:$E$15000,2,0),IFERROR(VLOOKUP(C51,'COMP.NÃO.DESO.'!$B$1:$H$13689,2,0),""))) -> Confecção do quadro de potência para conexão do equipamento conforme especificações descriminadas pelo fabricante cx moldada 36ka interruptor diferencial 63 amp.,380v tipo b, quatro módulos dps, contactora de 80amp., proteção contra falta de fase e temporizador ajustado em o,3s de retardo montado em quadro medindo 1,20m x 0,6m x 0,22m | E51: =IFERROR(VLOOKUP(C51,'SEM DESONERADO'!$A$2:$E$15000,3,0),IFERROR(VLOOKUP(C51,COTAÇÕES!$A$2:$E$15000,3,0),IFERROR(VLOOKUP(C51,'COMP.NÃO.DESO.'!$B$1:$H$13689,3,0),""))) -> und | F51: ='MEMORIA CALC.'!D183 -> 1 | G51: =IFERROR(VLOOKUP(C51,'SEM DESONERADO'!$A$2:$E$15000,4,0),IFERROR(VLOOKUP(C51,COTAÇÕES!$A$2:$E$15000,4,0),IFERROR(VLOOKUP(C51,'COMP.NÃO.DESO.'!$B$1:$H$13689,7,0),""))) -> 7500 | H51: 7500 | I51: =IFERROR(VLOOKUP(C51,'COM DESONERADO'!$A$2:$E$15001,4,0),IFERROR(VLOOKUP(C51,COTAÇÕES!$A$2:$E$15000,4,0),IFERROR(VLOOKUP(C51,'COMP.DESO.'!$B$1:$H$15000,7,0),""))) -> 7200 | J51: 7200
A52: 6.5 | B52: C | C52: CP0152 | D52: =IFERROR(VLOOKUP(C52,'SEM DESONERADO'!$A$2:$E$15000,2,0),IFERROR(VLOOKUP(C52,COTAÇÕES!$A$2:$E$15000,2,0),IFERROR(VLOOKUP(C52,'COMP.NÃO.DESO.'!$B$1:$H$13689,2,0),""))) -> Transformador trifásico 220v para 380v trifásico em caixa blindada potência de 80kva com pês antirruídos | E52: =IFERROR(VLOOKUP(C52,'SEM DESONERADO'!$A$2:$E$15000,3,0),IFERROR(VLOOKUP(C52,COTAÇÕES!$A$2:$E$15000,3,0),IFERROR(VLOOKUP(C52,'COMP.NÃO.DESO.'!$B$1:$H$13689,3,0),""))) -> und | F52: ='MEMORIA CALC.'!D187 -> 1 | G52: =IFERROR(VLOOKUP(C52,'SEM DESONERADO'!$A$2:$E$15000,4,0),IFERROR(VLOOKUP(C52,COTAÇÕES!$A$2:$E$15000,4,0),IFERROR(VLOOKUP(C52,'COMP.NÃO.DESO.'!$B$1:$H$13689,7,0),""))) -> 9000 | H52: 9000 | I52: =IFERROR(VLOOKUP(C52,'COM DESONERADO'!$A$2:$E$15001,4,0),IFERROR(VLOOKUP(C52,COTAÇÕES!$A$2:$E$15000,4,0),IFERROR(VLOOKUP(C52,'COMP.DESO.'!$B$1:$H$15000,7,0),""))) -> 9000 | J52: 9000
A53: 6.6 | B53: C | C53: CP0153 | D53: =IFERROR(VLOOKUP(C53,'SEM DESONERADO'!$A$2:$E$15000,2,0),IFERROR(VLOOKUP(C53,COTAÇÕES!$A$2:$E$15000,2,0),IFERROR(VLOOKUP(C53,'COMP.NÃO.DESO.'!$B$1:$H$13689,2,0),""))) -> Quadro para conexão do equipamento de raios-x com proteção contra surtos (dps), sistema de proteção contra falta de fase e contactora com capacidade de 150 amperes nos contatos em caixa metálica 60cm x 50cm x 25cm, instalado | E53: =IFERROR(VLOOKUP(C53,'SEM DESONERADO'!$A$2:$E$15000,3,0),IFERROR(VLOOKUP(C53,COTAÇÕES!$A$2:$E$15000,3,0),IFERROR(VLOOKUP(C53,'COMP.NÃO.DESO.'!$B$1:$H$13689,3,0),""))) -> und | F53: ='MEMORIA CALC.'!D191 -> 1 | G53: =IFERROR(VLOOKUP(C53,'SEM DESONERADO'!$A$2:$E$15000,4,0),IFERROR(VLOOKUP(C53,COTAÇÕES!$A$2:$E$15000,4,0),IFERROR(VLOOKUP(C53,'COMP.NÃO.DESO.'!$B$1:$H$13689,7,0),""))) -> 5000 | H53: 5000 | I53: =IFERROR(VLOOKUP(C53,'COM DESONERADO'!$A$2:$E$15001,4,0),IFERROR(VLOOKUP(C53,COTAÇÕES!$A$2:$E$15000,4,0),IFERROR(VLOOKUP(C53,'COMP.DESO.'!$B$1:$H$15000,7,0),""))) -> 5000 | J53: 5000
A54: CUSTO TOTAL DE INSTALAÇÕES ELÉTRICAS | H54: =SUM(H48:H53) -> 33150 | J54: =SUM(J47:J53) -> 32850
A55: 7.0 | B55: DIVERSOS
A56: 7.1 | B56: C | C56: CP0319 | D56: =IFERROR(VLOOKUP(C56,'SEM DESONERADO'!$A$2:$E$15000,2,0),IFERROR(VLOOKUP(C56,COTAÇÕES!$A$2:$E$15000,2,0),IFERROR(VLOOKUP(C56,'COMP.NÃO.DESO.'!$B$1:$H$13689,2,0),""))) -> Limpeza final da obra | E56: =IFERROR(VLOOKUP(C56,'SEM DESONERADO'!$A$2:$E$15000,3,0),IFERROR(VLOOKUP(C56,COTAÇÕES!$A$2:$E$15000,3,0),IFERROR(VLOOKUP(C56,'COMP.NÃO.DESO.'!$B$1:$H$13689,3,0),""))) -> m² | F56: ='MEMORIA CALC.'!D198 -> 52.91 | G56: =IFERROR(VLOOKUP(C56,'SEM DESONERADO'!$A$2:$E$15000,4,0),IFERROR(VLOOKUP(C56,COTAÇÕES!$A$2:$E$15000,4,0),IFERROR(VLOOKUP(C56,'COMP.NÃO.DESO.'!$B$1:$H$13689,7,0),""))) -> 2.64 | H56: =G56*F56 -> 139.6824 | I56: =IFERROR(VLOOKUP(C56,'COM DESONERADO'!$A$2:$E$15001,4,0),IFERROR(VLOOKUP(C56,COTAÇÕES!$A$2:$E$15000,4,0),IFERROR(VLOOKUP(C56,'COMP.DESO.'!$B$1:$H$15000,7,0),""))) -> 2.4 | J56: =I56*F56 -> 126.984
A57: CUSTO TOTAL DO DIVERSOS | H57: =SUM(H56:H56) -> 139.6824 | J57: =SUM(J56:J56) -> 126.984
A59: CUSTO TOTAL DA OBRA (R$) - SEM BDI | H59: =H57+H54+H45+H40+H33+H29+H21 -> 59828.19835 | J59: =J57+J54+J45+J40+J33+J29+J21 -> 59026.65855
A60: BONIFICAÇÃO E DESPESAS INDIRETAS (R$) | H60: =(H59*$G$15) -> 12246.8322 | J60: =(J59*$J$14) -> 15636.16185
A61: CUSTO TOTAL DA OBRA COM BONIFICAÇÃO E DESPESAS INDIRETAS (R$) | H61: =ROUND(SUM(H59:H60),2) -> 72075.03 | J61: =ROUND(SUM(J59:J60),2) -> 74662.82
K66: 1800

Sheet LOGO (hidden)
B4: CIDADE | C4: SIGLA | D4: CIDADE | G4: BANDEIRA | H4: SIGLA | I4: CIDADE
B5: ALTA FLORESTA | C5: PREFEITURA DE ALTA FLORESTA | D5: 1 | H5: PREFEITURA DE URUPA | I5: =INDEX(B5:B60,MATCH(H5,C5:C60,0)) -> URUPA
B6: ALTO ALEGRE DOS PARECI | C6: PREFEITURA DE ALTO ALEGRE DOS PARECIS | D6: 2
B7: ALVORADA DO OESTE | C7: PREFEITURA DE ALVORADA DO OESTE | D7: 3 | G7: =INDEX($E$5:$E$60,MATCH($H$5,$C$5:$C$60,0)) -> 0
B8: ARIQUEMES | C8: PREFEITURA DE ARIQUEMES | D8: 4 | G8: =INDEX(LOGO!$E$5:$E$52,MATCH('PLANILHA ORÇAM.'!$A$8:$H$8,LOGO!$C$5:$C$52,0)) -> 
B9: BURITIS | C9: PREFEITURA DE BURITIS | D9: 5
B10: CABIXI | C10: PREFEITURA DE CABIXI
B11: CACAULÂNDIA | C11: PREFEITURA DE CACAULÂNDIA
B12: CACOAL | C12: PREFEITURA DE CACOAL
B13: CAMPO NOVO DE RONDÔNIA | C13: PREFEITURA DE CAMPO NOVO DE RONDÔNIA
B14: CANDEIAS DO JAMARI | C14: PREFEITURA DE CANDEIAS DO JAMARI
B15: CASTANHEIRA | C15: PREFEITURA DE CASTANHEIRA
B16: CEREJEIRAS | C16: PREFEITURA DE CEREJEIRAS
B17: CHUPINGUAIA | C17: PREFEITURA DE CHUPINGUAIA
B18: COLORADO DO OESTE | C18: PREFEITURA DE COLORADO DO OESTE
B19: CORUMBIARA | C19: PREFEITURA DE CORUMBIARA
B20: COSTA MARQUES | C20: PREFEITURA DE COSTA MARQUES
B21: CUJUBIM | C21: PREFEITURA DE CUJUBIM
B22: ESPIGÃO DO OESTE | C22: PREFEITURA DE ESPIGÃO DO OESTE
B23: GOVERNADOR JORGE TEIXEIRA | C23: PREFEITURA DE GOVERNADOR JORGE TEIXEIRA
B24: GUAJARA MIRIM | C24: PREFEITURA DE GUAJARA MIRIM
B25: ITAPUÃ DO OESTE | C25: PREFEITURA DE ITAPUÃ DO OESTE
B26: JARU | C26: PREFEITURA DE JARU
B27: JI-PARANA | C27: PREFEITURA DE JI-PARANA
B28: MACHADINHO D'OESTE | C28: PREFEITURA DE MACHADINHO D'OESTE
B29: MINISTRO ANDREAZZA | C29: PREFEITURA DE MINISTRO ANDREAZZA
B30: MIRANTE DA SERRA | C30: PREFEITURA DE MIRANTE DA SERRA
B31: NOVA BRASILÂNDIA DO OESTE | C31: PREFEITURA DE NOVA BRASILÂNDIA DO OESTE
B32: NOVA MAMORÉ | C32: PREFEITURA DE NOVA MAMORÉ
B33: NOVO HORIZONTE DO OESTE | C33: PREFEITURA DE NOVO HORIZONTE DO OESTE
B34: PARECIS | C34: PREFEITURA DE PARECIS
B35: PIMENTA BUENO | C35: PREFEITURA DE PIMENTA BUENO
B36: PIMENTEIRAS DO OESTE | C36: PREFEITURA DE PIMENTEIRAS DO OESTE
B37: PORTO VELHO | C37: PREFEITURA DE PORTO VELHO
B38: PRESIDENTE MEDICI | C38: PREFEITURA DE PRESIDENTE MEDICI
B39: PRIMAVERA DE RONDÔNIA | C39: PREFEITURA DE PRIMAVERA DE RONDÔNIA
B40: RIO CRESPO | C40: PREFEITURA DE RIO CRESPO
B41: ROLIM DE MOURA | C41: PREFEITURA DE ROLIM DE MOURA
B42: SANTA LUZIA DO OESTE | C42: PREFEITURA DE SANTA LUZIA DO OESTE
B43: SÃO FELIPE DO OESTE | C43: PREFEITURA DE SÃO FELIPE DO OESTE
B44: SÃO FRANCISCO DO GUAPORÉ | C44: PREFEITURA DE SÃO FRANCISCO DO GUAPORÉ
B45: SÃO MIGUEL DO GUAPORÉ | C45: PREFEITURA DE SÃO MIGUEL DO GUAPORÉ
B46: SERINGUEIRAS | C46: PREFEITURA DE SERINGUEIRAS
B47: TEIXEIRÓPOLIS | C47: PREFEITURA DE TEIXEIRÓPOLIS
B48: THEOBROMA | C48: PREFEITURA DE THEOBROMA
B49: URUPA | C49: PREFEITURA DE URUPA
B50: VALE DO ANARI | C50: PREFEITURA DE VALE DO ANARI
B51: VALE DO PARAISO | C51: PREFEITURA DE VALE DO PARAISO
B52: VILHENA | C52: PREFEITURA DE VILHENA

Sheet CARIMBO (hidden)
B4: CIDADE | C4: PROFISSIONAL | D4: CIDADE | E4: BANDEIRA | G4: BANDEIRA | H4: PROFISSIONAL | I4: CIDADE
C5: ELAINE | H5: NENHUM
C6: JOÃO
C7: LUIZ | G7: =INDEX($E$5:$E$10,MATCH($H$5,$C$5:$C$10,0)) -> 
C8: MPC
C9: MICHAELL
C10: RODRIGO
C11: NENHUM

Sheet MEMORIA CALC.
A6: ='PLANILHA ORÇAM.'!A7:H7 -> GOVERNO DE RONDÔNIA
A7: ='PLANILHA ORÇAM.'!A8:H8 -> PREFEITURA DE CEREJEIRAS
A9: MEMÓRIA DE CÁLCULO
A11: ='PLANILHA ORÇAM.'!A12 -> OBRA : | B11: ='PLANILHA ORÇAM.'!B12 -> REFORMA DA SALA DE RAIO-X DO HOSPITAL
A12: ='PLANILHA ORÇAM.'!A13 -> END. : | B12: ='PLANILHA ORÇAM.'!B13 -> RUA NOVA ZELÂNDIA,1192, BAIRRO CENTRO
A13: ='PLANILHA ORÇAM.'!A14 -> LOCAL: | B13: ='PLANILHA ORÇAM.'!B14 -> CEREJEIRAS / RO
A14: ='PLANILHA ORÇAM.'!A15 -> ÁREA : | B14: ='PLANILHA ORÇAM.'!B15 -> 52,91m²
A16: 1.0 | B16: ='PLANILHA ORÇAM.'!B19 -> SERVIÇOS PRELIMINARES
A18: ='PLANILHA ORÇAM.'!A20 -> 1.1 | B18: ='PLANILHA ORÇAM.'!D20 -> Placa de obra em chapa de aco galvanizado
B20: Larg.(m) | D20: Alt.(m) | F20: Área (m²)
B21: 2.4 | C21: x | D21: 1.2 | E21: = | F21: =ROUND(D21*B21,2) -> 2.88
B23: TOTAL | C23: = | D23: =SUM(F21) -> 2.88 | E23: ='PLANILHA ORÇAM.'!E20 -> m²
A25: ='PLANILHA ORÇAM.'!A22 -> 2.0 | B25: ='PLANILHA ORÇAM.'!B22:H22 -> DEMOLIÇÕES E RETIRADAS
A27: ='PLANILHA ORÇAM.'!A23 -> 2.1 | B27: ='PLANILHA ORÇAM.'!D23 -> Remocao de vidro comum
B29: Comp.(m) | C29: x | D29: Altura(m) | E29: = | F29: Área (m²)
B30: 0.8 | C30: x | D30: 0.4 | E30: = | F30: =ROUND(B30*D30,2) -> 0.32 | G30: J2
D31: TOTAL | E31: = | F31: =SUM(F30:F30) -> 0.32 | G31: m²
B33: TOTAL | C33: = | D33: =F31 -> 0.32 | E33: ='PLANILHA ORÇAM.'!E23 -> m²
A35: ='PLANILHA ORÇAM.'!A24 -> 2.2 | B35: ='PLANILHA ORÇAM.'!D24 -> Remoção de Pintura
B37: Perím.(m) | C37: x | D37: Altura(m) | E37: = | F37: Área (m²)
B38: 7.7 | C38: x | D38: 3 | E38: = | F38: =ROUND(B38*D38,2) -> 23.1 | G38: Hall Raio X
B39: 22.19 | C39: x | D39: 3 | E39: = | F39: =ROUND(B39*D39,2) -> 66.57 | G39: Raio X
B40: 6.14 | C40: x | D40: 3 | E40: = | F40: =ROUND(B40*D40,2) -> 18.42 | G40: Comando
B41: 9.7 | C41: x | D41: 3 | E41: = | F41: =ROUND(B41*D41,2) -> 29.1 | G41: Revelação
B42: 9.2 | C42: x | D42: 3 | E42: = | F42: =ROUND(B42*D42,2) -> 27.6 | G42: Descanso Radiologia
D43: TOTAL | E43: = | F43: =SUM(F38:F42) -> 164.79 | G43: =E60 -> m²
B45: Descontar Vãos
B46: Larg.(m) | D46: Alt.(m) | F46: Quant./Lados | H46: Área (m²)
B47: 1.2 | C47: x | D47: 2.1 | E47: x | F47: 1 | G47: → | H47: =ROUND(B47*D47*F47,2) -> 2.52 | I47: Vão Hall
B48: 0.8 | C48: x | D48: 2.1 | E48: x | F48: 2 | G48: → | H48: 3.36 | I48: P1
B49: 0.6 | C49: x | D49: 2.1 | E49: x | F49: 5 | G49: → | H49: 6.3 | I49: P2/P4
B50: 1.2 | C50: x | D50: 2.1 | E50: x | F50: 2 | G50: → | H50: 5.04 | I50: P3
B51: 1.2 | C51: x | D51: 2.1 | E51: x | F51: 1 | G51: → | H51: 2.52 | I51: P5
B52: 0.85 | C52: x | D52: 1 | E52: x | F52: 1 | G52: → | H52: 0.85 | I52: J1
B53: 0.8 | C53: x | D53: 0.4 | E53: x | F53: 2 | G53: → | H53: 0.64 | I53: J2
B54: 0.86 | C54: x | D54: 2.1 | E54: x | F54: 1 | G54: → | H54: 1.81 | I54: A1
F55: TOTAL VÃOS | G55: = | H55: =SUM(H47:H54) -> 23.04 | I55: =E60 -> m²
B57: Pintura | D57: Vãos
B58: =F43 -> 164.79 | C58: - | D58: =H55 -> 23.04 | E58: = | F58: =B58-D58 -> 141.75 | G58: =E60 -> m²
B60: TOTAL | C60: = | D60: =F58 -> 141.75 | E60: ='PLANILHA ORÇAM.'!E24 -> m²
A62: ='PLANILHA ORÇAM.'!A25 -> 2.3 | B62: ='PLANILHA ORÇAM.'!D25 -> Demolição de alvenaria de bloco furado, de forma manual, sem reaproveitamento. af_12/2017
B64: Comp.(m) | D64: Alt.(m) | F64: Espessura (m) | H64: Quant.(und) | J64: Vol.(m³)
B65: 0.86 | C65: x | D65: 2.1 | E65: x | F65: 0.15 | G65: x | H65: 1 | I65: = | J65: =ROUND(B65*D65*F65*H65,2) -> 0.27 | K65: A1
H66: SUBTOTAL | I66: = | J66: =SUM(J65:J65) -> 0.27 | K66: m³
B68: TOTAL | C68: = | D68: =J66 -> 0.27 | E68: ='PLANILHA ORÇAM.'!E25 -> m³
A70: ='PLANILHA ORÇAM.'!A26 -> 2.4 | B70: ='PLANILHA ORÇAM.'!D26 -> Remoção de portas, de forma manual, sem reaproveitamento. af_12/2017
B72: Larg.(m) | D72: Alt.(m) | F72: Quant.(und) | H72: Área (m²)
B73: 0.8 | C73: x | D73: 2.1 | E73: x | F73: 1 | G73: = | H73: =ROUND(B73*D73*F73,2) -> 1.68 | I73: P1
B74: 0.6 | C74: x | D74: 2.1 | E74: x | F74: 2 | G74: = | H74: =ROUND(B74*D74*F74,2) -> 2.52 | I74: P2
B75: 1.2 | C75: x | D75: 2.1 | E75: x | F75: 1 | G75: = | H75: =ROUND(B75*D75*F75,2) -> 2.52 | I75: P3
D76: TOTAL | F76: TOTAL | G76: = | H76: =SUM(H73:H75) -> 6.72 | I76: =E78 -> m²
B78: TOTAL | C78: = | D78: =H76 -> 6.72 | E78: ='PLANILHA ORÇAM.'!E26 -> m²
A80: ='PLANILHA ORÇAM.'!A27 -> 2.5 | B80: ='PLANILHA ORÇAM.'!D27 -> Carga e descarga mecanizadas de entulho em caminhao basculante 6 m3
B82: Item | D82: Área (m²) | F82: Espessura (m) | H82: Vol.(m³)
B83: =A27 -> 2.1 | C83: = | D83: =D33 -> 0.32 | E83: x | F83: 0.08 | G83: = | H83: =ROUND(D83*F83,2) -> 0.03
B84: =A35 -> 2.2 | C84: = | D84: =D60 -> 141.75 | E84: x | F84: 0.02 | G84: = | H84: =ROUND(D84*F84,2) -> 2.84
B85: =A62 -> 2.3 | C85: = | D85: =D68 -> 0.27 | G85: = | H85: =D85 -> 0.27
B86: =A70 -> 2.4 | C86: = | D86: =D78 -> 6.72 | E86: x | F86: 0.05 | G86: = | H86: =ROUND(D86*F86,2) -> 0.34
F87: TOTAL | G87: = | H87: =SUM(H83:H86) -> 3.48 | I87: =E89 -> m³
B89: TOTAL | C89: = | D89: =H87 -> 3.48 | E89: ='PLANILHA ORÇAM.'!E27 -> m³
A91: ='PLANILHA ORÇAM.'!A28 -> 2.6 | B91: ='PLANILHA ORÇAM.'!D28 -> Transporte de entulho com caminhao basculante 6 m3, rodovia pavimentada, dmt 0,5 a 1,0 km
B92: → Idem ao total de carga e descarga mecanizada de entulho
B94: TOTAL | C94: = | D94: =D89 -> 3.48 | E94: ='PLANILHA ORÇAM.'!E28 -> m³
A96: ='PLANILHA ORÇAM.'!A30 -> 3.0 | B96: ='PLANILHA ORÇAM.'!B30:H30 -> REVESTIMENTOS DE PAREDES
A98: ='PLANILHA ORÇAM.'!A31 -> 3.1 | B98: ='PLANILHA ORÇAM.'!D31 -> Chapisco aplicado em alvenarias e estruturas de concreto internas, com colher de pedreiro. argamassa traço 1:3 com preparo manual. af_06/2014
B100: Per.(m) | D100: Alt.(m) | F100: Quant./ Lados (und) | H100: Área (m²)
B101: 22.19 | C101: x | D101: 3 | E101: x | F101: 1 | G101: = | H101: =ROUND(B101*D101*F101,2) -> 66.57 | I101: Raio X
F102: SUBTOTAL | G102: = | H102: =SUM(H101:H101) -> 66.57 | I102: =E115 -> m²
B104: Descontar Vãos
B105: Largura (m) | D105: Alt.(m) | F105: Quant./ Lados (und) | H105: Área do vão (m²)
B106: 0.8 | C106: x | D106: 2.1 | E106: x | F106: 1 | G106: → | H106: =ROUND(B106*D106*F106,2) -> 1.68 | I106: P1
B107: 0.6 | C107: x | D107: 2.1 | E107: x | F107: 2 | G107: → | H107: =ROUND(B107*D107*F107,2) -> 2.52 | I107: P2
B108: 1.2 | C108: x | D108: 2.1 | E108: x | F108: 1 | G108: → | H108: =ROUND(B108*D108*F108,2) -> 2.52 | I108: P3
B109: 0.8 | C109: x | D109: 0.4 | E109: x | F109: 1 | G109: → | H109: =ROUND(B109*D109*F109,2) -> 0.32 | I109: J2
F110: TOTAL DE VÃOS | G110: = | H110: =SUM(H106:H109) -> 7.04 | I110: =E115 -> m²
B112: Subtotal | D112: Vãos
B113: =H102 -> 66.57 | C113: - | D113: =H110 -> 7.04 | E113: = | F113: =B113-D113 -> 59.53 | G113: =E115 -> m²
B115: TOTAL | C115: = | D115: =F113 -> 59.53 | E115: ='PLANILHA ORÇAM.'!E31 -> m²
A117: ='PLANILHA ORÇAM.'!A32 -> 3.2 | B117: ='PLANILHA ORÇAM.'!D32 -> Argamassa Baritada (espessura 2,0cm)
B118: → Idem ao total de chapisco
B120: TOTAL | C120: = | D120: =D115 -> 59.53 | E120: ='PLANILHA ORÇAM.'!E32 -> m²
A122: ='PLANILHA ORÇAM.'!A34 -> 4.0 | B122: ='PLANILHA ORÇAM.'!B34:H34 -> ESQUADRIAS
A124: ='PLANILHA ORÇAM.'!A35 -> 4.1 | B124: ='PLANILHA ORÇAM.'!D35 -> Kit de porta de madeira para pintura, semi-oca (leve ou média), padrão médio, 80x210cm, espessura de 3,5cm, itens inclusos: dobradiças, montagem e instalação do batente, fechadura com execução do furo - fornecimento e instalação. af_08/2015
B126: TOTAL | C126: = | D126: 1 | E126: ='PLANILHA ORÇAM.'!E35 -> und | F126: P8
A128: ='PLANILHA ORÇAM.'!A36 -> 4.2 | B128: ='PLANILHA ORÇAM.'!D36 -> Porta radiológica em madeira, dimensões 1,20m x 2,10m, espessura do chumbo = 2mm
B130: TOTAL | C130: = | D130: 1 | E130: ='PLANILHA ORÇAM.'!E36 -> und | F130: P9
A132: ='PLANILHA ORÇAM.'!A37 -> 4.3 | B132: ='PLANILHA ORÇAM.'!D37 -> Porta radiológica em madeira, dimensões 0,80m x 2,10m, espessura do chumbo = 2mm
B134: TOTAL | C134: = | D134: 1 | E134: ='PLANILHA ORÇAM.'!E37 -> und | F134: P7
A136: ='PLANILHA ORÇAM.'!A38 -> 4.4 | B136: ='PLANILHA ORÇAM.'!D38 -> Porta radiológica em madeira, dimensões 0,60m x 2,10m, espessura do chumbo = 2mm
B138: TOTAL | C138: = | D138: 2 | E138: ='PLANILHA ORÇAM.'!E38 -> und | F138: P6
A140: ='PLANILHA ORÇAM.'!A39 -> 4.5 | B140: ='PLANILHA ORÇAM.'!D39 -> Vidro plumbifero, dimensões 0,80m x 0,40m
B142: TOTAL | C142: = | D142: 1 | E142: ='PLANILHA ORÇAM.'!E39 -> und | F142: J3
A144: ='PLANILHA ORÇAM.'!A41 -> 5.0 | B144: ='PLANILHA ORÇAM.'!B41:H41 -> PINTURA
A146: ='PLANILHA ORÇAM.'!A42 -> 5.1 | B146: ='PLANILHA ORÇAM.'!D42 -> Aplicação e lixamento de massa látex em paredes, duas demãos. af_06/2014
B147: → Idem ao total de argamassa baritada
B149: TOTAL | C149: = | D149: =D120 -> 59.53 | E149: ='PLANILHA ORÇAM.'!E42 -> m²
A151: ='PLANILHA ORÇAM.'!A43 -> 5.2 | B151: ='PLANILHA ORÇAM.'!D43 -> Aplicação manual de pintura com tinta látex acrílica em paredes, duas demãos. af_06/2014
B152: → Idem ao total de remoção de pintura
B154: TOTAL | C154: = | D154: =D60 -> 141.75 | E154: ='PLANILHA ORÇAM.'!E43 -> m²
A156: ='PLANILHA ORÇAM.'!A44 -> 5.3 | B156: ='PLANILHA ORÇAM.'!D44 -> Verniz sintetico brilhante, 2 demaos
B158: Larg.(m) | D158: Alt.(m) | F158: Quant./ Lados (und) | H158: Área (m²)
B159: 0.6 | C159: x | D159: 2.1 | E159: x | F159: 6 | G159: = | H159: =ROUND((B159*D159*F159),2) -> 7.56 | I159: P4/P6
B160: 1.2 | C160: x | D160: 2.1 | E160: x | F160: 4 | G160: = | H160: =ROUND((B160*D160*F160),2) -> 10.08 | I160: P5/P9
B161: 0.8 | C161: x | D161: 2.1 | E161: x | F161: 4 | G161: = | H161: =ROUND((B161*D161*F161),2) -> 6.72 | I161: P7/P8
H162: =SUM(H159:H161) -> 24.36 | I162: =E163 -> m²
B163: TOTAL | C163: = | D163: =H162 -> 24.36 | E163: ='PLANILHA ORÇAM.'!E44 -> m²
A165: ='PLANILHA ORÇAM.'!A46 -> 6.0 | B165: ='PLANILHA ORÇAM.'!B46:H46 -> INSTALAÇÕES ELÉTRICAS
B167: ='PLANILHA ORÇAM.'!A47:A47 -> Alimentação
A169: ='PLANILHA ORÇAM.'!A48 -> 6.1 | B169: ='PLANILHA ORÇAM.'!D48 -> Desmontagem do equipamento TECNO DESING e armazenagem do mesmo em local adequado
B171: TOTAL | C171: = | D171: 1 | E171: ='PLANILHA ORÇAM.'!E48 -> und
A173: ='PLANILHA ORÇAM.'!A49 -> 6.2 | B173: ='PLANILHA ORÇAM.'!D49 -> Colocação de caixas metálicas de interligação no piso conforme layout fornecido pelo fabricante VMI TECNOLOGIAS
B175: TOTAL | C175: = | D175: 1 | E175: ='PLANILHA ORÇAM.'!E49 -> und
A177: ='PLANILHA ORÇAM.'!A50 -> 6.3 | B177: ='PLANILHA ORÇAM.'!D50 -> Confecção de aterramento exclusivo para o equipamento com aproximadamente 3 a 5 ohms de resistência especificações do fabricante
B179: TOTAL | C179: = | D179: 1 | E179: ='PLANILHA ORÇAM.'!E50 -> und
A181: ='PLANILHA ORÇAM.'!A51 -> 6.4 | B181: ='PLANILHA ORÇAM.'!D51 -> Confecção do quadro de potência para conexão do equipamento conforme especificações descriminadas pelo fabricante cx moldada 36ka interruptor diferencial 63 amp.,380v tipo b, quatro módulos dps, contactora de 80amp., proteção contra falta de fase e temporizador ajustado em o,3s de retardo montado em quadro medindo 1,20m x 0,6m x 0,22m
B183: TOTAL | C183: = | D183: 1 | E183: ='PLANILHA ORÇAM.'!E51 -> und
A185: ='PLANILHA ORÇAM.'!A52 -> 6.5 | B185: ='PLANILHA ORÇAM.'!D52 -> Transformador trifásico 220v para 380v trifásico em caixa blindada potência de 80kva com pês antirruídos
B187: TOTAL | C187: = | D187: 1 | E187: ='PLANILHA ORÇAM.'!E52 -> und
A189: ='PLANILHA ORÇAM.'!A53 -> 6.6 | B189: ='PLANILHA ORÇAM.'!D53 -> Quadro para conexão do equipamento de raios-x com proteção contra surtos (dps), sistema de proteção contra falta de fase e contactora com capacidade de 150 amperes nos contatos em caixa metálica 60cm x 50cm x 25cm, instalado
B191: TOTAL | C191: = | D191: 1 | E191: ='PLANILHA ORÇAM.'!E53 -> und
A193: ='PLANILHA ORÇAM.'!A55 -> 7.0 | B193: ='PLANILHA ORÇAM.'!B55:H55 -> DIVERSOS
A195: ='PLANILHA ORÇAM.'!A56 -> 7.1 | B195: ='PLANILHA ORÇAM.'!D56 -> Limpeza final da obra
B196: → Idem a área da obra
B198: TOTAL | C198: = | D198: 52.91 | E198: m²

Sheet CRONOGRAMA
A8: ='PLANILHA ORÇAM.'!$A$7:$H$7 -> GOVERNO DE RONDÔNIA
A9: ='PLANILHA ORÇAM.'!$A$8 -> PREFEITURA DE CEREJEIRAS
A11: CRONOGRAMA FISICO-FINANCEIRO
A13: ='PLANILHA ORÇAM.'!$A$12 -> OBRA : | B13: ='PLANILHA ORÇAM.'!$B$12 -> REFORMA DA SALA DE RAIO-X DO HOSPITAL
A14: ='PLANILHA ORÇAM.'!$A$13 -> END. : | B14: ='PLANILHA ORÇAM.'!$B$13 -> RUA NOVA ZELÂNDIA,1192, BAIRRO CENTRO | E14: ='PLANILHA ORÇAM.'!$F$12 -> FONTES : | F14: ='PLANILHA ORÇAM.'!$G$12 -> "A" - SINAPI/ABRIL/2019
A15: ='PLANILHA ORÇAM.'!$A$14 -> LOCAL: | B15: ='PLANILHA ORÇAM.'!$B$14 -> CEREJEIRAS / RO | F15: ='PLANILHA ORÇAM.'!$G$14 -> "C" - COMPOSIÇÃO DE CUSTO
A16: ='PLANILHA ORÇAM.'!$A$15 -> ÁREA : | B16: ='PLANILHA ORÇAM.'!$B$15 -> 52,91m² | E16: ='PLANILHA ORÇAM.'!$F$15 -> BDI: | F16: ='PLANILHA ORÇAM.'!$G$15 -> 0.2047
A17: ITEM | B17: DISCRIMINAÇÃO | C17: PRAZO DE EXECUÇÃO | F17: TOTAL | G17: % | I17: TOTAL
C18: 30 DIAS | D18: 60 DIAS | E18: 90 DIAS
A19: ='PLANILHA ORÇAM.'!A19 -> 1.0 | B19: ='PLANILHA ORÇAM.'!B19:H19 -> SERVIÇOS PRELIMINARES | C19: 1 | F19: =SUM(C20:E20) -> 899.5104 | G19: =F19/F$33 -> 0.01503489032 | I19: =RESUMO!C18 -> 899.5104
C20: =C19*$I$19 -> 899.5104
A21: ='PLANILHA ORÇAM.'!A22 -> 2.0 | B21: ='PLANILHA ORÇAM.'!B22:H22 -> DEMOLIÇÕES E RETIRADAS | C21: 1 | F21: =SUM(C22:E22) -> 1370.0203 | G21: =F21/F$33 -> 0.02289924045 | I21: =RESUMO!C19 -> 1370.0203
C22: =C21*$I$21 -> 1370.0203
A23: ='PLANILHA ORÇAM.'!A30 -> 3.0 | B23: ='PLANILHA ORÇAM.'!B30:H30 -> REVESTIMENTOS DE PAREDES | C23: 0.25 | D23: 0.75 | F23: =SUM(C24:E24) -> 3821.52835 | G23: =F23/F$33 -> 0.06387503644 | I23: =RESUMO!C20 -> 3821.52835
C24: =C23*$I$23 -> 955.3820875 | D24: =D23*$I$23 -> 2866.146262
A25: ='PLANILHA ORÇAM.'!A34 -> 4.0 | B25: ='PLANILHA ORÇAM.'!B34 -> ESQUADRIAS | E25: 1 | F25: =SUM(C26:E26) -> 17608.68 | G25: =F25/F$33 -> 0.2943207465 | I25: =RESUMO!C21 -> 17608.68
E26: =E25*$I$25 -> 17608.68
A27: ='PLANILHA ORÇAM.'!A41 -> 5.0 | B27: ='PLANILHA ORÇAM.'!B41:H41 -> PINTURA | D27: 0.25 | E27: 0.75 | F27: =SUM(C28:E28) -> 2838.7769 | G27: =F27/F$33 -> 0.0474488114 | I27: =RESUMO!C22 -> 2838.7769
D28: =D27*$I$27 -> 709.694225 | E28: =E27*$I$27 -> 2129.082675
A29: ='PLANILHA ORÇAM.'!A46 -> 6.0 | B29: ='PLANILHA ORÇAM.'!B46:H46 -> INSTALAÇÕES ELÉTRICAS | D29: 0.5 | E29: 0.5 | F29: =SUM(C30:E30) -> 33150 | G29: =F29/F$33 -> 0.5540865497 | I29: =RESUMO!C23 -> 33150
D30: =D29*$I$29 -> 16575 | E30: =E29*$I$29 -> 16575
A31: ='PLANILHA ORÇAM.'!A55 -> 7.0 | B31: ='PLANILHA ORÇAM.'!B55:H55 -> DIVERSOS | E31: 1 | F31: =SUM(C32:E32) -> 139.6824 | G31: =F31/F$33 -> 0.002334725161 | I31: =RESUMO!C24 -> 139.6824
E32: =E31*$I$31 -> 139.6824
B33: VALOR TOTAL | F33: =SUM(F19:F32) -> 59828.19835 | G33: =SUM(G19:G32) -> 1 | I33: =ROUND(SUM(I19:I32),2) -> 59828.2
B34: Percentual parcial | C34: =C35/I33 -> 0.0539028884 | D34: =D35/I33 -> 0.3368117458 | E34: =E35/I33 -> 0.6092853383
B35: Valor parcial | C35: =C32+C30+C28+C26+C24+C22+C20 -> 3224.912787 | D35: =D32+D30+D28+D26+D24+D22+D20 -> 20150.84049 | E35: 36452.44508
B36: Valor parcial BDI | C36: =C35*$F$16 -> 660.1396476 | D36: =D35*$F$16 -> 4124.877048 | E36: =E35*$F$16 -> 7461.815507
B37: Valor parcial com BDI | C37: =C35+C36 -> 3885.052435 | D37: =D35+D36 -> 24275.71754 | E37: 43914.26058
B38: Percentual acumulado | C38: =C34 -> 0.0539028884 | D38: =C38+D34 -> 0.3907146342 | E38: 0.9999999724
B39: Valor acumulado | C39: =C35 -> 3224.912787 | D39: =C39+D35 -> 23375.75327 | E39: =D39+E35 -> 59828.19835
B40: Valor acumulado com BDI | C40: =C39*(1+$F$16) -> 3885.052435 | D40: =D39*(1+$F$16) -> 28160.76997 | E40: =E39*(1+$F$16) -> 72075.03055
G43: ='PLANILHA ORÇAM.'!H61 -> 72075.03 | I43: ='PLANILHA ORÇAM.'!H59 -> 59828.19835

Sheet COMP.NÃO.DESO.
A7: GOVERNO DE RONDÔNIA
A8: ='PLANILHA ORÇAM.'!$A$8:$H$8 -> PREFEITURA DE CEREJEIRAS
A10: COMPOSIÇÃO DE CUSTO
A12: OBRA : | B12: ='PLANILHA ORÇAM.'!B12 -> REFORMA DA SALA DE RAIO-X DO HOSPITAL | F12: REF.: | G12: "C" - COMPOSIÇÃO SINAPI
A13: END. : | B13: ='PLANILHA ORÇAM.'!B13 -> RUA NOVA ZELÂNDIA,1192, BAIRRO CENTRO | G13: "I" - INSUMO SINAPI
A14: LOCAL: | B14: ='PLANILHA ORÇAM.'!B14 -> CEREJEIRAS / RO | G14: "CDER" - COMPOSIÇÃO DER
A15: ÁREA : | B15: ='PLANILHA ORÇAM.'!B15 -> 52,91m² | G15: "IDER" - INSUMO DER
A16: DEMOLIÇÕES E RETIRADAS
A17: DESCRIÇÃO
A18: =B29 -> CP0008 | B18: REF. | C18: SINAPI | D18: Remoção de Pintura | E18: Und. | F18: Coef. | G18: Vl. Unit. | H18: UNID.
A19: CÓDIGO | H19: m²
A20: ='PLANILHA ORÇAM.'!A24 -> 2.2
A21: ITEM | H21: Vl. Parcial
A22: Materiais
A23: 1 | B23: =IFERROR(VLOOKUP(C23,'SEM DESONERADO'!$A$2:$E$15000,5,0),"-") -> I | C23: 3767 | D23: =IFERROR(VLOOKUP(C23,'SEM DESONERADO'!$A$2:$E$15000,2,0),IFERROR(VLOOKUP(C23,COTAÇÕES!$A$2:$E$15000,2,0),"")) -> Lixa em folha para parede ou madeira, numero 120 (cor vermelha) | E23: =IFERROR(VLOOKUP(C23,'SEM DESONERADO'!$A$2:$E$15000,3,0),IFERROR(VLOOKUP(C23,COTAÇÕES!$A$2:$E$15000,3,0),"")) -> und | F23: 0.5 | G23: =IFERROR(VLOOKUP(C23,'SEM DESONERADO'!$A$2:$E$15000,4,0),IFERROR(VLOOKUP(C23,COTAÇÕES!$A$2:$E$15000,4,0),"")) -> 0.57 | H23: =ROUND(G23*F23,2) -> 0.29
A24: Total material | H24: =SUM(H23:H23) -> 0.29
A25: Mão de Obra
A26: 1 | B26: =IFERROR(VLOOKUP(C26,'SEM DESONERADO'!$A$2:$E$15000,5,0),"-") -> C | C26: 88316 | D26: =IFERROR(VLOOKUP(C26,'SEM DESONERADO'!$A$2:$E$15000,2,0),IFERROR(VLOOKUP(C26,COTAÇÕES!$A$2:$E$15000,2,0),"")) -> Servente com encargos complementares | E26: =IFERROR(VLOOKUP(C26,'SEM DESONERADO'!$A$2:$E$15000,3,0),IFERROR(VLOOKUP(C26,COTAÇÕES!$A$2:$E$15000,3,0),"")) -> h | F26: 0.5 | G26: =IFERROR(VLOOKUP(C26,'SEM DESONERADO'!$A$2:$E$15000,4,0),IFERROR(VLOOKUP(C26,COTAÇÕES!$A$2:$E$15000,4,0),"")) -> 17.33 | H26: =ROUND(G26*F26,2) -> 8.67
A27: Total mão de obra | H27: =SUM(H26:H26) -> 8.67
B29: CP0008 | C29: =D18 -> Remoção de Pintura | D29: =H19 -> m² | G29: CUSTO TOTAL DA COMPOSIÇÃO | H29: =SUM(H24,H27) -> 8.96 | I29: !!!!
A30: FONTE: Coeficientes tem como base cálculos a composição nº 72125 localizada na página 2467 da SINAPI PCN Abril - 2016. | I30: IR PARA REFERÊNCIA
A31: REVESTIMENTOS DE PAREDES
A32: DESCRIÇÃO
A33: =B45 -> CP0386 | B33: REF. | C33: SINAPI | D33: Argamassa Baritada (espessura 2,0cm) | E33: Und. | F33: Coef. | G33: Vl. Unit. | H33: UNID.
A34: CÓDIGO | H34: m²
A35: ='PLANILHA ORÇAM.'!A32 -> 3.2
A36: ITEM | H36: Vl. Parcial
A37: Materiais | I37: =29.9/20 -> 1.495
A38: 1 | B38: =IFERROR(VLOOKUP(C38,'SEM DESONERADO'!$A$2:$E$15000,5,0),"-") -> - | C38: COTAÇÃO | D38: Argamassa Baritada, rendimento 40kg/m² | E38: kg | F38: 40 | G38: =MEDIAN((32.8/40),(29.9/20),(0.8)) -> 0.82 | H38: =G38*F38 -> 32.8 | I38: =32.8/40 -> 0.82
A39: Total material | H39: =SUM(H38:H38) -> 32.8 | I39: 0.8
A40: Mão de Obra
A41: 1 | B41: =IFERROR(VLOOKUP(C41,'SEM DESONERADO'!$A$2:$E$15000,5,0),"-") -> C | C41: 88316 | D41: =IFERROR(VLOOKUP(C41,'SEM DESONERADO'!$A$2:$E$15000,2,0),IFERROR(VLOOKUP(C41,COTAÇÕES!$A$2:$E$15000,2,0),"")) -> Servente com encargos complementares | E41: =IFERROR(VLOOKUP(C41,'SEM DESONERADO'!$A$2:$E$15000,3,0),IFERROR(VLOOKUP(C41,COTAÇÕES!$A$2:$E$15000,3,0),"")) -> h | F41: 0.5 | G41: =IFERROR(VLOOKUP(C41,'SEM DESONERADO'!$A$2:$E$15000,4,0),IFERROR(VLOOKUP(C41,COTAÇÕES!$A$2:$E$15000,4,0),"")) -> 17.33 | H41: =G41*F41 -> 8.665
A42: 2 | B42: =IFERROR(VLOOKUP(C42,'SEM DESONERADO'!$A$2:$E$15000,5,0),"-") -> C | C42: 88309 | D42: =IFERROR(VLOOKUP(C42,'SEM DESONERADO'!$A$2:$E$15000,2,0),IFERROR(VLOOKUP(C42,COTAÇÕES!$A$2:$E$15000,2,0),"")) -> Pedreiro com encargos complementares | E42: =IFERROR(VLOOKUP(C42,'SEM DESONERADO'!$A$2:$E$15000,3,0),IFERROR(VLOOKUP(C42,COTAÇÕES!$A$2:$E$15000,3,0),"")) -> h | F42: 1 | G42: =IFERROR(VLOOKUP(C42,'SEM DESONERADO'!$A$2:$E$15000,4,0),IFERROR(VLOOKUP(C42,COTAÇÕES!$A$2:$E$15000,4,0),"")) -> 19.1 | H42: =G42*F42 -> 19.1
A43: Total mão de obra | H43: =SUM(H41:H42) -> 27.765
B45: CP0386 | C45: =D33 -> Argamassa Baritada (espessura 2,0cm) | D45: =H34 -> m² | G45: CUSTO TOTAL DA COMPOSIÇÃO | H45: =SUM(H39,H43) -> 60.565 | I45: !!!!
A46: FONTE: Coeficientes tem como base cálculos elaborados pelo responsável técnico.
A47: INSTALAÇÕES ELÉTRICAS
A48: DESCRIÇÃO
A49: =B56 -> CP0148 | B49: REF. | C49: CÓDIGO | D49: Desmontagem do equipamento TECNO DESING e armazenagem do mesmo em local adequado | E49: UND | F49: COEF. | G49: VL.UNIT | H49: UNID.
A50: CÓDIGO | H50: und
A51: ='PLANILHA ORÇAM.'!A48 -> 6.1
A52: ITEM | H52: VL.PARCIAL
A53: Materiais
A54: 1 | B54: =IFERROR(VLOOKUP(C54,'SEM DESONERADO'!$A$2:$E$15000,5,0),"-") -> - | C54: COTAÇÃO | D54: =D49 -> Desmontagem do equipamento TECNO DESING e armazenagem do mesmo em local adequado | E54: und | F54: 1 | G54: 3000 | H54: =ROUND(G54*F54,2) -> 3000 | I54: 3000 | J54: 2836 | K54: 3000
B56: CP0148 | C56: =D49 -> Desmontagem do equipamento TECNO DESING e armazenagem do mesmo em local adequado | D56: =H50 -> und | G56: CUSTO TOTAL DA COMPOSIÇÃO | H56: =H54 -> 3000 | I56: !!!!
A57: FONTE: Coeficientes tem como base cálculos elaborados pelo responsável técnico. | I57: IR PARA REFERÊNCIA
A58: DESCRIÇÃO
A59: =B66 -> CP0149 | B59: REF. | C59: CÓDIGO | D59: Colocação de caixas metálicas de interligação no piso conforme layout fornecido pelo fabricante VMI TECNOLOGIAS | E59: UND | F59: COEF. | G59: VL.UNIT | H59: UNID.
A60: CÓDIGO | H60: und
A61: ='PLANILHA ORÇAM.'!A49 -> 6.2
A62: ITEM | H62: VL.PARCIAL
A63: Materiais
A64: 1 | B64: =IFERROR(VLOOKUP(C64,'SEM DESONERADO'!$A$2:$E$15000,5,0),"-") -> - | C64: COTAÇÃO | D64: =D59 -> Colocação de caixas metálicas de interligação no piso conforme layout fornecido pelo fabricante VMI TECNOLOGIAS | E64: und | F64: 1 | G64: 4150 | H64: =ROUND(G64*F64,2) -> 4150 | I64: 4150 | J64: 4036 | K64: 4400
B66: CP0149 | C66: =D59 -> Colocação de caixas metálicas de interligação no piso conforme layout fornecido pelo fabricante VMI TECNOLOGIAS | D66: =H60 -> und | G66: CUSTO TOTAL DA COMPOSIÇÃO | H66: =H64 -> 4150 | I66: !!!!
A67: FONTE: Coeficientes tem como base cálculos elaborados pelo responsável técnico. | I67: IR PARA REFERÊNCIA
A68: DESCRIÇÃO
A69: =B76 -> CP0150 | B69: REF. | C69: CÓDIGO | D69: Confecção de aterramento exclusivo para o equipamento com aproximadamente 3 a 5 ohms de resistência especificações do fabricante | E69: Und. | F69: Coef. | G69: Vl. Unitário | H69: UNID.
A70: CÓDIGO | H70: und
A71: ='PLANILHA ORÇAM.'!A50 -> 6.3
A72: ITEM | H72: Vl. Parcial
A73: Materiais
A74: 1 | B74: =IFERROR(VLOOKUP(C74,'SEM DESONERADO'!$A$2:$E$15000,5,0),"-") -> - | C74: COTAÇÃO | D74: =D69 -> Confecção de aterramento exclusivo para o equipamento com aproximadamente 3 a 5 ohms de resistência especificações do fabricante | E74: und | F74: 1 | G74: 4500 | H74: =ROUND(F74*G74,2) -> 4500 | I74: 4500 | J74: 4300 | K74: 4500
B76: CP0150 | C76: =D69 -> Confecção de aterramento exclusivo para o equipamento com aproximadamente 3 a 5 ohms de resistência especificações do fabricante | D76: =H70 -> und | G76: CUSTO TOTAL DA COMPOSIÇÃO | H76: =H74 -> 4500 | I76: !!!!
A77: FONTE: Coeficientes tem como base cálculos elaborados pelo responsável técnico. | I77: IR PARA REFERÊNCIA
A78: DESCRIÇÃO
A79: =B86 -> CP0151 | B79: REF. | C79: CÓDIGO | D79: Confecção do quadro de potência para conexão do equipamento conforme especificações descriminadas pelo fabricante cx moldada 36ka interruptor diferencial 63 amp.,380v tipo b, quatro módulos dps, contactora de 80amp., proteção contra falta de fase e temporizador ajustado em o,3s de retardo montado em quadro medindo 1,20m x 0,6m x 0,22m | E79: Und. | F79: Coef. | G79: Vl. Unitário | H79: UNID.
A80: CÓDIGO | H80: und
A81: ='PLANILHA ORÇAM.'!A51 -> 6.4
A82: ITEM | H82: Vl. Parcial
A83: Materiais
A84: 1 | B84: =IFERROR(VLOOKUP(C84,'SEM DESONERADO'!$A$2:$E$15000,5,0),"-") -> - | C84: COTAÇÃO | D84: =D79 -> Confecção do quadro de potência para conexão do equipamento conforme especificações descriminadas pelo fabricante cx moldada 36ka interruptor diferencial 63 amp.,380v tipo b, quatro módulos dps, contactora de 80amp., proteção contra falta de fase e temporizador ajustado em o,3s de retardo montado em quadro medindo 1,20m x 0,6m x 0,22m | E84: und | F84: 1 | G84: 7500 | H84: =ROUND(F84*G84,2) -> 7500 | I84: 8200 | J84: 7200 | K84: 7500
B86: CP0151 | C86: =D79 -> Confecção do quadro de potência para conexão do equipamento conforme especificações descriminadas pelo fabricante cx moldada 36ka interruptor diferencial 63 amp.,380v tipo b, quatro módulos dps, contactora de 80amp., proteção contra falta de fase e temporizador ajustado em o,3s de retardo montado em quadro medindo 1,20m x 0,6m x 0,22m | D86: =H80 -> und | E86: =IFERROR(VLOOKUP(C86,'SEM DESONERADO'!$A$2:$E$14987,3,0),IFERROR(VLOOKUP(C86,COTAÇÕES!$A$3:$E$15074,3,0),"")) ->  | G86: =IFERROR(VLOOKUP(C86,'SEM DESONERADO'!$A$2:$E$14987,4,0),IFERROR(VLOOKUP(C86,COTAÇÕES!$A$3:$E$15074,4,0),"")) ->  | H86: =H84 -> 7500 | I86: !!!!
A87: FONTE: Coeficientes tem como base cálculos elaborados pelo responsável técnico. | I87: IR PARA REFERÊNCIA
A88: DESCRIÇÃO
A89: =B96 -> CP0152 | B89: REF. | C89: CÓDIGO | D89: Transformador trifásico 220v para 380v trifásico em caixa blindada potência de 80kva com pês antirruídos | E89: Und. | F89: Coef. | G89: Vl. Unitário | H89: UNID.
A90: CÓDIGO | H90: und
A91: ='PLANILHA ORÇAM.'!A52 -> 6.5
A92: ITEM | H92: Vl. Parcial
A93: Materiais
A94: 1 | B94: =IFERROR(VLOOKUP(C94,'SEM DESONERADO'!$A$2:$E$15000,5,0),"-") -> - | C94: COTAÇÃO | D94: =D89 -> Transformador trifásico 220v para 380v trifásico em caixa blindada potência de 80kva com pês antirruídos | E94: und | F94: 1 | G94: 9000 | H94: =ROUND(F94*G94,2) -> 9000 | I94: 10500 | J94: 9000 | K94: 9000
B96: CP0152 | C96: =D89 -> Transformador trifásico 220v para 380v trifásico em caixa blindada potência de 80kva com pês antirruídos | D96: =H90 -> und | G96: CUSTO TOTAL DA COMPOSIÇÃO | H96: =H94 -> 9000 | I96: !!!!
A97: FONTE: Coeficientes tem como base cálculos elaborados pelo responsável técnico. | I97: IR PARA REFERÊNCIA
A98: DESCRIÇÃO
A99: =B106 -> CP0153 | B99: REF. | C99: CÓDIGO | D99: Quadro para conexão do equipamento de raios-x com proteção contra surtos (dps), sistema de proteção contra falta de fase e contactora com capacidade de 150 amperes nos contatos em caixa metálica 60cm x 50cm x 25cm, instalado | E99: Und. | F99: Coef. | G99: Vl. Unitário | H99: UNID.
A100: CÓDIGO | H100: und
A101: ='PLANILHA ORÇAM.'!A53 -> 6.6
A102: ITEM | H102: Vl. Parcial
A103: Materiais
A104: 1 | B104: =IFERROR(VLOOKUP(C104,'SEM DESONERADO'!$A$2:$E$15000,5,0),"-") -> - | C104: COTAÇÃO | D104: =D99 -> Quadro para conexão do equipamento de raios-x com proteção contra surtos (dps), sistema de proteção contra falta de fase e contactora com capacidade de 150 amperes nos contatos em caixa metálica 60cm x 50cm x 25cm, instalado | E104: und | F104: 1 | G104: 5000 | H104: =ROUND(F104*G104,2) -> 5000 | I104: 6700 | J104: 4600 | K104: 5000
B106: CP0153 | C106: =D99 -> Quadro para conexão do equipamento de raios-x com proteção contra surtos (dps), sistema de proteção contra falta de fase e contactora com capacidade de 150 amperes nos contatos em caixa metálica 60cm x 50cm x 25cm, instalado | D106: =H100 -> und | G106: CUSTO TOTAL DA COMPOSIÇÃO | H106: =H104 -> 5000 | I106: !!!!
A107: FONTE: Coeficientes tem como base cálculos elaborados pelo responsável técnico. | I107: IR PARA REFERÊNCIA
A108: DIVERSOS
A109: DESCRIÇÃO
A110: =B121 -> CP0319 | B110: REF. | C110: CÓDIGO | D110: Limpeza final da obra | E110: Und. | F110: Coef. | G110: Vl. Unit. | H110: UNID.
A111: CÓDIGO | H111: m²
A112: ='PLANILHA ORÇAM.'!A56 -> 7.1
A113: ITEM | H113: Vl. Parcial
A114: Materiais
A115: 1 | B115: =IFERROR(VLOOKUP(C115,'SEM DESONERADO'!$A$2:$E$15000,5,0),"-") -> I | C115: 3 | D115: =IFERROR(VLOOKUP(C115,'SEM DESONERADO'!$A$2:$E$15000,2,0),IFERROR(VLOOKUP(C115,COTAÇÕES!$A$2:$E$15000,2,0),"")) -> Acido muriatico, diluicao 10% a 12% para uso em limpeza | E115: =IFERROR(VLOOKUP(C115,'SEM DESONERADO'!$A$2:$E$15000,3,0),IFERROR(VLOOKUP(C115,COTAÇÕES!$A$2:$E$15000,3,0),"")) -> l | F115: 0.05 | G115: =IFERROR(VLOOKUP(C115,'SEM DESONERADO'!$A$2:$E$15000,4,0),IFERROR(VLOOKUP(C115,COTAÇÕES!$A$2:$E$15000,4,0),"")) -> 4.1 | H115: =ROUND(G115*F115,2) -> 0.21
A116: Total material | H116: =SUM(H115:H115) -> 0.21
A117: Mão de Obra
A118: 1 | B118: =IFERROR(VLOOKUP(C118,'SEM DESONERADO'!$A$2:$E$15000,5,0),"-") -> C | C118: 88316 | D118: =IFERROR(VLOOKUP(C118,'SEM DESONERADO'!$A$2:$E$15000,2,0),IFERROR(VLOOKUP(C118,COTAÇÕES!$A$2:$E$15000,2,0),"")) -> Servente com encargos complementares | E118: =IFERROR(VLOOKUP(C118,'SEM DESONERADO'!$A$2:$E$15000,3,0),IFERROR(VLOOKUP(C118,COTAÇÕES!$A$2:$E$15000,3,0),"")) -> h | F118: 0.14 | G118: =IFERROR(VLOOKUP(C118,'SEM DESONERADO'!$A$2:$E$15000,4,0),IFERROR(VLOOKUP(C118,COTAÇÕES!$A$2:$E$15000,4,0),"")) -> 17.33 | H118: =ROUND(G118*F118,2) -> 2.43
A119: Total mão de obra | H119: =SUM(H118:H118) -> 2.43
B121: CP0319 | C121: =D110 -> Limpeza final da obra | D121: =H111 -> m² | G121: CUSTO TOTAL DA COMPOSIÇÃO | H121: =SUM(H116+H119) -> 2.64 | I121: !!!!
A122: FONTE: Coeficientes de mão de obra tem como base cálculos a composição nº 9537, localizada na página 2882 da SINAPI/PCN - ABRIL - 2018. | I122: IR PARA REFERÊNCIA

Sheet COMP.DESO. (hidden)
M4: IR PARA PASTA
A7: ='PLANILHA ORÇAM.'!A7:H7 -> GOVERNO DE RONDÔNIA
A8: ='PLANILHA ORÇAM.'!A8:H8 -> PREFEITURA DE CEREJEIRAS
A10: COMPOSIÇÃO DE CUSTO
A12: ='PLANILHA ORÇAM.'!A12 -> OBRA : | B12: ='PLANILHA ORÇAM.'!B12 -> REFORMA DA SALA DE RAIO-X DO HOSPITAL
A13: ='PLANILHA ORÇAM.'!A13 -> END. : | B13: ='PLANILHA ORÇAM.'!B13 -> RUA NOVA ZELÂNDIA,1192, BAIRRO CENTRO
A14: ='PLANILHA ORÇAM.'!A14 -> LOCAL: | B14: ='PLANILHA ORÇAM.'!B14 -> CEREJEIRAS / RO | F14: REF.: | G14: "C" - COMPOSIÇÃO SINAPI
A15: ='PLANILHA ORÇAM.'!A15 -> ÁREA : | B15: ='PLANILHA ORÇAM.'!B15 -> 52,91m² | G15: "I" - INSUMO SINAPI
A16: DEMOLIÇÕES E RETIRADAS
A17: DESCRIÇÃO
A18: =B29 -> CP0008 | B18: REF. | C18: SINAPI | D18: Remoção de Pintura | E18: Und. | F18: Coef. | G18: Vl. Unit. | H18: UNID.
A19: CÓDIGO | H19: m²
A20: ='PLANILHA ORÇAM.'!A24 -> 2.2
A21: ITEM | H21: Vl. Parcial
A22: Materiais
A23: 1 | B23: =IFERROR(VLOOKUP(C23,'COM DESONERADO'!$A$2:$E$15000,5,0),"-") -> I | C23: 3767 | D23: =IFERROR(VLOOKUP(C23,'COM DESONERADO'!$A$2:$E$15000,2,0),IFERROR(VLOOKUP(C23,COTAÇÕES!$A$2:$E$15000,2,0),"")) -> Lixa em folha para parede ou madeira, numero 120 (cor vermelha) | E23: =IFERROR(VLOOKUP(C23,'COM DESONERADO'!$A$2:$E$15000,3,0),IFERROR(VLOOKUP(C23,COTAÇÕES!$A$2:$E$15000,3,0),"")) -> und | F23: 0.5 | G23: =IFERROR(VLOOKUP(C23,'COM DESONERADO'!$A$2:$E$15000,4,0),IFERROR(VLOOKUP(C23,COTAÇÕES!$A$2:$E$15000,4,0),"")) -> 0.57 | H23: =ROUND(G23*F23,2) -> 0.29
A24: Total material | H24: =SUM(H23:H23) -> 0.29
A25: Mão de Obra
A26: 1 | B26: =IFERROR(VLOOKUP(C26,'COM DESONERADO'!$A$2:$E$15000,5,0),"-") -> C | C26: 88316 | D26: =IFERROR(VLOOKUP(C26,'COM DESONERADO'!$A$2:$E$15000,2,0),IFERROR(VLOOKUP(C26,COTAÇÕES!$A$2:$E$15000,2,0),"")) -> Servente com encargos complementares | E26: =IFERROR(VLOOKUP(C26,'COM DESONERADO'!$A$2:$E$15000,3,0),IFERROR(VLOOKUP(C26,COTAÇÕES!$A$2:$E$15000,3,0),"")) -> h | F26: 0.5 | G26: =IFERROR(VLOOKUP(C26,'COM DESONERADO'!$A$2:$E$15000,4,0),IFERROR(VLOOKUP(C26,COTAÇÕES!$A$2:$E$15000,4,0),"")) -> 15.63 | H26: =ROUND(G26*F26,2) -> 7.82
A27: Total mão de obra | H27: =SUM(H26:H26) -> 7.82
B29: CP0008 | C29: =D18 -> Remoção de Pintura | D29: =H19 -> m² | G29: CUSTO TOTAL DA COMPOSIÇÃO | H29: =SUM(H24,H27) -> 8.11 | I29: !!!!
A30: FONTE: Coeficientes tem como base cálculos a composição nº 72125 localizada na página 2467 da SINAPI PCN Abril - 2016. | I30: IR PARA REFERÊNCIA
A31: REVESTIMENTOS DE PAREDES
A32: DESCRIÇÃO
A33: =B45 -> CP0386 | B33: REF. | C33: SINAPI | D33: Argamassa Baritada (espessura 2,0cm) | E33: Und. | F33: Coef. | G33: Vl. Unit. | H33: UNID.
A34: CÓDIGO | H34: m²
A35: ='PLANILHA ORÇAM.'!A32 -> 3.2
A36: ITEM | H36: Vl. Parcial
A37: Materiais | I37: =29.9/20 -> 1.495
A38: 1 | B38: =IFERROR(VLOOKUP(C38,'COM DESONERADO'!$A$2:$E$15000,5,0),"-") -> - | C38: COTAÇÃO | D38: Argamassa Baritada, rendimento 40kg/m² | E38: kg | F38: 40 | G38: =MEDIAN((32.8/40),(29.9/20),(0.8)) -> 0.82 | H38: =G38*F38 -> 32.8 | I38: =32.8/40 -> 0.82
A39: Total material | H39: =SUM(H38:H38) -> 32.8 | I39: 0.8
A40: Mão de Obra
A41: 1 | B41: =IFERROR(VLOOKUP(C41,'COM DESONERADO'!$A$2:$E$15000,5,0),"-") -> C | C41: 88316 | D41: =IFERROR(VLOOKUP(C41,'COM DESONERADO'!$A$2:$E$15000,2,0),IFERROR(VLOOKUP(C41,COTAÇÕES!$A$2:$E$15000,2,0),"")) -> Servente com encargos complementares | E41: =IFERROR(VLOOKUP(C41,'COM DESONERADO'!$A$2:$E$15000,3,0),IFERROR(VLOOKUP(C41,COTAÇÕES!$A$2:$E$15000,3,0),"")) -> h | F41: 0.5 | G41: =IFERROR(VLOOKUP(C41,'COM DESONERADO'!$A$2:$E$15000,4,0),IFERROR(VLOOKUP(C41,COTAÇÕES!$A$2:$E$15000,4,0),"")) -> 15.63 | H41: =G41*F41 -> 7.815
A42: 2 | B42: =IFERROR(VLOOKUP(C42,'COM DESONERADO'!$A$2:$E$15000,5,0),"-") -> C | C42: 88309 | D42: =IFERROR(VLOOKUP(C42,'COM DESONERADO'!$A$2:$E$15000,2,0),IFERROR(VLOOKUP(C42,COTAÇÕES!$A$2:$E$15000,2,0),"")) -> Pedreiro com encargos complementares | E42: =IFERROR(VLOOKUP(C42,'COM DESONERADO'!$A$2:$E$15000,3,0),IFERROR(VLOOKUP(C42,COTAÇÕES!$A$2:$E$15000,3,0),"")) -> h | F42: 1 | G42: =IFERROR(VLOOKUP(C42,'COM DESONERADO'!$A$2:$E$15000,4,0),IFERROR(VLOOKUP(C42,COTAÇÕES!$A$2:$E$15000,4,0),"")) -> 17.15 | H42: =G42*F42 -> 17.15
A43: Total mão de obra | H43: =SUM(H41:H42) -> 24.965
B45: CP0386 | C45: =D33 -> Argamassa Baritada (espessura 2,0cm) | D45: =H34 -> m² | G45: CUSTO TOTAL DA COMPOSIÇÃO | H45: =SUM(H39,H43) -> 57.765 | I45: !!!!
A46: FONTE: Coeficientes tem como base cálculos elaborados pelo responsável técnico.
A47: INSTALAÇÕES ELÉTRICAS
A48: DESCRIÇÃO
A49: =B56 -> CP0148 | B49: REF. | C49: CÓDIGO | D49: Desmontagem do equipamento TECNO DESING e armazenagem do mesmo em local adequado | E49: UND | F49: COEF. | G49: VL.UNIT | H49: UNID.
A50: CÓDIGO | H50: und
A51: ='PLANILHA ORÇAM.'!A48 -> 6.1
A52: ITEM | H52: VL.PARCIAL
A53: Materiais
A54: 1 | B54: =IFERROR(VLOOKUP(C54,'SEM DESONERADO'!$A$2:$E$15000,5,0),"-") -> - | C54: COTAÇÃO | D54: =D49 -> Desmontagem do equipamento TECNO DESING e armazenagem do mesmo em local adequado | E54: und | F54: 1 | G54: 3000 | H54: =ROUND(G54*F54,2) -> 3000 | I54: 3000 | J54: 2836 | K54: 3000
B56: CP0148 | C56: =D49 -> Desmontagem do equipamento TECNO DESING e armazenagem do mesmo em local adequado | D56: =H50 -> und | G56: CUSTO TOTAL DA COMPOSIÇÃO | H56: =H54 -> 3000 | I56: !!!!
A57: FONTE: Coeficientes tem como base cálculos elaborados pelo responsável técnico. | I57: IR PARA REFERÊNCIA
A58: DESCRIÇÃO
A59: =B66 -> CP0149 | B59: REF. | C59: CÓDIGO | D59: Colocação de caixas metálicas de interligação no piso conforme layout fornecido pelo fabricante VMI TECNOLOGIAS | E59: UND | F59: COEF. | G59: VL.UNIT | H59: UNID.
A60: CÓDIGO | H60: und
A61: ='PLANILHA ORÇAM.'!A49 -> 6.2
A62: ITEM | H62: VL.PARCIAL
A63: Materiais
A64: 1 | B64: =IFERROR(VLOOKUP(C64,'SEM DESONERADO'!$A$2:$E$15000,5,0),"-") -> - | C64: COTAÇÃO | D64: =D59 -> Colocação de caixas metálicas de interligação no piso conforme layout fornecido pelo fabricante VMI TECNOLOGIAS | E64: und | F64: 1 | G64: 4150 | H64: =ROUND(G64*F64,2) -> 4150 | I64: 4150 | J64: 4036 | K64: 4400
B66: CP0149 | C66: =D59 -> Colocação de caixas metálicas de interligação no piso conforme layout fornecido pelo fabricante VMI TECNOLOGIAS | D66: =H60 -> und | G66: CUSTO TOTAL DA COMPOSIÇÃO | H66: =H64 -> 4150 | I66: !!!!
A67: FONTE: Coeficientes tem como base cálculos elaborados pelo responsável técnico. | I67: IR PARA REFERÊNCIA
A68: DESCRIÇÃO
A69: =B76 -> CP0150 | B69: REF. | C69: CÓDIGO | D69: Confecção de aterramento exclusivo para o equipamento com aproximadamente 3 a 5 ohms de resistência especificações do fabricante | E69: Und. | F69: Coef. | G69: Vl. Unitário | H69: UNID.
A70: CÓDIGO | H70: und
A71: ='PLANILHA ORÇAM.'!A50 -> 6.3
A72: ITEM | H72: Vl. Parcial
A73: Materiais
A74: 1 | B74: =IFERROR(VLOOKUP(C74,'SEM DESONERADO'!$A$2:$E$15000,5,0),"-") -> - | C74: COTAÇÃO | D74: =D69 -> Confecção de aterramento exclusivo para o equipamento com aproximadamente 3 a 5 ohms de resistência especificações do fabricante | E74: und | F74: 1 | G74: 4500 | H74: =ROUND(F74*G74,2) -> 4500 | I74: 4500 | J74: 4300 | K74: 4500
B76: CP0150 | C76: =D69 -> Confecção de aterramento exclusivo para o equipamento com aproximadamente 3 a 5 ohms de resistência especificações do fabricante | D76: =H70 -> und | G76: CUSTO TOTAL DA COMPOSIÇÃO | H76: =H74 -> 4500 | I76: !!!!
A77: FONTE: Coeficientes tem como base cálculos elaborados pelo responsável técnico. | I77: IR PARA REFERÊNCIA
A78: DESCRIÇÃO
A79: =B86 -> CP0151 | B79: REF. | C79: CÓDIGO | D79: Confecção do quadro de potência para conexão do equipamento conforme especificações descriminadas pelo fabricante cx moldada 36ka interruptor diferencial 63 amp.,380v tipo b, quatro módulos dps, contactora de 80amp., proteção contra falta de fase e temporizador ajustado em o,3s de retardo montado em quadro medindo 1,20m x 0,6m x 0,22m | E79: Und. | F79: Coef. | G79: Vl. Unitário | H79: UNID.
A80: CÓDIGO | H80: und
A81: ='PLANILHA ORÇAM.'!A51 -> 6.4
A82: ITEM | H82: Vl. Parcial
A83: Materiais
A84: 1 | B84: =IFERROR(VLOOKUP(C84,'SEM DESONERADO'!$A$2:$E$15000,5,0),"-") -> - | C84: COTAÇÃO | D84: =D79 -> Confecção do quadro de potência para conexão do equipamento conforme especificações descriminadas pelo fabricante cx moldada 36ka interruptor diferencial 63 amp.,380v tipo b, quatro módulos dps, contactora de 80amp., proteção contra falta de fase e temporizador ajustado em o,3s de retardo montado em quadro medindo 1,20m x 0,6m x 0,22m | E84: und | F84: 1 | G84: 7200 | H84: =ROUND(F84*G84,2) -> 7200 | I84: 8200 | J84: 7200 | K84: 7500
B86: CP0151 | C86: =D79 -> Confecção do quadro de potência para conexão do equipamento conforme especificações descriminadas pelo fabricante cx moldada 36ka interruptor diferencial 63 amp.,380v tipo b, quatro módulos dps, contactora de 80amp., proteção contra falta de fase e temporizador ajustado em o,3s de retardo montado em quadro medindo 1,20m x 0,6m x 0,22m | D86: =H80 -> und | E86: =IFERROR(VLOOKUP(C86,'SEM DESONERADO'!$A$2:$E$14987,3,0),IFERROR(VLOOKUP(C86,COTAÇÕES!$A$3:$E$15074,3,0),"")) ->  | G86: =IFERROR(VLOOKUP(C86,'SEM DESONERADO'!$A$2:$E$14987,4,0),IFERROR(VLOOKUP(C86,COTAÇÕES!$A$3:$E$15074,4,0),"")) ->  | H86: =H84 -> 7200 | I86: !!!!
A87: FONTE: Coeficientes tem como base cálculos elaborados pelo responsável técnico. | I87: IR PARA REFERÊNCIA
A88: DESCRIÇÃO
A89: =B96 -> CP0152 | B89: REF. | C89: CÓDIGO | D89: Transformador trifásico 220v para 380v trifásico em caixa blindada potência de 80kva com pês antirruídos | E89: Und. | F89: Coef. | G89: Vl. Unitário | H89: UNID.
A90: CÓDIGO | H90: und
A91: ='PLANILHA ORÇAM.'!A52 -> 6.5
A92: ITEM | H92: Vl. Parcial
A93: Materiais
A94: 1 | B94: =IFERROR(VLOOKUP(C94,'SEM DESONERADO'!$A$2:$E$15000,5,0),"-") -> - | C94: COTAÇÃO | D94: =D89 -> Transformador trifásico 220v para 380v trifásico em caixa blindada potência de 80kva com pês antirruídos | E94: und | F94: 1 | G94: 9000 | H94: =ROUND(F94*G94,2) -> 9000 | I94: 10500 | J94: 9000 | K94: 9000
B96: CP0152 | C96: =D89 -> Transformador trifásico 220v para 380v trifásico em caixa blindada potência de 80kva com pês antirruídos | D96: =H90 -> und | G96: CUSTO TOTAL DA COMPOSIÇÃO | H96: =H94 -> 9000 | I96: !!!!
A97: FONTE: Coeficientes tem como base cálculos elaborados pelo responsável técnico. | I97: IR PARA REFERÊNCIA
A98: DESCRIÇÃO
A99: =B106 -> CP0153 | B99: REF. | C99: CÓDIGO | D99: Quadro para conexão do equipamento de raios-x com proteção contra surtos (dps), sistema de proteção contra falta de fase e contactora com capacidade de 150 amperes nos contatos em caixa metálica 60cm x 50cm x 25cm, instalado | E99: Und. | F99: Coef. | G99: Vl. Unitário | H99: UNID.
A100: CÓDIGO | H100: und
A101: ='PLANILHA ORÇAM.'!A53 -> 6.6
A102: ITEM | H102: Vl. Parcial
A103: Materiais
A104: 1 | B104: =IFERROR(VLOOKUP(C104,'SEM DESONERADO'!$A$2:$E$15000,5,0),"-") -> - | C104: COTAÇÃO | D104: =D99 -> Quadro para conexão do equipamento de raios-x com proteção contra surtos (dps), sistema de proteção contra falta de fase e contactora com capacidade de 150 amperes nos contatos em caixa metálica 60cm x 50cm x 25cm, instalado | E104: und | F104: 1 | G104: 5000 | H104: =ROUND(F104*G104,2) -> 5000 | I104: 6700 | J104: 4600 | K104: 5000
B106: CP0153 | C106: =D99 -> Quadro para conexão do equipamento de raios-x com proteção contra surtos (dps), sistema de proteção contra falta de fase e contactora com capacidade de 150 amperes nos contatos em caixa metálica 60cm x 50cm x 25cm, instalado | D106: =H100 -> und | G106: CUSTO TOTAL DA COMPOSIÇÃO | H106: =H104 -> 5000 | I106: !!!!
A107: FONTE: Coeficientes tem como base cálculos elaborados pelo responsável técnico. | I107: IR PARA REFERÊNCIA
A108: DIVERSOS
A109: DESCRIÇÃO
A110: =B121 -> CP0319 | B110: REF. | C110: CÓDIGO | D110: Limpeza final da obra | E110: Und. | F110: Coef. | G110: Vl. Unit. | H110: UNID.
A111: CÓDIGO | H111: m²
A112: ='PLANILHA ORÇAM.'!A56 -> 7.1
A113: ITEM | H113: Vl. Parcial
A114: Materiais
A115: 1 | B115: =IFERROR(VLOOKUP(C115,'COM DESONERADO'!$A$2:$E$15000,5,0),"-") -> I | C115: 3 | D115: =IFERROR(VLOOKUP(C115,'COM DESONERADO'!$A$2:$E$15000,2,0),IFERROR(VLOOKUP(C115,COTAÇÕES!$A$2:$E$15000,2,0),"")) -> Acido muriatico, diluicao 10% a 12% para uso em limpeza | E115: =IFERROR(VLOOKUP(C115,'COM DESONERADO'!$A$2:$E$15000,3,0),IFERROR(VLOOKUP(C115,COTAÇÕES!$A$2:$E$15000,3,0),"")) -> l | F115: 0.05 | G115: =IFERROR(VLOOKUP(C115,'COM DESONERADO'!$A$2:$E$15000,4,0),IFERROR(VLOOKUP(C115,COTAÇÕES!$A$2:$E$15000,4,0),"")) -> 4.1 | H115: =ROUND(G115*F115,2) -> 0.21
A116: Total material | H116: =SUM(H115:H115) -> 0.21
A117: Mão de Obra
A118: 1 | B118: =IFERROR(VLOOKUP(C118,'COM DESONERADO'!$A$2:$E$15000,5,0),"-") -> C | C118: 88316 | D118: =IFERROR(VLOOKUP(C118,'COM DESONERADO'!$A$2:$E$15000,2,0),IFERROR(VLOOKUP(C118,COTAÇÕES!$A$2:$E$15000,2,0),"")) -> Servente com encargos complementares | E118: =IFERROR(VLOOKUP(C118,'COM DESONERADO'!$A$2:$E$15000,3,0),IFERROR(VLOOKUP(C118,COTAÇÕES!$A$2:$E$15000,3,0),"")) -> h | F118: 0.14 | G118: =IFERROR(VLOOKUP(C118,'COM DESONERADO'!$A$2:$E$15000,4,0),IFERROR(VLOOKUP(C118,COTAÇÕES!$A$2:$E$15000,4,0),"")) -> 15.63 | H118: =ROUND(G118*F118,2) -> 2.19
A119: Total mão de obra | H119: =SUM(H118:H118) -> 2.19
B121: CP0319 | C121: =D110 -> Limpeza final da obra | D121: =H111 -> m² | G121: CUSTO TOTAL DA COMPOSIÇÃO | H121: =SUM(H116+H119) -> 2.4 | I121: !!!!
A122: FONTE: Coeficientes de mão de obra tem como base cálculos a composição nº 9537, localizada na página 2882 da SINAPI/PCN - ABRIL - 2018. | I122: IR PARA REFERÊNCIA

Sheet COTAÇÕES (hidden)
B1: FEVEREIRO_2019
A2: Código | B2: COTAÇÕES ARQUITETÔNICO. | C2: Unidade | D2: Preço | E2: Datas | F2: LOJAS
A3: COT.ARQ.1 | B3: Arremate para forro de PVC - perfil - barra "U" - barra 6,00m | C3: barra | D3: =L3 -> 18 | F3: CAIARI | G3: 19 | H3: LOJÃO DAS TINTAS | I3: 14.4 | J3: R. JOSÉ DA SILVA | K3: 18 | L3: =IF(K3+I3+G3=0,"",MEDIAN(K3,I3,G3)) -> 18
A4: COT.ARQ.2 | B4: Forro PVC régua de 200mm | C4: m² | D4: 14.68 | F4: CASA APARECIDA | G4: 16.5 | H4: LOJÃO DAS TINTAS | I4: 13.5 | J4: STILL | K4: 14.68 | L4: 14.68
A5: COT.ARQ.3 | B5: Kit de ferragens para janela | C5: und | D5: 69.48 | F5: PSVIDRO | G5: 67 | H5: CENTRAL DAS FERRAGENS | I5: 69.48 | J5: WORD LX | K5: 130 | L5: 69.48
A6: COT.ARQ.4 | B6: Cj. Mesa Qud. 0,90m c/ tab.jgsc/ 4bq qud. Ms04 | D6: 590 | F6: CF MOLDART | G6: 430 | H6: SELVA | I6: 750 | L6: 590
A7: COT.ARQ.5 | B7: Cancela automática (2,50 a 6,00 metros) | D7: 3759 | F7: INOVE CERTO | G7: 3759 | L7: 3759
A8: COT.ARQ.6 | B8: Catraca de fluxo de pessoas | C8: und | D8: 4603 | F8: MICROMAQ | G8: 4603 | L8: 4603
A9: COT.ARQ.7 | B9: Placa de A.C.M. | C9: m² | D9: 450 | F9: TANIAMORANDI | G9: 275 | H9: EMANUEL COMÉCIOS DE TINTAS | I9: 450 | J9: CASA APARECIDA | K9: 500 | L9: 450
A10: COT.ARQ.8 | B10: Tela sombrite preto com 50% (sombreamento 3,00m largura) | C10: m² | D10: 4.4 | F10: HILGERT | G10: 4 | H10: CASA DO ADUBO | I10: 4.8 | L10: 4.4
A11: COT.ARQ.9 | B11: Grama sintética esportiva de 50mm | C11: m² | D11: 84.15 | F11: MINASGRAMADOS | G11: 90 | H11: MADEIRAMADEIRA | I11: 78.3 | L11: 84.15
A12: COT.ARQ.10 | B12: Granulado sintético | C12: kg | D12: 0.735 | F12: RESO | G12: 0.72 | H12: GRUPOPLACAS | I12: 0.75 | L12: 0.735
A13: COT.ARQ.11 | B13: Rede de proteção esportiva | C13: m² | D13: 3.99 | F13: GISMAR REDES | G13: 4.39 | H13: MAGNUM REDES ESPORTIVAS | I13: 2.3 | J13: SR REDES ESPORTIVAS | K13: 3.99 | L13: 3.99
A14: COT.ARQ.12 | B14: Trave
A15: COT.ARQ.13 | B15: Bebedouro industrial | C15: und | D15: =L15 -> 1849 | F15: LIDER BEBEDOUROS | G15: 1759 | H15: CENTROOESTE REFRIGERAÇÃO | I15: 2350 | J15: ACQUA REFRIGERAÇÃO | K15: 1849 | L15: 1849
A16: COT.ARQ.14 | B16: Janela de vidro temperado, espessura 8mm, inclusive instalação e acessórios | C16: m² | D16: 326 | F16: VIPAULO | G16: 326 | L16: 326
A17: COT.ARQ.15 | B17: Ferro metalon para entarugamento de forro PVC (20x20)mm. Barra de 6,00metros | C17: m | D17: 17.5 | F17: JAIR RODRIGUES | G17: 19 | H17: OFFICE COM | I17: 17 | J17: F M DA SILVA | K17: 17.5 | L17: 17.5
A18: COT.ARQ.16 | B18: Pele de vidro, com espessura de 8mm, fixada em estrutura de aluminio, incluso instalação | C18: m² | D18: 750 | F18: W MACHADO | G18: 750 | L18: 750
A19: COT.ARQ.17 | B19: Telha aluminio trapézio 0,43mm (termoacústico), incluso fixador | C19: m² | L19: =IF(K19+I19+G19=0,"",MEDIAN(K19,I19,G19)) -> 
A20: COT.ARQ.18 | B20: Telha PVC colonial | C20: m² | D20: 69 | F20: SUBMARINO | G20: 86 | H20: MINASFERRO | I20: 52 | L20: =IF(K20+I20+G20=0,"",MEDIAN(K20,I20,G20)) -> 69
A21: COT.ARQ.19 | B21: Fechamento em placa de ACM, incluso instalação e acessórios excluso estrutura para fixação | C21: m² | D21: 320 | F21: PONCIO&PONCIO | G21: 320 | H21: TORQUI | I21: 320 | J21: AMAZONFER | K21: 480 | L21: =IF(K21+I21+G21=0,"",MEDIAN(K21,I21,G21)) -> 320
A22: COT.ARQ.20
A23: COT.ARQ.21
A24: COT.ARQ.22
A25: COT.ARQ.23
A26: COT.ARQ.24
A27: COT.ARQ.25
A28: COT.ARQ.26
A29: COT.ARQ.27
A30: COT.ARQ.28
A31: COT.ARQ.29
A32: COT.ARQ.30
A40: Código | B40: COTAÇÕES HIDROSSANITÁRIO. | C40: Unidade | D40: Preço | E40: Datas | F40: LOJAS
A41: COT.HID.1 | B41: Perfuração de Poço Tubular Profundo, com profundidade variável até 100m,revestido com tubo especial reforçado, com filtro e pré-filtro, dotado de bomba submersa (1 1/2 CV) com capacidade para vazão minima projetada, tubo edutor especial rígido, quadro de comando e bóia automática, selo sanitário anelar em concreto, tubo alimentador de pré-filtro, limpeza e desinfecção, instalações e regulagem de bóia, teste de vazões/níveis/recuperação, incluso ART (anotação de responsabilidade técnica) e deslocamento de equipamentos. | C41: und | D41: =L41 -> 21218 | E41: 2016-02-29 | F41: POÇO RM | G41: 21218 | H41: POÇOS RONDONIA | I41: 19000 | J41: PACÍFICO CONSTRUTORA | K41: 23955 | L41: =IF(K41+I41+G41=0,"",MEDIAN(K41,I41,G41)) -> 21218
A42: COT.HID.2 | B42: Reservatório Metálico em aço carbono tipo tubular cilindrico com capacidade de 5.000 litros, incluso todos os acessórios e conexões (fornecimento e instalação), com frete e impostos inclusos. | C42: und | D42: 15214.5 | E42: 2016-02-29 | F42: FAZFORTE | G42: =5418+9200 -> 14618 | H42: STOCK | I42: =5779+11000 -> 16779 | J42: FHAIZER | K42: =10143+(10143*0.5) -> 15214.5 | L42: 15214.5
A43: COT.HID.3 | B43: Reservatório Metálico em aço carbono tipo tubular cilindrico com capacidade de 10.000 litros, incluso todos os acessórios e conexões (fornecimento e instalação), com frete e impostos inclusos. | C43: und | D43: 19100 | E43: 2016-02-29 | F43: FAZFORTE | G43: =7875+9200 -> 17075 | H43: STOCK | I43: =8100+11000 -> 19100 | J43: FHAIZER | K43: =13887.2+(13887.2*0.5) -> 20830.8 | L43: 19100
A44: COT.HID.4 | B44: Reservatório Metálico em aço carbono tipo tubular cilindrico com capacidade de 15.000 litros, incluso todos os acessórios e conexões (fornecimento e instalação), com frete e impostos inclusos. | C44: und | D44: 20187.2 | E44: 2016-02-29 | F44: FAZFORTE | G44: =10987.2+9200 -> 20187.2 | H44: STOCK | I44: =8669+11000 -> 19669 | J44: FHAIZER | K44: =17568.65+(17568.65*0.5) -> 26352.975 | L44: 20187.2
A45: COT.HID.5 | B45: Reservatório Metálico em aço carbono tipo tubular cilindrico com capacidade de 20.000 litros, incluso todos os acessórios e conexões (fornecimento e instalação), com frete e impostos inclusos. | C45: und | D45: 22935 | E45: 2016-02-29 | F45: FAZFORTE | G45: =11188.8+9200 -> 20388.8 | H45: STOCK | I45: =11935+11000 -> 22935 | J45: FHAIZER | K45: =19332.33+(19332.33*0.5) -> 28998.495 | L45: 22935
A46: COT.HID.6 | B46: Reservatório Metálico em aço carbono tipo tubular cilindrico com capacidade de 30.000 litros, incluso todos os acessórios e conexões (fornecimento e instalação), com frete e impostos inclusos. | C46: und | D46: 23425.4 | E46: 2016-02-29 | F46: FAZFORTE | G46: =14225.4+9200 -> 23425.4 | H46: MUNDIAL | I46: =11772+(11772*0.5) -> 17658 | J46: FIBRAV | K46: =26597+(26597*0.5) -> 39895.5 | L46: 23425.4
A47: COT.HID.7 | B47: Reservatório Metálico em aço carbono tipo tubular cilindrico com capacidade de 50.000 litros, incluso todos os acessórios e conexões (fornecimento e instalação), com frete e impostos inclusos. | C47: und | D47: 39000 | E47: 2016-02-29 | F47: FAZFORTE | G47: =26825.4+9200 -> 36025.4 | H47: FIDO | I47: 39000 | J47: FHAIZER | K47: =33327.44+(33327.44*0.5) -> 49991.16 | L47: 39000
A48: COT.HID.8 | B48: Reservatório Metálico em aço carbono tipo tubular cilindrico com capacidade de 60.000 litros, incluso todos os acessórios e conexões (fornecimento e instalação), com frete e impostos inclusos. | C48: und | D48: 47730 | E48: 2016-02-29 | F48: AGRO | G48: =31046.4+9000 -> 40046.4 | H48: STOCK | I48: =36730+11000 -> 47730 | J48: FHAIZER | K48: =38295.81+(38295.81*0.5) -> 57443.715 | L48: 47730
A49: COT.HID.9 | B49: Bebedouro de pressão BAG40 INOX 110v | C49: und | D49: 764.15 | E49: 2016-02-29 | F49: CASA BAHIA | G49: =699+65.15 -> 764.15 | H49: EXTRA | I49: =699+65.15 -> 764.15 | J49: IBBL | K49: =939+276.5 -> 1215.5 | L49: 764.15
A50: COT.HID.10 | B50: Bebedouro Industrial Inox Refrigeração 100 Litros 127v com Filtro, com frete incluso. | C50: und | D50: 2161 | E50: 2016-02-29 | F50: LIDER | G50: =1759+269 -> 2028 | H50: CENTROOESTE | I50: =2232.5+170 -> 2402.5 | J50: AQCUAMAX | K50: =1849+312 -> 2161 | L50: 2161
A51: COT.HID.11 | B51: Torneira clinica bica longa 1/4 de volta - metal cromado, com frete incluso. | C51: und | D51: 269.38 | F51: AMERICANAS | G51: =159.9+70.62 -> 230.52 | H51: CASA TORNEIRAS | I51: =237.95+51.34 -> 289.29 | J51: WALMART | K51: =236.16+33.22 -> 269.38 | L51: 269.38
A52: COT.HID.12 | B52: Esgotamento e limpeza de fossa séptica. | C52: und | D52: 150 | F52: RJ | G52: 150 | H52: RAFAEL | I52: 140 | J52: BRAGA | K52: 160 | L52: 150
A53: COT.HID.13 | B53: Expurgo hopitalar e sifão de inox, incluso frete. | C53: und | D53: 3027.7 | F53: UORKINOX | G53: =(2204+670)+((2204+670)*0.3) -> 3736.2 | H53: VIANOX | I53: =(1399+930)+((1399+930)*0.3) -> 3027.7 | J53: BRAVO | K53: =1150+(1150*0.3) -> 1495 | L53: 3027.7
A54: COT.HID.14 | B54: Reservatório Metálico em aço carbono tipo tubular cilindrico com capacidade de 70.000 litros, incluso todos os acessórios e conexões (fornecimento e instalação), com frete e impostos inclusos. | C54: und | D54: 48123 | E54: 2016-02-29 | F54: AGRO | G54: =39123+9000 -> 48123 | L54: 48123
A55: COT.HID.15 | B55: Torneira Elétrica Parede Bica Alta Branca 127V (110V) Versátil , com frete incluso. | C55: und | D55: =L55 -> 144.05 | F55: GALVANI | G55: =114.99+29.06 -> 144.05 | H55: WALMART | I55: =84.9+36 -> 120.9 | J55: MERLYN | K55: =195.9+82.7 -> 278.6 | L55: 144.05
A56: COT.HID.16 | B56: Dispositivo de retorno 2" | C56: und | D56: =L56 -> 127 | F56: A.E TRATAMENTOS DE PISCINAS | G56: 127 | H56: NE DOS SANTOS TRAT. DE PISCINAS | I56: 132 | J56: Só piscinas | K56: 119 | L56: 127
A57: COT.HID.17 | B57: Escada de inox de piscina com 3 degraus ABS | C57: und | D57: =L57 -> 573.98 | F57: SÓ PISCINAS | G57: 550 | H57: SODRAMAR | I57: 573.98 | J57: TROPICAL HOME | K57: 654.41 | L57: 573.98
A58: COT.HID.18 | B58: Dispositivo de aspiração 2" | C58: und | D58: 128 | F58: A.E TRATAMENTOS DE PISCINAS | G58: 128 | H58: NE DOS SANTOS TRAT. DE PISCINAS | I58: 132 | J58: Só piscinas | K58: 99 | L58: 128
A59: COT.HID.19 | B59: Bomba centrifuga 4 cv para piscina | C59: und | D59: 4989 | F59: A.E TRATAMENTOS DE PISCINAS | G59: 4989 | H59: NE DOS SANTOS TRAT. DE PISCINAS | I59: 5280 | J59: Só piscinas | K59: 4700 | L59: 4989
A60: COT.HID.20 | B60: Filtro com capacidade de 120 kg de areia | C60: und | D60: 10800 | F60: A.E TRATAMENTOS DE PISCINAS | G60: 11100 | H60: NE DOS SANTOS TRAT. DE PISCINAS | I60: 10800 | J60: Só piscinas | K60: 10300 | L60: 10800
A61: COT.HID.21 | B61: Ralo de fundo da piscina anti turbilhão 30X30 | C61: und | D61: 399 | F61: A.E TRATAMENTOS DE PISCINAS | G61: 380 | H61: NE DOS SANTOS TRAT. DE PISCINAS | I61: 430 | J61: Só piscinas | K61: 399 | L61: 399
A62: COT.HID.22 | B62: Aspersor Superjet de impacto rosca fêmea 32mm | C62: und | D62: 56.2 | F62: AGROCHUVA | G62: =25.9+30.3 -> 56.2 | H62: BIOSMENTE | I62: =30.3+14.9 -> 45.2 | J62: NADAAM | K62: =41.21+55.34 -> 96.55 | L62: 56.2
A63: COT.HID.23 | B63: Caixa d'água em polietileno, 310 litros | C63: und | D63: =L63 -> 175 | F63: CAIARI | G63: 125 | H63: CASA APARECIDA | I63: 178.5 | J63: STILL | K63: 175 | L63: 175
A64: COT.HID.24 | B64: Banheira para fraldário | C64: und | D64: =L64 -> 59.9 | F64: SHOPTIME | G64: 59.9 | L64: 59.9
A65: COT.HID.25 | B65: Vaso sanitário com caixa acoplada infantil louça branca. | C65: und | D65: =L65 -> 673.62 | F65: obra facil | G65: 600.33 | H65: taqi | I65: 746.91 | L65: 673.62
A68: Código | B68: COTAÇÕES ELÉTRICO. | C68: Unidade | D68: Preço | E68: Datas | F68: LOJAS
A69: COT.ELE.1 | B69: Disjuntor Motor tripolar 32A | C69: und | D69: =L69 ->  | L69: =IF(K69+I69+G69=0,"",MEDIAN(K69,I69,G69)) -> 
A70: COT.ELE.2 | B70: Eletrocalha perfurada tipo U com tampa (50x50x3000)mm, com conexões | C70: und | D70: =L70 -> 42.75 | E70: 2018-07-01 | F70: implemaq | G70: 51 | H70: guaruja | I70: 42.75 | J70: GONÇAVES | K70: 29.861 | L70: 42.75
A71: COT.ELE.2.1 | B71: Eletrocalha perfurada tipo U com tampa (50x100x3000)mm, com conexões | C71: und | D71: 63.5 | E71: 2018-07-01 | F71: implemaq | G71: 67 | H71: guaruja | I71: 63.5 | J71: GONÇAVES | K71: 39.273 | L71: 63.5
A72: COT.ELE.2.2 | B72: Eletrocalha perfurada tipo U com tampa (100x100x3000)mm, com conexões | C72: und | D72: =L72 -> 92.41 | E72: 2018-07-01 | F72: implemaq | G72: 95.15 | H72: guaruja | I72: 82.6 | J72: GONÇAVES | K72: 92.41 | L72: 92.41
A73: COT.ELE.3 | B73: Exaustor de teto para banheiro | C73: und | D73: 234.21 | E73: 2018-07-01 | F73: implemaq | G73: 181.5 | H73: guaruja | I73: 304.5 | J73: GONÇAVES | K73: 234.21 | L73: 234.21
A74: COT.ELE.4 | B74: Lâmpada, fluorescente compacta, cor branca, 23w-127vca | C74: und | D74: 18.954 | E74: 2018-07-01 | F74: implemaq | G74: 12.5 | H74: guaruja | I74: 32 | J74: GONÇAVES | K74: 18.954 | L74: 18.954
A75: COT.ELE.5 | B75: Lâmpada, fluorescente compacta, cor branca, 25w-127vca | C75: und | D75: 13 | E75: 2018-07-01 | F75: implemaq | G75: 13 | H75: guaruja | I75: 13.5 | J75: GONÇAVES | K75: 12.051 | L75: 13
A76: COT.ELE.6 | B76: Lâmpada, fluorescente compacta, cor branca, 30w-127vca | C76: und | D76: 23.41 | E76: 2018-07-01 | F76: implemaq | G76: 20.9 | H76: guaruja | I76: 27.9 | J76: GONÇAVES | K76: 23.41 | L76: 23.41
A77: COT.ELE.7 | B77: Lâmpada halógena 50W PAR20 | C77: und
A78: COT.ELE.8 | B78: Luminária calha sobrepor 2x20W, corpo em chapa de aço fosfatizado, cor branca, refletor parabólico e aletas em alumínio anodizado | C78: und | D78: 114 | E78: 2018-07-01 | F78: implemaq | G78: 114 | H78: guaruja | I78: 149 | J78: GONÇAVES | K78: 22.88 | L78: 114
A79: COT.ELE.9 | B79: Luminária pendente prismática 16" bocal E27 para 1 lâmpada fluorescente. | C79: und | D79: 95 | E79: 2018-07-01 | F79: implemaq | G79: 126.5 | H79: guaruja | I79: 95 | J79: GONÇAVES | K79: 65.273 | L79: 95
A80: COT.ELE.10 | B80: Luminária quadrada para 2 lâmpadas fluorescentes. | C80: und | D80: 50.61 | E80: 2018-07-01 | F80: implemaq | G80: 50.61 | H80: guaruja | I80: 59.9 | J80: GONÇAVES | K80: 37.375 | L80: 50.61
A81: COT.ELE.11 | B81: Luminária Embutir no Solo PAR 20 | C81: und | D81: 291.148 | E81: 2018-07-01 | F81: implemaq | G81: 198 | H81: guaruja | I81: 296.7 | J81: GONÇAVES | K81: 291.148 | L81: 291.148
A82: COT.ELE.12 | B82: Ventilador de teto | C82: und | D82: 111 | G82: 111 | L82: 111
A83: COT.ELE.13 | B83: Luminária plafon | C83: und
A84: COT.ELE.14 | B84: Cabo triplex de alumínio 16 mm² | C84: m
A85: COT.ELE.15 | B85: Poste de concreto duplo T, 600 kg, h =11 m | C85: und
A86: COT.ELE.16 | B86: Quadro de comando formato retangular dim. 800x600x250mm, dotado de porta articulada e trincho de fecho rápido, juntas de vedação, flanges, fornecido com placa metálica para montagem de equipamentos, acabamento esterno cor cinza (ral 7032) e interno na cor laranja (ral 2004) | C86: und | D86: 536 | E86: 2018-07-01 | F86: implemaq | G86: 484 | H86: guaruja | I86: 536 | J86: GONÇAVES | K86: 555.204 | L86: 536
A87: COT.ELE.16.1 | B87: Quadro de comando formato retangular dim. 1000x600x350mm, dotado de porta articulada e trincho de fecho rápido, juntas de vedação, flanges, fornecido com placa metálica para montagem de equipamentos, acabamento esterno cor cinza (ral 7032) e interno na cor laranja (ral 2004) | C87: und | D87: 893.75 | E87: 2018-07-01 | F87: implemaq | G87: 680 | H87: guaruja | I87: 1025 | J87: GONÇAVES | K87: 893.75 | L87: 893.75
A88: COT.ELE.16.2 | B88: Quadro de comando formato retangular dim. 1200x800x350mm, dotado de porta articulada e trincho de fecho rápido, juntas de vedação, flanges, fornecido com placa metálica para montagem de equipamentos, acabamento esterno cor cinza (ral 7032) e interno na cor laranja (ral 2004) | C88: und | D88: =L88 -> 1144 | E88: 2018-07-01 | F88: implemaq | G88: 790 | H88: guaruja | I88: 1378 | J88: GONÇAVES | K88: 1144 | L88: 1144
A89: COT.ELE.17 | B89: Cabo Quadriplex de alumínio 16 mm² | C89: m
A90: COT.ELE.18 | B90: Cabo Quadriplex de alumínio 25 mm² | C90: m
A91: COT.ELE.19 | B91: Cabo Quadriplex de alumínio 35 mm² | C91: m
A92: COT.ELE.20 | B92: Cabo Quadriplex de alumínio 50 mm² | C92: m
A93: COT.ELE.21 | B93: Transformador monofásico, tipo distribuição, potência 15 kVA, 60Hz classe 15kV, relação de transformação 7,97kV/0,230-0,115V, núcleo imerso em óleo isolante (naftênico), dotado de comutador de "taps" sem carga, com suporte para fixação em poste duplo "T" fornecido completo com buchas de AT e BT, terminal de aterramento, fabricado e testado de acordo com a ABNT (NBR 5356,5380 e 5440) | C93: und
A94: COT.ELE.22 | B94: Transformador monofásico, tipo distribuição, potência 5 kVA, 60Hz classe 15kV, relação de transformação 7,97kV/0,230-0,115V, núcleo imerso em óleo isolante (naftênico), dotado de comutador de "taps" sem carga, com suporte para fixação em poste duplo "T" fornecido completo com buchas de AT e BT, terminal de aterramento, fabricado e testado de acordo com a ABNT (NBR 5356,5380 e 5440) | C94: und
A95: COT.ELE.23 | B95: Transformador monofásico, tipo distribuição, potência 25 kVA, 60Hz classe 15kV, relação de transformação 7,97kV/0,230-0,115V, núcleo imerso em óleo isolante (naftênico), dotado de comutador de "taps" sem carga, com suporte para fixação em poste duplo "T" fornecido completo com buchas de AT e BT, terminal de aterramento, fabricado e testado de acordo com a ABNT (NBR 5356,5380 e 5440) | C95: und
A96: COT.ELE.24 | B96: Luminaria LED sobrepor quadrada de 18w | C96: und | D96: =L96 -> 33.66 | E96: 2018-07-01 | F96: implemaq | G96: 32.34 | H96: guaruja | I96: 48.9 | J96: GONÇAVES | K96: 33.66 | L96: 33.66
A97: COT.ELE.24.1 | B97: Luminaria LED sobrepor quadrada de 24w | C97: und | D97: 59.9 | E97: 2018-07-01 | F97: implemaq | G97: 55.99 | H97: guaruja | I97: 59.9 | J97: GONÇAVES | K97: 64.8 | L97: 59.9
A98: COT.ELE.25 | B98: Lâmpada led 12 w bivolt branca, formato tradicional (base e27) | C98: und | D98: 19 | E98: 2018-07-01 | F98: implemaq | G98: 21.59 | H98: guaruja | I98: 19 | J98: GONÇAVES | K98: 16.25 | L98: 19
A99: COT.ELE.26 | B99: Lâmpada led 16 w bivolt branca, formato tradicional (base e27) | C99: und | D99: 39.273 | E99: 2018-07-01 | F99: implemaq | G99: 42.9 | H99: guaruja | I99: 26.7 | J99: GONÇAVES | K99: 39.273 | L99: 39.273
A100: COT.ELE.27 | B100: Refletor LED 200W holofote | C100: und | D100: 534.6 | E100: 2018-07-01 | F100: implemaq | G100: 534.6 | H100: guaruja | I100: 449 | J100: GONÇAVES | K100: 580.296 | L100: 534.6
A101: COT.ELE.28 | B101: Refletor LED 400W holofote | C101: und | D101: 850.33 | E101: 2018-07-01 | F101: implemaq | G101: 1200 | H101: guaruja | I101: 696 | J101: GONÇAVES | K101: 850.33 | L101: 850.33
A112: Código | B112: CABEAMENTO. | C112: Unidade | D112: Preço | E112: Datas | F112: LOJAS
A113: COT.CAB.1 | B113: Channel bank tdmoe AX600 com Suporte até 32 canais de voz FXS/FXO, 1 porta serial console (RJ-45) e Ethernet: 2 portas 10/100 Mbits (RJ-45) | C113: und | D113: =L113 -> 3100 | E113: 2018-07-01 | F113: Cyber | G113: 3100 | H113: KK | I113: 3100 | J113: KK | K113: 1 | L113: =IF(K113+I113+G113=0,"",MEDIAN(K113,I113,G113)) -> 3100
A114: COT.CAB.2 | B114: Placa com cartão com 8 canais de voz FXO(APX280) | C114: und | D114: 799 | E114: 2018-07-01 | F114: Cyber | G114: 799 | H114: KK | I114: 799 | J114: KK | K114: 0 | L114: 799
A115: COT.CAB.3 | B115: Dio 48 fibras cor preta com 24 alinhadores duplex lc/pc sm e 48 extensão ópitica 1,5 mt duplex sm sc-spc 9/125 | C115: und | D115: 766.665 | E115: 2018-07-01 | F115: EuroInfo | G115: 726.6 | H115: ConectWi | I115: 806.73 | L115: 766.665
A116: COT.CAB.4 | B116: Dio 24 fibras cor preta com 12 alinhadores duplex lc/pc sm e 24 extensão ópitica 1,5 mt duplex sm sc-spc 9/125 | C116: und | D116: 537.98 | E116: 2018-07-01 | F116: SubMarino | G116: 537.98 | H116: Americanas | I116: 699 | J116: NetComputadores | K116: 507.33 | L116: 537.98
A117: COT.CAB.5 | B117: Cabo óptico - (CFOA) -AS80-12FO 9/125 SM MT (Bobina 2KM) | C117: m | D117: 4.9 | E117: 2018-07-01 | F117: SubMarino | G117: 3.22 | H117: Cyber | I117: 11 | J117: EuroInfo | K117: 4.9 | L117: 4.9
A118: COT.CAB.6 | B118: Cordão duplex sm 9/125 lc 2,5 mt | C118: und | D118: 133 | E118: 2018-07-01 | F118: SubMarino | G118: 101.07 | H118: Cyber | I118: 270 | J118: EuroInfo | K118: 133 | L118: 133
A119: COT.CAB.7 | B119: Módulo GBIC Giga KGM 2105 Multi 0,5 Km Intelbras | C119: und | D119: 278.6 | E119: 2018-07-01 | F119: EletroInfo | G119: 247.9 | H119: Cyber | I119: 360 | J119: EuroInfo | K119: 278.6 | L119: 278.6
A120: COT.CAB.8 | B120: Switch gerenciável L2+ 48 portas gigabit ethernet com 4 portas mini-gbic | C120: und | D120: 3960 | E120: 2018-07-01 | F120: ShopTelbras | G120: 3736.18 | H120: Euro Info | I120: 6941 | J120: Cyber | K120: 3960 | L120: 3960
A121: COT.CAB.9 | B121: Switch gerenciável L2 24 portas gigabit ethernet com 4 portas mini-gbic | C121: und | D121: 1914.25 | E121: 2018-07-01 | F121: UpperSeg | G121: 1914.25 | H121: Cyber | I121: 1790 | J121: EuroInfo | K121: 2034 | L121: 1914.25
A122: COT.CAB.10 | B122: Switch gerenciável L2 PoE 24 portas gigabit ethernet com 4 portas mini-gbic | C122: und | D122: 4286.42 | E122: 2018-07-01 | F122: Cissa | G122: 4286.42 | H122: EuroInfo | I122: 5182 | J122: Cyber | K122: 3960 | L122: 4286.42
A123: COT.CAB.11 | B123: Bloco de engate rápido M10B Bargoa | C123: und | D123: 25 | E123: 2018-07-01 | F123: NetComputadores | G123: 26.12 | H123: Eletropeças | I123: 22.63 | J123: Cyber | K123: 25 | L123: 25
A124: COT.CAB.12 | B124: Bastidor M10 para 10 blocos BLI de 10 pares | C124: und | D124: 18 | E124: 2018-07-01 | F124: Eletropeças | G124: 25.74 | H124: SegConect | I124: 15.68 | J124: Cyber | K124: 18 | L124: 18
A125: COT.CAB.13 | B125: Barra de aterramento M10 (haste) | C125: und | D125: 7 | E125: 2018-07-01 | F125: LojaMetal | G125: 12 | H125: SeiTec | I125: 7 | J125: Abenpar | K125: 6.82 | L125: 7
A126: COT.CAB.14 | B126: Módulo protetor para blocoM10 mini PEI | C126: und | D126: 15.99 | E126: 2018-07-01 | F126: LojaMetal | G126: 12 | H126: NetComputadores | I126: 15.99 | J126: Cyber | K126: 17 | L126: 15.99
A127: COT.CAB.15 | B127: Guia “de cabo horizontal fechado 1u 19” preto | C127: und | D127: 40 | E127: 2018-07-01 | F127: Americanas | G127: 48.93 | H127: Cyber | I127: 40 | J127: EuroInfo | K127: 32.5 | L127: 40
A128: COT.CAB.16 | B128: Painel de fechamento 19" 1 U preto | C128: und | D128: 11.36 | E128: 2018-07-01 | F128: ConectWi | G128: 7.68 | H128: Cyber | I128: 13 | J128: EuroInfo | K128: 11.36 | L128: 11.36
A129: COT.CAB.17 | B129: Bandeja fixação simples 400mm | C129: und | D129: 156.7 | E129: 2018-07-01 | F129: NotComputadores | G129: 156.7 | H129: Cyber | I129: 249 | J129: EuroInfo | K129: 148.8 | L129: 156.7
A130: COT.CAB.18 | B130: Bandeja fixa 800mm preto | C130: und | D130: 224.8 | E130: 2018-07-01 | F130: ItComTech | G130: 128.44 | H130: Cyber | I130: 326 | J130: EuroInfo | K130: 224.8 | L130: 224.8
A131: COT.CAB.19 | B131: Bandeja móvél 19” x 800 mm de profundidade. | C131: und | D131: 287.38 | E131: 2018-07-01 | F131: Oredes | G131: 287.38 | H131: Ciclops | I131: 239.7 | J131: Cyber | K131: 520 | L131: 287.38
A132: COT.CAB.20 | B132: kit porca / gaiola embalagem c/ 50 pçs | C132: und | D132: 42.5 | E132: 2018-07-01 | F132: NetComputadores | G132: 37.69 | H132: Cyber | I132: 42.5 | J132: EuroInfo | K132: 85 | L132: 42.5
A133: COT.CAB.21 | B133: Regua de tomadas com 8 posições | C133: und | D133: 115 | E133: 2018-07-01 | F133: NetComputadores | G133: 125.5 | H133: ItComTech | I133: 110.05 | J133: Cyber | K133: 115 | L133: 115
A134: COT.CAB.22 | B134: Kit de ventilação c/ 2 ventiladires | C134: und | D134: 302 | E134: 2018-07-01 | F134: Atera | G134: 302 | H134: Cyber | I134: 735 | J134: EuroInfo | K134: 265 | L134: 302
A135: COT.CAB.23 | B135: No-break de 3,2kva | C135: und | D135: 3526.65 | E135: 2018-07-01 | F135: FourServ | G135: 3526.65 | H135: Efacil | I135: 3599.1 | J135: Procestec | K135: 3336.84 | L135: 3526.65
A136: COT.CAB.24 | B136: Velcro dupla façe 20mm RL 3 metros - preto | C136: und | D136: 19.33 | E136: 2018-07-01 | F136: LojaMetal | G136: 15.5 | H136: LojaEletrica | I136: 19.33 | J136: EuroInfo | K136: 26.5 | L136: 19.33
A137: COT.CAB.25 | B137: Espelho 4x2 p/keystone rj45 2 saidas cor branca | C137: und | D137: 5.6 | E137: 2018-07-01 | F137: NetComputadores | G137: 9.39 | H137: Cyber | I137: 4.1 | J137: EuroInfo | K137: 5.6 | L137: 5.6
A138: COT.CAB.26 | B138: Espelho 4x4 p/keystone rj45 4 saidas cor branca | C138: und | D138: 6 | E138: 2018-07-01 | F138: LojaEletrica | G138: 8.28 | H138: SubMarino | I138: 5.65 | J138: EuroInfo | K138: 6 | L138: 6
A139: COT.CAB.27 | B139: Espelho 4x4 p/keystone rj45 6 saidas cor branca | C139: und | D139: 18.77 | E139: 2018-07-01 | F139: NetComputadores | G139: 18.77 | H139: DreanShop | I139: 19.9 | J139: LojaMetal | K139: 15 | L139: 18.77
A140: COT.CAB.28 | B140: Caixa de passagem de embutir no piso em liga de alumínio silício 15x15x12mm | C140: und | D140: 160 | E140: 2019-02-01 | F140: HILGERT | G140: 122.2 | H140: JOSE DA SILVA | I140: 160 | J140: GUARUJA | K140: 173.5 | L140: 160
A141: COT.CAB.29 | B141: Caixa de piso em liga de alúmino 4X2 fechada e baixa | C141: und | D141: 10.02 | E141: 2019-02-01 | F141: SODIMAC | G141: 10.9 | H141: COPAFER | I141: 10.02 | J141: SÓCOMPRAR | K141: 7.22 | L141: 10.02
A142: COT.CAB.30 | B142: Placa inox 4x2 piso, para 2 RJ45 | C142: und | D142: 16.65 | E142: 2019-02-01 | F142: ELBRAN | G142: 16.65 | H142: GIMAWA | I142: 14.91 | J142: LOJAELETRICA | K142: 21.6 | L142: 16.65
A143: COT.CAB.31 | B143: Cabo Coaxial RG59 | C143: und | D143: 0.74 | E143: 2019-02-01 | F143: AtaCadista On Line | G143: 0.78 | H143: Walmart | I143: 0.74 | J143: Hunion | K143: 0.72 | L143: 0.74
A144: COT.CAB.32 | B144: Rack fechado 19" 44 Us x 1000mm profundidade, providos de base soleira com flange para passagem de cabos, aletas de ventilação com laterais em baixo relevo, lateral bi-partida com tampas removíveis porta frontal em vidro fumê temperado, base com altura de 120mm do chão para acomodação de cabos, fechaduras nas porta e nos fechamentos, pés niveladores. | C144: und | D144: 3440.2 | E144: 2018-07-01 | F144: NetComputadores | G144: 3960.4 | H144: Atera | I144: 2914.69 | J144: EuroInfo | K144: 3440.2 | L144: 3440.2
A145: COT.CAB.33 | B145: RACK - ABERTO 19" 44 Us preto com pés niveladores, base e teto em pintura eletrostática, fornecido com dois guias de cabos laterais de 44 Us e um Guia de cabos superior. | C145: und | D145: 470 | E145: 2018-07-01 | F145: NetComputadores | G145: 452.8 | H145: CentralCabos | I145: 470 | J145: Ciclops | K145: 470.9 | L145: 470
A146: COT.CAB.34 | B146: Guia “de cabo vertical fechado 44u 19” preto | C146: und | D146: 176.61 | E146: 2018-07-01 | F146: NetComputadores | G146: 176.61 | H146: IoRedes | I146: 243.08 | J146: Rack São Paulo | K146: 139.49 | L146: 176.61
A147: COT.CAB.35 | B147: RACK - ABERTO 19" 36 Us preto com pés niveladores, base e teto em pintura eletrostática, fornecido com dois guias de cabos laterais de 36 Us e um Guia de cabos superior. | C147: und | D147: =L147 -> 470 | E147: 2018-07-01 | F147: NetComputadores | G147: 452.8 | H147: CentralCabos | I147: 470 | J147: Ciclops | K147: 470.9 | L147: 470
A156: Código | B156: CFTV/ALARME. | C156: Unidade | D156: Preço | E156: Datas | F156: LOJAS
A157: COT.CFT.1 | B157: Câmera burlet IP, resoluções de 3 MP com Lente de 3,6 alcance de 30 metros com suporte a PoE, proteção IP 66 | C157: und | D157: 720 | E157: 2019-02-01 | F157: TudoFort | G157: 529.64 | H157: Cyber | I157: 720 | J157: EuroInfo | K157: 885 | L157: =IF(K157+I157+G157=0,"",MEDIAN(K157,I157,G157)) -> 720
A158: COT.CFT.2 | B158: Câmera burlet IP, resoluções de 4 MP com Lente de 2,7 a 12mm alcance de 50 metros com suporte a PoE, proteção IP 67 | C158: und | D158: 2500 | E158: 2019-02-01 | F158: NetComputadores | G158: 2568.54 | H158: Cyber | I158: 2500 | J158: EuroInfo | K158: 2295.8 | L158: 2500
A159: COT.CFT.3 | B159: Câmera burlet IP, resoluções de 4 MP PTZ, com Lente de 1,18mm com suporte a PoE, proteção IP 67 | C159: und | D159: 2113.8 | E159: 2019-02-01 | F159: AsSeg | G159: 1680 | H159: EletroInfo | I159: 2113.8 | J159: SafeAll | K159: 2339.9 | L159: 2113.8
A160: COT.CFT.4 | B160: Gravador digital de video em rede 16 cameras IP, compressão H.265, capacidade para até 2 HDS com uma interface de rede gigabite ethernet | C160: und | D160: 2080.47 | E160: 2019-02-01 | F160: ShopTelbras | G160: 2080.47 | H160: UpperSeg | I160: 1417.64 | J160: EuroInfo | K160: 2377.2 | L160: 2080.47
A161: COT.CFT.5 | B161: Gravador digital de video em rede 24 cameras IP, compressão H.265, capacidade para até 8 HDS com duas interface de rede gigabite ethernet | C161: und | D161: 2645.11 | E161: 2019-02-01 | F161: ShopTelbras | G161: 2645.11 | H161: UpperSeg | I161: 2621.91 | J161: EuroInfo | K161: 4399.8 | L161: 2645.11
A162: COT.CFT.6 | B162: Central de alarme monitorada com 18 zonas (8 + 8 + 2 com fio + 24 sem fio) | C162: und | D162: 617.8 | E162: 2019-02-01 | F162: Extra | G162: 626.11 | H162: Cyber | I162: 508 | J162: EuroInfo | K162: 617.8 | L162: 617.8
A163: COT.CFT.7 | B163: Sensor infravermelho passivo com agulo de cobertura 115º e alcance 12m | C163: und | D163: 47.2 | E163: 2019-02-01 | F163: Extra | G163: 29.9 | H163: Cyber | I163: 69 | J163: EuroInfo | K163: 47.2 | L163: 47.2
A164: COT.CFT.8 | B164: Teclado LCD para central de alarme monitorada | C164: und | D164: 199 | E164: 2019-02-01 | F164: Seg. Telecom | G164: 163.23 | H164: Cyber | I164: 199 | J164: EuroInfo | K164: 251.2 | L164: 199
A165: COT.CFT.9 | B165: Sirene Piezoelétrica para alarmes com potência de120 Db | C165: und | D165: 24 | E165: 2019-02-01 | F165: PontoFrio | G165: 18.57 | H165: Cyber | I165: 24 | J165: EuroInfo | K165: 24 | L165: 24
A166: COT.CFT.10 | B166: Bateria de chumbo-ácido 12 V para sistemas de segurança | C166: und | D166: 74.96 | E166: 2019-02-01 | F166: UperSeg | G166: 74.96 | H166: Cyber | I166: 98 | J166: EuroInfo | K166: 74.96 | L166: 74.96
A167: COT.CFT.11 | B167: Rack fechado 19" 36 Us x 800mm profundidade, providos de base soleira com flange para passagem de cabos, aletas de ventilação com laterais em baixo relevo, lateral bi-partida com tampas removíveis porta frontal em vidro fumê temperado, base com altura de 120mm do chão para acomodação de cabos, fechaduras nas porta e nos fechamentos, pés niveladores. | C167: und | D167: 2750 | E167: 2019-02-01 | F167: ethBazer | G167: 1606.77 | H167: Cyber | I167: 7600 | J167: EuroInfo | K167: 2750 | L167: 2750
A176: Código | B176: COTAÇÕES INCÊNDIO. | C176: Unidade | D176: Preço | E176: Datas | F176: LOJAS
A177: COT.INC.1 | B177: Extintor Pó ABC - portátil - 3A-20BC - 06 Kg. | C177: und | D177: =L177 -> 144 | E177: 2016-03-15 | F177: HIDRANTEX | G177: 178.9 | H177: MFS | I177: 109 | J177: JWM | K177: 144 | L177: =IF(K177+I177+G177=0,"",MEDIAN(K177,I177,G177)) -> 144
A179: COT.INC.2 | B179: Chave de fluxo, tipo palheta rotativa, entradas roscáveis de Ø 2.1/2" (65mm), rosca BSP, corpo fabricado em ferro fundido | C179: und | D179: =L179 -> 235 | E179: editar - editar - editar | F179: MFS | G179: 235 | H179: HIDRANTEX | I179: 139.9 | J179: GUARUJA | K179: 260 | L179: 235
A180: COT.INC.3 | B180: Acionador manual de sistema de hidrante, tipo liga-desliga. (botoeira) | C180: und | D180: 45.9 | E180: editar - editar - editar | F180: MFS | G180: 39 | H180: HIDRANTEX | I180: 56.9 | J180: ILUMAC | K180: 45.9 | L180: 45.9
A181: COT.INC.4 | B181: Bomba centrífuga para incêndio 4,0CV. | C181: und | E181: editar - editar - editar
A182: COT.INC.5 | B182: Bomba Multiestágio ME 32150 B154 15-CV. | C182: und | D182: 7996.54 | E182: 2016-05-30 | F182: BS | G182: 8495 | H182: IBM | I182: 7996.54 | J182: HIDRANTEX | K182: 7649 | L182: 7996.54
A183: COT.INC.6 | B183: Reservatório Metálico em aço carbono tipo tubular cilindrico com capacidade de 10.000litros, incluso todos os acessórios e conexões (fornecimento e instalação), com frete e impostos inclusos. | C183: und | D183: 20705 | E183: editar - | F183: FAZ FORTE | G183: 16830 | H183: RPL-RESERVATÓRIOS | I183: 24580 | L183: 20705
A184: COT.INC.7 | B184: Reservatório Metálico em aço carbono tipo tubular cilindrico com capacidade de 15.000litros, incluso todos os acessórios e conexões (fornecimento e instalação), com frete e impostos inclusos. | C184: und | D184: 30450 | E184: editar - | F184: STOCKCAIXAS | G184: 34900 | H184: PASSAFARO | I184: 26000 | L184: 30450
A185: COT.INC.8 | B185: Reservatório Metálico em aço carbono tipo tubular cilindrico com capacidade de 40.000litros, incluso todos os acessórios e conexões (fornecimento e instalação), com frete e impostos inclusos. | C185: und | D185: 29750 | E185: editar - | F185: STOCKCAIXAS | G185: 36000 | H185: AGRO CAIXAS | I185: 28544.2 | J185: FAZ FORTE | K185: 29750 | L185: 29750
A186: COT.INC.9 | B186: Central de alarme para incêndio, modelo IPA 12.24 - 12 endereços, c/ bateria selada inclusa | C186: und | D186: 420 | E186: editar - editar | F186: MFS | G186: 395 | H186: PETEL | I186: 420 | J186: HIDRANTEX | K186: 554 | L186: 420
A187: COT.INC.10 | B187: Central de alarme para incêndio, tipo endereçado, micro processada, tensão de 110/220Vca, saída 24Vcc, dotada de display sinótico de LCD, 64 endereços, carregadores de bateria automático com sistema de flutuação para baterias de até 60ah-12vcc, dimensões 400x200x140mm (AxLxP), bateria selada inclusa. | C187: und | D187: 1388 | E187: editar - editar | F187: HILGERT | G187: 1386 | H187: GUARUJÁ | I187: 1390 | J187: - | L187: 1388
A188: COT.INC.11 | B188: Acionador manual de alarme de incêndio (quebra-vidro) completo | C188: und | D188: 38 | E188: 2016-03-30 | F188: MFS | G188: 38 | H188: PETEL | I188: 34 | J188: HIDRANTEX | K188: 58.9 | L188: 38
A189: COT.INC.12 | B189: Sirene piezoelétrico SP12 e SP24, intensidade sonora de 50-60DB | C189: und | D189: 28 | E189: 2016-03-30 | F189: ILUMAC | G189: 33 | H189: MFS | I189: 28 | J189: HIDRANTEX | K189: 14.9 | L189: 28
A190: COT.INC.13 | B190: Detector óptimo de fumaça (DOF), automático, para operação na tensão de funcionamento 17... 24Vcc, corrente de funcionamento 10NA, temperatura de funcionamento -25... +60ºC, grau de proteção IP44 | C190: und | D190: 68.9 | E190: 2016-03-30 | F190: MFS | G190: 82 | H190: PETEL | I190: 48 | J190: HIDRANTEX | K190: 68.9 | L190: 68.9
A191: COT.INC.14 | B191: Avisador sonoro e visual com capacidade de emissão sonora de intensidade de 100 DB. | C191: und | D191: 32 | E191: editar - | F191: PETEL | G191: 32 | H191: HIDRANTEX | I191: 36.9 | J191: JWM | K191: 27.6 | L191: 32
A192: COT.INC.15 | B192: Caixa de PVC Ø300mm x 400mm para aterramento do SPDA, com tampa de ferro fundido Ø300mm | C192: und | D192: 49.73 | E192: 2016-03-11 | F192: DIAS | G192: 37.8 | H192: IMPLEMAQ | I192: 61.66 | J192: - | L192: 49.73
A193: COT.INC.16 | B193: Presilha em forma de "U", fabricada em latão, dotada de 1furo de Ø8mm | C193: und | D193: 0.48 | E193: editar - editar - editar | F193: MONTAL | G193: 0.26 | H193: TERMOTÉCNICA | I193: 0.48 | J193: RAYCON | K193: 0.77 | L193: 0.48
A194: COT.INC.17 | B194: Conector de medição | C194: und | D194: 17.75 | F194: MONTAL | G194: 26.54 | H194: TERMOTÉCNICA | I194: 17.75 | J194: - | K194: 0 | L194: 17.75
A195: COT.INC.18 | B195: Re-bar 8 x 3,00 m - aço fogo | C195: und | D195: 15.88 | F195: MONTAL | G195: 15.88 | H195: - | J195: - | L195: 15.88
A196: COT.INC.19 | B196: Conector PF sapata 70 mm. | C196: und | D196: 17.65 | E196: editar - | F196: MONTAL | G196: 17.65 | L196: 17.65
A197: COT.INC.20 | B197: Prisioneiro red M12 para 1/4 | C197: und | D197: 3.29 | E197: editar - | F197: MONTAL | G197: 3.29 | J197: - | L197: 3.29
A198: COT.INC.21 | B198: Conector estrutural 3/8 DC Inox | C198: und | D198: 23.67 | E198: editar - | F198: MONTAL | G198: 23.67 | J198: - | L198: 23.67
A199: COT.INC.22 | B199: Solda exotérmica para conexão de cabos de cobre seções 35/50mm², junção em forma de "T", e cabo de cobre (50mm²) e haste de Ø 5/8", junção "T", cartucho tamanho 90. | C199: und | D199: 7.27 | E199: 2016-05-31 | F199: MONTAL | G199: 6.58 | H199: TERMOTÉCNICA | I199: 7.27 | J199: RAYCON | K199: 9.06 | L199: 7.27
A200: COT.INC.23 | B200: Caixa de equipotencialização para aterramento, formato quadrado, dim 40X40X15CM | C200: und | D200: =L200 -> 273.07 | E200: 25/08/2016 | F200: MONTAL | G200: 195.21 | H200: RAYCON | I200: 323 | J200: TERMOTÉCNICA | K200: 273.07 | L200: 273.07
A201: COT.INC.24 | B201: Aparelho de sinalização duplo, difusor na cor vermelha, rosca E-27, entrada rosqueada de Ø 3/4" cap. p/ 1 lâmpada - 127Vca | C201: und | D201: 140.25 | E201: editar - editar - editar | F201: MONTAL | G201: 132.78 | H201: HILGERT | I201: 177.1 | J201: RAYCON | K201: 140.25 | L201: 140.25
A202: COT.INC.25 | B202: Conexão tipo "PIG-TAIL" para botija P-45. | C202: und | D202: 45 | E202: editar - | F202: CASA DO F. | G202: 45 | H202: - | J202: - | L202: 45
A203: COT.INC.26 | B203: Manômetro de pressão, reto, rosca NPT 1/4", escala 0 - 300 PSI, diâmetro do mostrador 2,5". | C203: und | D203: 40.8 | E203: editar - | F203: GUARUJÁ | G203: 42 | H203: HILGERT | I203: 39.6 | J203: - | L203: 40.8
A204: COT.INC.27 | B204: Regulador de estágio único baixa pressão | C204: und | D204: 166.98 | E204: 2016-06-16 | F204: CLESSE | G204: 166.98 | H204: - | J204: - | L204: 166.98
A205: COT.INC.28 | B205: Regulador do 2º estágio alta pressão | C205: und | D205: 180 | E205: editar - editar | F205: CASA DO F. | G205: 180 | J205: - | L205: 180
A206: COT.INC.29 | B206: Regulador do 3º estágio alta pressão. | C206: und | E206: 2016-04-20 | H206: - | J206: -
A207: COT.INC.30 | B207: Mão de obra para execução das instalações da central GLP para 2 cilindros. | C207: und | D207: 600 | E207: editar - | F207: JG | G207: 600 | H207: - | J207: - | L207: 600
A208: COT.INC.31 | B208: Mão de obra para execução das instalações da central GLP para 4 cilindros. | C208: und | D208: 700 | E208: editar - | F208: JG | G208: 700 | H208: - | J208: - | L208: 700
A209: COT.INC.32 | B209: Mão de obra para execução das instalações da central GLP para 6 cilindros. | C209: und | D209: 700 | E209: editar - | F209: JG | G209: 700 | H209: - | J209: - | L209: 700
A210: COT.INC.33 | B210: Mão de obra para execução das instalações da central GLP para 8 cilindros. | C210: und | D210: 800 | E210: editar - | F210: JG | G210: 800 | H210: - | J210: - | L210: 800
A211: COT.INC.34 | B211: Mão de obra para execução das instalações da central GLP para 10 cilindros. | C211: und | D211: 1200 | E211: editar - | F211: JG | G211: 1200 | H211: - | J211: - | L211: 1200
A212: COT.INC.35 | B212: Mão de obra para execução das instalações da central GLP para 12 cilindros. | C212: und | D212: 1500 | E212: editar - | F212: JG | G212: 1500 | H212: - | J212: - | L212: 1500
A213: COT.INC.36 | B213: Mão de obra para execução das instalações de ponto de consumo (Aparelho) | C213: und | D213: 80 | E213: editar - | F213: JG | G213: 80 | H213: - | J213: - | L213: 80
A214: COT.INC.37 | B214: Mão de obra para execução das instalações de tubo de ferro galvanizado | C214: m | D214: 120 | E214: editar - | F214: JG | G214: 120 | H214: - | J214: - | L214: 120
A215: COT.INC.38 | B215: Mão de obra para instalações do regulador de 2º estágio em caixa metálica | C215: und | D215: 400 | E215: editar - | F215: JG | G215: 400 | H215: - | J215: - | L215: 400
A216: COT.INC. | B216: Cabo blindado (Shield) alta qualidade, 3 vias de 1,5mm² mais dreno de 1,38mm², todos trançados (21/0,280mm²), tensão máx.: 0,6kV, resistência térmica 105ºC, capa anti-chama na cor vermelha | C216: m | D216: 2.91 | E216: 2016-07-14 | F216: GUARUJÁ | G216: 2.91 | H216: HILGERT | I216: 5.39 | J216: MD | K216: 1.75 | L216: 2.91
A217: COT.INC. | B217: Cabo blindado (Shield) alta qualidade, 3 vias de 2,5mm² mais dreno de 1,38mm², todos trançados (21/0,280mm²), tensão máx.: 0,6kV, resistência térmica 105ºC, capa anti-chama na cor vermelha | C217: m | D217: 3.92 | E217: 2016-07-14 | F217: GUARUJÁ | G217: 4.22 | H217: MD | I217: 3.92 | J217: - | K217: 0 | L217: 3.92

Sheet BDI_NÃO_DESO
F1: ITEM | G1: NOME | H1: ISS | M1: NOME | N1: ADM GERAL | O1: SEGURO GARANTIA | P1: RISCO | Q1: DESP. FINAN. | R1: LUCRO | S1: COFINS | T1: PIS | U1: ISS
F2: 1 | G2: ARIQUEMES | H2: 0.05 | M2: PREFEITURA DE ALTA FLORESTA
F3: 2 | G3: ALTA FLORESTA | H3: 0.05 | M3: PREFEITURA DE ALTO ALEGRE DOS PARECIS
F4: 3 | G4: ALTO PARAÍSO | H4: 0.03 | M4: PREFEITURA DE ALVORADA DO OESTE
F5: 4 | G5: ALVORADA | H5: 0.05 | M5: PREFEITURA DE ARIQUEMES
F6: 5 | G6: BURITIS | H6: 0.03 | M6: PREFEITURA DE BURITIS | U6: 0.05
A7: ='PLANILHA ORÇAM.'!A7:H7 -> GOVERNO DE RONDÔNIA | M7: PREFEITURA DE CABIXI | U7: 0.02
A8: ='PLANILHA ORÇAM.'!A8:H8 -> PREFEITURA DE CEREJEIRAS | F8: 6 | G8: CABIXI | H8: 0.02 | M8: PREFEITURA DE CACAULÂNDIA
F9: 7 | G9: CANDEIAS DO JAMARI | H9: 0.03 | M9: PREFEITURA DE CACOAL
A10: COMPOSIÇÃO ANALÍTICA DO BDI | F10: 8 | G10: CEREJEIRAS | H10: 0.02 | M10: PREFEITURA DE CAMPO NOVO DE RONDÔNIA
F11: 9 | G11: COSTA MARQUES | H11: 0.05 | M11: PREFEITURA DE CANDEIAS DO JAMARI
A12: ="OBRA: " &'PLANILHA ORÇAM.'!B12 -> OBRA: REFORMA DA SALA DE RAIO-X DO HOSPITAL | F12: 10 | G12: CORUMBIARA | H12: 0.05 | M12: PREFEITURA DE CASTANHEIRA
A13: ="END.: " &'PLANILHA ORÇAM.'!B13 -> END.: RUA NOVA ZELÂNDIA,1192, BAIRRO CENTRO | F13: 11 | G13: CUJUBIM | H13: 0.05 | M13: PREFEITURA DE CEREJEIRAS | N13: 3 | O13: 0.8 | P13: 0.97 | Q13: 0.59 | R13: 6.16 | S13: 3 | T13: 0.65 | U13: 0.02
A14: ="LOCAL: " &'PLANILHA ORÇAM.'!B14 -> LOCAL: CEREJEIRAS / RO | F14: 12 | G14: ESPIGÃO | H14: 0.05 | M14: PREFEITURA DE CHUPINGUAIA
A15: ="ÁREA : " &'PLANILHA ORÇAM.'!B15 -> ÁREA : 52,91m² | F15: 13 | G15: ITAPUÃ DO OESTE. | H15: 0.03 | M15: PREFEITURA DE COLORADO DO OESTE | N15: 3 | O15: 0.8 | P15: 0.97 | Q15: 1.23 | R15: 6.16 | S15: 3 | T15: 0.65 | U15: 0.035
F16: 14 | G16: JI-PARANÁ | H16: 0.05 | M16: PREFEITURA DE CORUMBIARA | N16: 3 | O16: 0.8 | P16: 0.97 | Q16: 1.23 | R16: 6.16 | S16: 3 | T16: 0.65 | U16: 0.035
A17: VALORES DE BDI POR TIPO DE OBRA % | M17: PREFEITURA DE COSTA MARQUES | U17: 0.05
A18: TIPO DE OBRA | B18: 1 Quartil | C18: Médio | D18: 3 Quartil | F18: 16 | G18: MIRANTE DA SERRA | H18: 0.05 | M18: PREFEITURA DE CUJUBIM
A19: Construção de Edifícios | B19: 20.34 | C19: 22.12 | D19: 25 | F19: 17 | G19: MONTE NEGRO | H19: 0.05 | M19: PREFEITURA DE ESPIGÃO DO OESTE | N19: 3 | O19: 0.8 | P19: 0.97 | Q19: 1.23 | R19: 6.16 | S19: 3 | T19: 0.65 | U19: 0.035
F20: 18 | G20: NOVA MAMORÉ | H20: 0.05 | M20: PREFEITURA DE GOVERNADOR JORGE TEIXEIRA
A21: DESCRIÇÃO | B21: VALORES DE REFERÊNCIA - % | E21: BDI ADOTADO % | F21: 19 | G21: PARECIS | H21: 0.05 | M21: PREFEITURA DE GUAJARA MIRIM
B22: 1º QUARTIL | C22: MÉDIO | D22: 3º QUARTIL | F22: 20 | G22: PRESIDENTE MÉDICI | H22: 0.05 | M22: PREFEITURA DE ITAPUÃ DO OESTE | U22: 0.03
A23: Administração Central | B23: 3 | C23: 4 | D23: 5.5 | E23: 3 | F23: 21 | G23: PIMENTEIRAS | H23: 0.05 | M23: PREFEITURA DE JARU | U23: 0.05
A24: Seguro e Garantia (*) | B24: 0.8 | C24: 0.8 | D24: 1 | E24: 0.8 | F24: 22 | G24: PRIMAVERA | H24: 0.05 | M24: PREFEITURA DE JI-PARANA
A25: Risco | B25: 0.97 | C25: 1.27 | D25: 1.27 | E25: 0.97 | F25: 23 | G25: ROLIM DE MOURA | H25: 0.05 | M25: PREFEITURA DE MACHADINHO D'OESTE
A26: Despesas Financeiras | B26: 0.59 | C26: 1.23 | D26: 1.39 | E26: 1.23 | F26: 24 | G26: SÃO FELIPE | H26: 0.05 | M26: PREFEITURA DE MINISTRO ANDREAZZA
A27: Lucro | B27: 6.16 | C27: 7.4 | D27: 8.96 | E27: 7.4 | F27: 25 | G27: SANTA LUZIA | H27: 0.05 | M27: PREFEITURA DE MIRANTE DA SERRA
A28: Tributos (Confins, PIS e ISSQN) | B28: =SUM(B29:B31) -> 5.65 | C28: =SUM(C29:C31) -> 6.65 | D28: =SUM(D29:D31) -> 8.65 | E28: =SUM(E29:E31) -> 5.45 | F28: 26 | G28: SÃO FRANCISCO | H28: 0.05 | M28: PREFEITURA DE NOVA BRASILÂNDIA DO OESTE
A29: COFINS | B29: 3 | C29: 3 | D29: 3 | E29: 3 | F29: 27 | G29: SÃO MIGUEL | H29: 0.05 | M29: PREFEITURA DE NOVA MAMORÉ | U29: 0.05
A30: PIS | B30: 0.65 | C30: 0.65 | D30: 0.65 | E30: 0.65 | F30: 28 | G30: TEIXEIRÓPOLIS | H30: 0.05 | I30: 5 | J30: =I30*G32 -> 1.0235 | K30: =I30+J30 -> 6.0235 | M30: PREFEITURA DE NOVO HORIZONTE DO OESTE
A31: ISSQN (**) | B31: 2 | C31: 3 | D31: 5 | E31: =0.3*6 -> 1.8 | F31: 29 | G31: VALE DO PARAÍSO | H31: 0.05 | K31: =I30*H32 -> 6.0235 | M31: PREFEITURA DE PARECIS
A32: TOTAL | E32: =ROUND((((((1+E23/100+E24/100+E25/100)*(1+E26/100)*(1+E27/100))/(1-E28/100))-1)*100),2) -> 20.47 | F32: =E32/100 -> 0.2047 | G32: =E32/100 -> 0.2047 | H32: =G32+1 -> 1.2047 | M32: PREFEITURA DE PIMENTA BUENO
M33: PREFEITURA DE PIMENTEIRAS DO OESTE | N33: 3 | O33: 0.8 | P33: 0.97 | Q33: 1.23 | R33: 7.4 | S33: 3 | T33: 0.65 | U33: 0.018
A34: Fonte da composição, valores de referência e fórmula do BDI: Acórdão 2622/2013 - TCU - Plenário | M34: PREFEITURA DE PORTO VELHO
G35: =E23+E24+E25+E26+E27+E28 -> 18.85 | M35: PREFEITURA DE PRESIDENTE MEDICI | U35: 0.03
A36: Os valores de BDI acima foram calculados com emprego da fórmula abaixo: | M36: PREFEITURA DE PRIMAVERA DE RONDÔNIA
M37: PREFEITURA DE RIO CRESPO
M38: PREFEITURA DE ROLIM DE MOURA
M39: PREFEITURA DE SANTA LUZIA DO OESTE | U39: 0.05
M40: PREFEITURA DE SÃO FELIPE DO OESTE
A41: Onde: | M41: PREFEITURA DE SÃO FRANCISCO DO GUAPORÉ | U41: 0.05
A42: AC = taxa de rateio da Administração Central; | M42: PREFEITURA DE SÃO MIGUEL DO GUAPORÉ | U42: 0.05
A43: DF = taxa das despesas financeiras; | M43: PREFEITURA DE SERINGUEIRAS
A44: S = taxa de seguro; R = taxa de risco e G = garantia do empreendimento; | M44: PREFEITURA DE TEIXEIRÓPOLIS | U44: 0.05
A45: I = taxa de tributos; | M45: PREFEITURA DE THEOBROMA
A46: L = taxa de lucro. | M46: PREFEITURA DE URUPA
M47: PREFEITURA DE VALE DO ANARI
A48: OBS: | M48: PREFEITURA DE VALE DO PARAISO | U48: 0.05
A49: (*) - PODE HAVER GARANTIA DESDE QUE PREVISTO NO EDITAL DA LICITAÇÃO E NO CONTRATO DE EXECUÇÃO. | M49: PREFEITURA DE VILHENA
A50: (**) - PODEM SER ACEITOS OUTROS PERCENTUAIS DE ISS DESDE QUE DEVIDAMENTE EMBASADOS NA LEGISLAÇÃO MUNICIPAL.
A51: (***) - CONTRIBUIÇÃO PREVIDENCIÁRIA INSTITUÍDA PARA DESONERAR A FOLHA DE SALÁRIOS DE DIVERSAS ATIVIDADES ECONÔMICAS DA CONSTRUÇÃO CIVIL PODERÁ IMPACTAR AS TAXAS DE BDI MEDIANTE A MAJORAÇÃO DO PERCENTUAL CORRESPONDENTE A 4,5%

Sheet BDI_DESO (hidden)
F1: ITEM | G1: NOME | H1: ISS
F2: 1 | G2: ARIQUEMES | H2: 0.05
F3: 2 | G3: ALTA FLORESTA | H3: 0.05
F4: 3 | G4: ALTO PARAÍSO | H4: 0.03
F5: 4 | G5: ALVORADA | H5: 0.05
F6: 5 | G6: BURITIS | H6: 0.03
A7: ='PLANILHA ORÇAM.'!$A$7:$H$7 -> GOVERNO DE RONDÔNIA
A8: ='PLANILHA ORÇAM.'!A8 -> PREFEITURA DE CEREJEIRAS | F8: 6 | G8: CABIXI | H8: 0.02
F9: 7 | G9: CANDEIAS DO JAMARI | H9: 0.03
A10: COMPOSIÇÃO ANALÍTICA DO BDI | F10: 8 | G10: CEREJEIRAS | H10: 0.02
F11: 9 | G11: COSTA MARQUES | H11: 0.05
A12: ="OBRA: " &'PLANILHA ORÇAM.'!B12 -> OBRA: REFORMA DA SALA DE RAIO-X DO HOSPITAL | F12: 10 | G12: CORUMBIARA | H12: 0.05
A13: ="END.: " &'PLANILHA ORÇAM.'!B13 -> END.: RUA NOVA ZELÂNDIA,1192, BAIRRO CENTRO | F13: 11 | G13: CUJUBIM | H13: 0.05
A14: ="LOCAL: " &'PLANILHA ORÇAM.'!B14 -> LOCAL: CEREJEIRAS / RO | F14: 12 | G14: ESPIGÃO | H14: 0.05
A15: ="ÁREA : " &'PLANILHA ORÇAM.'!B15 -> ÁREA : 52,91m² | F15: 13 | G15: ITAPUÃ DO OESTE. | H15: 0.03
F16: 14 | G16: JI-PARANÁ | H16: 0.05
A17: VALORES DE BDI POR TIPO DE OBRA %
A18: TIPO DE OBRA | B18: 1 Quartil | C18: Médio | D18: 3 Quartil | F18: 16 | G18: MIRANTE DA SERRA | H18: 0.05
A19: Construção de Edifícios | B19: 20.34 | C19: 22.12 | D19: 25 | F19: 17 | G19: MONTE NEGRO | H19: 0.05
F20: 18 | G20: NOVA MAMORÉ | H20: 0.05
A21: DESCRIÇÃO | B21: VALORES DE REFERÊNCIA - % | E21: BDI ADOTADO % | F21: 19 | G21: PARECIS | H21: 0.05
B22: 1º QUARTIL | C22: MÉDIO | D22: 3º QUARTIL | F22: 20 | G22: PRESIDENTE MÉDICI | H22: 0.05
A23: Administração Central | B23: 3 | C23: 4 | D23: 5.5 | E23: 3 | F23: 21 | G23: PIMENTEIRAS | H23: 0.05
A24: Seguro e Garantia (*) | B24: 0.8 | C24: 0.8 | D24: 1 | E24: 0.8 | F24: 22 | G24: PRIMAVERA | H24: 0.05
A25: Risco | B25: 0.97 | C25: 1.27 | D25: 1.27 | E25: 0.97 | F25: 23 | G25: ROLIM DE MOURA | H25: 0.05
A26: Despesas Financeiras | B26: 0.59 | C26: 1.23 | D26: 1.39 | E26: 1.23 | F26: 24 | G26: SÃO FELIPE | H26: 0.05
A27: Lucro | B27: 6.16 | C27: 7.4 | D27: 8.96 | E27: 7.4 | F27: 25 | G27: SANTA LUZIA | H27: 0.05
A28: Tributos (Confins, PIS e ISSQN) + 4,5% INSS | B28: =SUM(B29:B32) -> 10.15 | C28: =SUM(C29:C32) -> 11.15 | D28: =SUM(D29:D32) -> 13.15 | E28: =SUM(E29:E32) -> 9.95 | F28: 26 | G28: SÃO FRANCISCO | H28: 0.05
A29: COFINS | B29: 3 | C29: 3 | D29: 3 | E29: 3 | F29: 27 | G29: SÃO MIGUEL | H29: 0.05
A30: PIS | B30: 0.65 | C30: 0.65 | D30: 0.65 | E30: 0.65 | F30: 28 | G30: TEIXEIRÓPOLIS | H30: 0.05 | I30: 5 | J30: =I30*G33 -> 1.3245 | K30: =I30+J30 -> 6.3245
A31: ISSQN (**) | B31: 2 | C31: 3 | D31: 5 | E31: =0.3*6 -> 1.8 | F31: 29 | G31: VALE DO PARAÍSO | H31: 0.05 | K31: =I30*H33 -> 6.3245
A32: CPRB (***) | B32: 4.5 | C32: 4.5 | D32: 4.5 | E32: 4.5
A33: TOTAL | E33: =ROUND((((((1+E23/100+E24/100+E25/100)*(1+E26/100)*(1+E27/100))/(1-E28/100))-1)*100),2) -> 26.49 | F33: =E33/100 -> 0.2649 | G33: =E33/100 -> 0.2649 | H33: =G33+1 -> 1.2649
A35: Fonte da composição, valores de referência e fórmula do BDI: Acórdão 2622/2013 - TCU - Plenário
A37: Os valores de BDI acima foram calculados com emprego da fórmula abaixo:
A42: Onde:
A43: AC = taxa de rateio da Administração Central;
A44: DF = taxa das despesas financeiras;
A45: S = taxa de seguro; R = taxa de risco e G = garantia do empreendimento;
A46: I = taxa de tributos;
A47: L = taxa de lucro.
A49: OBS:
A50: (*) - PODE HAVER GARANTIA DESDE QUE PREVISTO NO EDITAL DA LICITAÇÃO E NO CONTRATO DE EXECUÇÃO.
A51: (**) - PODEM SER ACEITOS OUTROS PERCENTUAIS DE ISS DESDE QUE DEVIDAMENTE EMBASADOS NA LEGISLAÇÃO MUNICIPAL.
A52: (***) - CONTRIBUIÇÃO PREVIDENCIÁRIA INSTITUÍDA PARA DESONERAR A FOLHA DE SALÁRIOS DE DIVERSAS ATIVIDADES ECONÔMICAS DA CONSTRUÇÃO CIVIL PODERÁ IMPACTAR AS TAXAS DE BDI MEDIANTE A MAJORAÇÃO DO PERCENTUAL CORRESPONDENTE A 4,5%

Sheet COM DESONERADO (hidden)
A2: 97141 | B2: Assentamento de tubo de ferro fundido para rede de água, dn 80 mm, junta elástica, instalado em local com nível alto de interferências (não inclui fornecimento). af_11/2017 | C2: m | D2: 7.12 | E2: C
A3: 97142 | B3: Assentamento de tubo de ferro fundido para rede de água, dn 100 mm, junta elástica, instalado em local com nível alto de interferências (não inclui fornecimento). af_11/2017 | C3: m | D3: 7.97 | E3: C
A4: 97143 | B4: Assentamento de tubo de ferro fundido para rede de água, dn 150 mm, junta elástica, instalado em local com nível alto de interferências (não inclui fornecimento). af_11/2017 | C4: m | D4: 10.08 | E4: C
A5: 97144 | B5: Assentamento de tubo de ferro fundido para rede de água, dn 200 mm, junta elástica, instalado em local com nível alto de interferências (não inclui fornecimento). af_11/2017 | C5: m | D5: 12.19 | E5: C
A6: 97145 | B6: Assentamento de tubo de ferro fundido para rede de água, dn 250 mm, junta elástica, instalado em local com nível alto de interferências (não inclui fornecimento). af_11/2017 | C6: m | D6: 14.32 | E6: C
A7: 97146 | B7: Assentamento de tubo de ferro fundido para rede de água, dn 300 mm, junta elástica, instalado em local com nível alto de interferências (não inclui fornecimento). af_11/2017 | C7: m | D7: 16.43 | E7: C
A8: 97147 | B8: Assentamento de tubo de ferro fundido para rede de água, dn 350 mm, junta elástica, instalado em local com nível alto de interferências (não inclui fornecimento). af_11/2017 | C8: m | D8: 18.56 | E8: C
A9: 97148 | B9: Assentamento de tubo de ferro fundido para rede de água, dn 400 mm, junta elástica, instalado em local com nível alto de interferências (não inclui fornecimento). af_11/2017 | C9: m | D9: 20.69 | E9: C
A10: 97149 | B10: Assentamento de tubo de ferro fundido para rede de água, dn 450 mm, junta elástica, instalado em local com nível alto de interferências (não inclui fornecimento). af_11/2017 | C10: m | D10: 22.83 | E10: C
A11: 97150 | B11: Assentamento de tubo de ferro fundido para rede de água, dn 500 mm, junta elástica, instalado em local com nível alto de interferências (não inclui fornecimento). af_11/2017 | C11: m | D11: 27.98 | E11: C
A12: 97151 | B12: Assentamento de tubo de ferro fundido para rede de água, dn 600 mm, junta elástica, instalado em local com nível alto de interferências (não inclui fornecimento). af_11/2017 | C12: m | D12: 32.7 | E12: C
A13: 97152 | B13: Assentamento de tubo de ferro fundido para rede de água, dn 700 mm, junta elástica, instalado em local com nível alto de interferências (não inclui fornecimento). af_11/2017 | C13: m | D13: 37.23 | E13: C
A14: 97153 | B14: Assentamento de tubo de ferro fundido para rede de água, dn 800 mm, junta elástica, instalado em local com nível alto de interferências (não inclui fornecimento). af_11/2017 | C14: m | D14: 41.88 | E14: C
A15: 97154 | B15: Assentamento de tubo de ferro fundido para rede de água, dn 900 mm, junta elástica, instalado em local com nível alto de interferências (não inclui fornecimento). af_11/2017 | C15: m | D15: 46.54 | E15: C
A16: 97155 | B16: Assentamento de tubo de ferro fundido para rede de água, dn 1000 mm, junta elástica, instalado em local com nível alto de interferências (não inclui fornecimento). af_11/2017 | C16: m | D16: 51.21 | E16: C
A17: 97156 | B17: Assentamento de tubo de ferro fundido para rede de água, dn 1200 mm, junta elástica, instalado em local com nível alto de interferências (não inclui fornecimento). af_11/2017 | C17: m | D17: 60.85 | E17: C
A18: 97157 | B18: Assentamento de tubo de ferro fundido para rede de água, dn 80 mm, junta elástica, instalado em local com nível baixo de interferências (não inclui fornecimento). af_11/2017 | C18: m | D18: 4.33 | E18: C
A19: 97158 | B19: Assentamento de tubo de ferro fundido para rede de água, dn 100 mm, junta elástica, instalado em local com nível baixo de interferências (não inclui fornecimento). af_11/2017 | C19: m | D19: 4.84 | E19: C
A20: 97159 | B20: Assentamento de tubo de ferro fundido para rede de água, dn 150 mm, junta elástica, instalado em local com nível baixo de interferências (não inclui fornecimento). af_11/2017 | C20: m | D20: 6.15 | E20: C
A21: 97160 | B21: Assentamento de tubo de ferro fundido para rede de água, dn 200 mm, junta elástica, instalado em local com nível baixo de interferências (não inclui fornecimento). af_11/2017 | C21: m | D21: 7.43 | E21: C
A22: 97161 | B22: Assentamento de tubo de ferro fundido para rede de água, dn 250 mm, junta elástica, instalado em local com nível baixo de interferências (não inclui fornecimento). af_11/2017 | C22: m | D22: 8.73 | E22: C
A23: 97162 | B23: Assentamento de tubo de ferro fundido para rede de água, dn 300 mm, junta elástica, instalado em local com nível baixo de interferências (não inclui fornecimento). af_11/2017 | C23: m | D23: 10.03 | E23: C
A24: 97163 | B24: Assentamento de tubo de ferro fundido para rede de água, dn 350 mm, junta elástica, instalado em local com nível baixo de interferências (não inclui fornecimento). af_11/2017 | C24: m | D24: 11.33 | E24: C
A25: 97164 | B25: Assentamento de tubo de ferro fundido para rede de água, dn 400 mm, junta elástica, instalado em local com nível baixo de interferências (não inclui fornecimento). af_11/2017 | C25: m | D25: 12.65 | E25: C
A26: 97165 | B26: Assentamento de tubo de ferro fundido para rede de água, dn 450 mm, junta elástica, instalado em local com nível baixo de interferências (não inclui fornecimento). af_11/2017 | C26: m | D26: 13.97 | E26: C
A27: 97166 | B27: Assentamento de tubo de ferro fundido para rede de água, dn 500 mm, junta elástica, instalado em local com nível baixo de interferências (não inclui fornecimento). af_11/2017 | C27: m | D27: 17.11 | E27: C
A28: 97167 | B28: Assentamento de tubo de ferro fundido para rede de água, dn 600 mm, junta elástica, instalado em local com nível baixo de interferências (não inclui fornecimento). af_11/2017 | C28: m | D28: 20.01 | E28: C
A29: 97168 | B29: Assentamento de tubo de ferro fundido para rede de água, dn 700 mm, junta elástica, instalado em local com nível baixo de interferências (não inclui fornecimento). af_11/2017 | C29: m | D29: 22.74 | E29: C
A30: 97169 | B30: Assentamento de tubo de ferro fundido para rede de água, dn 800 mm, junta elástica, instalado em local com nível baixo de interferências (não inclui fornecimento). af_11/2017 | C30: m | D30: 25.57 | E30: C
A31: 97170 | B31: Assentamento de tubo de ferro fundido para rede de água, dn 900 mm, junta elástica, instalado em local com nível baixo de interferências (não inclui fornecimento). af_11/2017 | C31: m | D31: 28.42 | E31: C
A32: 97171 | B32: Assentamento de tubo de ferro fundido para rede de água, dn 1000 mm, junta elástica, instalado em local com nível baixo de interferências (não inclui fornecimento). af_11/2017 | C32: m | D32: 31.3 | E32: C
A33: 97172 | B33: Assentamento de tubo de ferro fundido para rede de água, dn 1200 mm, junta elástica, instalado em local com nível baixo de interferências (não inclui fornecimento). af_11/2017 | C33: m | D33: 37.32 | E33: C
A34: 97173 | B34: Assentamento de tubo de aço carbono para rede de água, dn 600 mm (24), junta soldada, instalado em local com nível alto de interferências (não inclui fornecimento). af_11/2017 | C34: m | D34: 25.48 | E34: C
A35: 97174 | B35: Assentamento de tubo de aço carbono para rede de água, dn 700 mm (28), junta soldada, instalado em local com nível alto de interferências (não inclui fornecimento). af_11/2017 | C35: m | D35: 29.4 | E35: C
A36: 97175 | B36: Assentamento de tubo de aço carbono para rede de água, dn 800 mm (32), junta soldada, instalado em local com nível alto de interferências (não inclui fornecimento). af_11/2017 | C36: m | D36: 33.31 | E36: C
A37: 97176 | B37: Assentamento de tubo de aço carbono para rede de água, dn 900 mm (36), junta soldada, instalado em local com nível alto de interferências (não inclui fornecimento). af_11/2017 | C37: m | D37: 37.22 | E37: C
A38: 97177 | B38: Assentamento de tubo de aço carbono para rede de água, dn 1000 mm (40) ou dn 1100 mm (44), junta soldada, instalado em local com nível alto de interferências (não inclui fornecimento). af_11/2017 | C38: m | D38: 45.08 | E38: C
A39: 97178 | B39: Assentamento de tubo de aço carbono para rede de água, dn 1200 mm (48) ou dn 1300 mm (52), junta soldada, instalado em local com nível alto de interferências (não inclui fornecimento). af_11/2017 | C39: m | D39: 52.92 | E39: C
A40: 97179 | B40: Assentamento de tubo de aço carbono para rede de água, dn 1400 mm (56'') ou dn 1500 mm (60), junta soldada, instalado em local com nível alto de interferências (não inclui fornecimento). af_11/2017 | C40: m | D40: 60.77 | E40: C
A41: 97180 | B41: Assentamento de tubo de aço carbono para rede de água, dn 1600 mm (64) ou dn 1700 mm (68), junta soldada, instalado em local com nível alto de interferências (não inclui fornecimento). af_11/2017 | C41: m | D41: 68.6 | E41: C
A42: 97181 | B42: Assentamento de tubo de aço carbono para rede de água, dn 1800 mm (72) ou dn 1900 mm (76), junta soldada, instalado em local com nível alto de interferências (não inclui fornecimento). af_11/2017 | C42: m | D42: 79.65 | E42: C
A43: 97182 | B43: Assentamento de tubo de aço carbono para rede de água, dn 2000 mm (80) ou dn 2100 mm (84), junta soldada, instalado em local com nível alto de interferências (não inclui fornecimento). af_11/2017 | C43: m | D43: 87.83 | E43: C
A44: 97183 | B44: Assentamento de tubo de aço carbono para rede de água, dn 600 mm (24), junta soldada, instalado em local com nível baixo de interferências (não inclui fornecimento). af_11/2017 | C44: m | D44: 19.99 | E44: C
A45: 97184 | B45: Assentamento de tubo de aço carbono para rede de água, dn 700 mm (28), junta soldada, instalado em local com nível baixo de interferências (não inclui fornecimento). af_11/2017 | C45: m | D45: 23.12 | E45: C
A46: 97185 | B46: Assentamento de tubo de aço carbono para rede de água, dn 800 mm (32), junta soldada, instalado em local com nível baixo de interferências (não inclui fornecimento). af_11/2017 | C46: m | D46: 26.25 | E46: C
A47: 97186 | B47: Assentamento de tubo de aço carbono para rede de água, dn 900 mm (36), junta soldada, instalado em local com nível baixo de interferências (não inclui fornecimento). af_11/2017 | C47: m | D47: 29.38 | E47: C
A48: 97187 | B48: Assentamento de tubo de aço carbono para rede de água, dn 1000 mm (40 ) ou dn 1100 mm (44 ), junta soldada, instalado em local com nível baixo de interferências (não inclui fornecimento). af_11/2017 | C48: m | D48: 35.65 | E48: C
A49: 97188 | B49: Assentamento de tubo de aço carbono para rede de água, dn 1200 mm (48) ou dn 1300 mm (52), junta soldada, instalado em local com nível baixo de interferências (não inclui fornecimento). af_11/2017 | C49: m | D49: 41.91 | E49: C
A50: 97189 | B50: Assentamento de tubo de aço carbono para rede de água, dn 1400 mm (56'') ou dn 1500 mm (60), junta soldada, instalado em local com nível baixo de interferências (não inclui fornecimento). af_11/2017 | C50: m | D50: 48.19 | E50: C
A51: 97190 | B51: Assentamento de tubo de aço carbono para rede de água, dn 1600 mm (64) ou dn 1700 mm (68), junta soldada, instalado em local com nível baixo de interferências (não inclui fornecimento). af_11/2017 | C51: m | D51: 54.45 | E51: C
A52: 97191 | B52: Assentamento de tubo de aço carbono para rede de água, dn 1800 mm (72) ou dn 1900 mm (76), junta soldada, instalado em local com nível baixo de interferências (não inclui fornecimento). af_11/2017 | C52: m | D52: 63.2 | E52: C
A53: 97192 | B53: Assentamento de tubo de aço carbono para rede de água, dn 2000 mm (80) ou dn 2100 mm (84), junta soldada, instalado em local com nível baixo de interferências (não inclui fornecimento). af_11/2017 | C53: m | D53: 69.73 | E53: C
A54: 90694 | B54: Tubo de pvc para rede coletora de esgoto de parede maciça, dn 100 mm, junta elástica, instalado em local com nível baixo de interferências - fornecimento e assentamento. af_06/2015 | C54: m | D54: 23.07 | E54: C
A55: 90695 | B55: Tubo de pvc para rede coletora de esgoto de parede maciça, dn 150 mm, junta elástica, instalado em local com nível baixo de interferências - fornecimento e assentamento. af_06/2015 | C55: m | D55: 47.19 | E55: C
A56: 90696 | B56: Tubo de pvc para rede coletora de esgoto de parede maciça, dn 200 mm, junta elástica, instalado em local com nível baixo de interferências - fornecimento e assentamento. af_06/2015 | C56: m | D56: 69.74 | E56: C
A57: 90697 | B57: Tubo de pvc para rede coletora de esgoto de parede maciça, dn 250 mm, junta elástica, instalado em local com nível baixo de interferências - fornecimento e assentamento. af_06/2015 | C57: m | D57: 116.71 | E57: C
A58: 90698 | B58: Tubo de pvc para rede coletora de esgoto de parede maciça, dn 300 mm, junta elástica, instalado em local com nível baixo de interferências - fornecimento e assentamento. af_06/2015 | C58: m | D58: 186.26 | E58: C
A59: 90699 | B59: Tubo de pvc para rede coletora de esgoto de parede maciça, dn 350 mm, junta elástica, instalado em local com nível baixo de interferências - fornecimento e assentamento. af_06/2015 | C59: m | D59: 230.05 | E59: C
A60: 90700 | B60: Tubo de pvc para rede coletora de esgoto de parede maciça, dn 400 mm, junta elástica, instalado em local com nível baixo de interferências - fornecimento e assentamento. af_06/2015 | C60: m | D60: 302.91 | E60: C
A61: 90701 | B61: Tubo de pvc corrugado de dupla parede para rede coletora de esgoto, dn 150 mm, junta elástica, instalado em local com nível baixo de interferências - fornecimento e assentamento. af_06/2015 | C61: m | D61: 41.47 | E61: C
A62: 90702 | B62: Tubo de pvc corrugado de dupla parede para rede coletora de esgoto, dn 200 mm, junta elástica, instalado em local com nível baixo de interferências - fornecimento e assentamento. af_06/2015 | C62: m | D62: 63.98 | E62: C
A63: 90703 | B63: Tubo de pvc corrugado de dupla parede para rede coletora de esgoto, dn 250 mm, junta elástica, instalado em local com nível baixo de interferências - fornecimento e assentamento. af_06/2015 | C63: m | D63: 102.64 | E63: C
A64: 90704 | B64: Tubo de pvc corrugado de dupla parede para rede coletora de esgoto, dn 300 mm, junta elástica, instalado em local com nível baixo de interferências - fornecimento e assentamento. af_06/2015 | C64: m | D64: 140.57 | E64: C
A65: 90705 | B65: Tubo de pvc corrugado de dupla parede para rede coletora de esgoto, dn 350 mm, junta elástica, instalado em local com nível baixo de interferências - fornecimento e assentamento. af_06/2015 | C65: m | D65: 196.3 | E65: C
A66: 90706 | B66: Tubo de pvc corrugado de dupla parede para rede coletora de esgoto, dn 400 mm, junta elástica, instalado em local com nível baixo de interferências - fornecimento e assentamento. af_06/2015 | C66: m | D66: 236.31 | E66: C
A67: 90708 | B67: Tubo de pead corrugado de dupla parede para rede coletora de esgoto, dn 600 mm, junta elástica integrada, instalado em local com nível baixo de interferências - fornecimento e assentamento. af_06/2015 | C67: m | D67: 631.47 | E67: C
A68: 90709 | B68: Tubo de pvc para rede coletora de esgoto de parede maciça, dn 100 mm, junta elástica, instalado em local com nível alto de interferências - fornecimento e assentamento. af_06/2015 | C68: m | D68: 25.14 | E68: C
A69: 90710 | B69: Tubo de pvc para rede coletora de esgoto de parede maciça, dn 150 mm, junta elástica, instalado em local com nível alto de interferências - fornecimento e assentamento. af_06/2015 | C69: m | D69: 49.26 | E69: C
A70: 90711 | B70: Tubo de pvc para rede coletora de esgoto de parede maciça, dn 200 mm, junta elástica, instalado em local com nível alto de interferências - fornecimento e assentamento. af_06/2015 | C70: m | D70: 71.8 | E70: C
A71: 90712 | B71: Tubo de pvc para rede coletora de esgoto de parede maciça, dn 250 mm, junta elástica, instalado em local com nível alto de interferências - fornecimento e assentamento. af_06/2015 | C71: m | D71: 118.77 | E71: C
A72: 90713 | B72: Tubo de pvc para rede coletora de esgoto de parede maciça, dn 300 mm, junta elástica, instalado em local com nível alto de interferências - fornecimento e assentamento. af_06/2015 | C72: m | D72: 188.33 | E72: C
A73: 90714 | B73: Tubo de pvc para rede coletora de esgoto de parede maciça, dn 350 mm, junta elástica, instalado em local com nível alto de interferências - fornecimento e assentamento. af_06/2015 | C73: m | D73: 232.11 | E73: C
A74: 90715 | B74: Tubo de pvc para rede coletora de esgoto de parede maciça, dn 400 mm, junta elástica, instalado em local com nível alto de interferências - fornecimento e assentamento. af_06/2015 | C74: m | D74: 307.03 | E74: C
A75: 90716 | B75: Tubo de pvc corrugado de dupla parede para rede coletora de esgoto, dn 150 mm, junta elástica, instalado em local com nível alto de interferências - fornecimento e assentamento. af_06/2015 | C75: m | D75: 43.53 | E75: C
A76: 90717 | B76: Tubo de pvc corrugado de dupla parede para rede coletora de esgoto, dn 200 mm, junta elástica, instalado em local com nível alto de interferências - fornecimento e assentamento. af_06/2015 | C76: m | D76: 66.04 | E76: C
A77: 90718 | B77: Tubo de pvc corrugado de dupla parede para rede coletora de esgoto, dn 250 mm, junta elástica, instalado em local com nível alto de interferências - fornecimento e assentamento. af_06/2015 | C77: m | D77: 104.71 | E77: C
A78: 90719 | B78: Tubo de pvc corrugado de dupla parede para rede coletora de esgoto, dn 300 mm, junta elástica, instalado em local com nível alto de interferências - fornecimento e assentamento. af_06/2015 | C78: m | D78: 142.64 | E78: C
A79: 90720 | B79: Tubo de pvc corrugado de dupla parede para rede coletora de esgoto, dn 350 mm, junta elástica, instalado em local com nível alto de interferências - fornecimento e assentamento. af_06/2015 | C79: m | D79: 198.36 | E79: C
A80: 90721 | B80: Tubo de pvc corrugado de dupla parede para rede coletora de esgoto, dn 400 mm, em junta elástica, instalado em local com nível alto de interferências - fornecimento e assentamento. af_06/2015 | C80: m | D80: 240.44 | E80: C
A81: 90723 | B81: Tubo de pead corrugado de dupla parede para rede coletora de esgoto, dn 600 mm, junta elástica integrada, instalado em local com nível alto de interferências - fornecimento e assentamento. af_06/2015 | C81: m | D81: 634.05 | E81: C
A82: 90724 | B82: Junta argamassada entre tubo dn 100 mm e o poço de visita/ caixa de concreto ou alvenaria em redes de esgoto. af_06/2015 | C82: und | D82: 23.99 | E82: C
A83: 90725 | B83: Junta argamassada entre tubo dn 150 mm e o poço de visita/ caixa de concreto ou alvenaria em redes de esgoto. af_06/2015 | C83: und | D83: 29.61 | E83: C
A84: 90726 | B84: Junta argamassada entre tubo dn 200 mm e o poço/ caixa de concreto ou alvenaria em redes de esgoto. af_06/2015 | C84: und | D84: 35.24 | E84: C
A85: 90727 | B85: Junta argamassada entre tubo dn 250 mm e o poço de visita/ caixa de concreto ou alvenaria em redes de esgoto. af_06/2015 | C85: und | D85: 40.86 | E85: C
A86: 90728 | B86: Junta argamassada entre tubo dn 300 mm e o poço de visita/ caixa de concreto ou alvenaria em redes de esgoto. af_06/2015 | C86: und | D86: 46.49 | E86: C
A87: 90729 | B87: Junta argamassada entre tubo dn 350 mm e o poço de visita/ caixa de concreto ou alvenaria em redes de esgoto. af_06/2015 | C87: und | D87: 52.12 | E87: C
A88: 90730 | B88: Junta argamassada entre tubo dn 400 mm e o poço de visita/ caixa de concreto ou alvenaria em redes de esgoto. af_06/2015 | C88: und | D88: 57.79 | E88: C
A89: 90731 | B89: Junta argamassada entre tubo dn 450 mm e o poço de visita/ caixa de concreto ou alvenaria em redes de esgoto. af_06/2015 | C89: und | D89: 63.42 | E89: C
A90: 90732 | B90: Junta argamassada entre tubo dn 600 mm e o poço de visita/ caixa de concreto ou alvenaria em redes de esgoto. af_06/2015 | C90: und | D90: 80.29 | E90: C
A91: 90733 | B91: Assentamento de tubo de pvc para rede coletora de esgoto de parede maciça, dn 100 mm, junta elástica, instalado em local com nível baixo de interferências (não inclui fornecimento). af_06/2015 | C91: m | D91: 2.6 | E91: C
A92: 90734 | B92: Assentamento de tubo de pvc para rede coletora de esgoto de parede maciça, dn 150 mm, junta elástica, instalado em local com nível baixo de interferências (não inclui fornecimento). af_06/2015 | C92: m | D92: 3.18 | E92: C
A93: 90735 | B93: Assentamento de tubo de pvc para rede coletora de esgoto de parede maciça, dn 200 mm, junta elástica, instalado em local com nível baixo de interferências (não inclui fornecimento). af_06/2015 | C93: m | D93: 3.77 | E93: C
A94: 90736 | B94: Assentamento de tubo de pvc para rede coletora de esgoto de parede maciça, dn 250 mm, junta elástica, instalado em local com nível baixo de interferências (não inclui fornecimento). af_06/2015 | C94: m | D94: 4.35 | E94: C
A95: 90737 | B95: Assentamento de tubo de pvc para rede coletora de esgoto de parede maciça, dn 300 mm, junta elástica, instalado em local com nível baixo de interferências (não inclui fornecimento). af_06/2015 | C95: m | D95: 4.93 | E95: C
A96: 90738 | B96: Assentamento de tubo de pvc para rede coletora de esgoto de parede maciça, dn 350 mm, junta elástica, instalado em local com nível baixo de interferências (não inclui fornecimento). af_06/2015 | C96: m | D96: 5.52 | E96: C
A97: 90739 | B97: Assentamento de tubo de pvc para rede coletora de esgoto de parede maciça, dn 400 mm, junta elástica, instalado em local com nível baixo de interferências (não inclui fornecimento). af_06/2015 | C97: m | D97: 12.16 | E97: C
A98: 90740 | B98: Assentamento de tubo de pvc corrugado de dupla parede para rede coletora de esgoto, dn 150 mm, junta elástica, instalado em local com nível baixo de interferências (não inclui fornecimento). af_06/2015 | C98: m | D98: 5.81 | E98: C
A99: 90741 | B99: Assentamento de tubo de pvc corrugado de dupla parede para rede coletora de esgoto, dn 200 mm, junta elástica, instalado em local com nível baixo de interferências (não inclui fornecimento). af_06/2015 | C99: m | D99: 6.39 | E99: C
A100: 90742 | B100: Assentamento de tubo de pvc corrugado de dupla parede para rede coletora de esgoto, dn 250 mm, junta elástica, instalado em local com nível baixo de interferências (não inclui fornecimento). af_06/2015 | C100: m | D100: 6.97 | E100: C
A101: 90743 | B101: Assentamento de tubo de pvc corrugado de dupla parede para rede coletora de esgoto, dn 300 mm, junta elástica, instalado em local com nível baixo de interferências (não inclui fornecimento). af_06/2015 | C101: m | D101: 7.55 | E101: C
A102: 90744 | B102: Assentamento de tubo de pvc corrugado de dupla parede para rede coletora de esgoto, dn 350 mm, junta elástica, instalado em local com nível baixo de interferências (não inclui fornecimento). af_06/2015 | C102: m | D102: 8.14 | E102: C
A103: 90745 | B103: Assentamento de tubo de pvc corrugado de dupla parede para rede coletora de esgoto, dn 400 mm, junta elástica, instalado em local com nível baixo de interferências (não inclui fornecimento). af_06/2015 | C103: m | D103: 17.39 | E103: C
A104: 90746 | B104: Assentamento de tubo de pead corrugado de dupla parede para rede coletora de esgoto, dn 450 mm, junta elástica integrada, instalado em local com nível baixo de interferências (não inclui fornecimento). af_06/2015 | C104: m | D104: 3.54 | E104: C
A105: 90747 | B105: Assentamento de tubo de pead corrugado de dupla parede para rede coletora de esgoto, dn 600 mm, junta elástica integrada, instalado em local com nível baixo de interferências (não inclui fornecimento). af_06/2015 | C105: m | D105: 13.56 | E105: C
A106: 90748 | B106: Assentamento de tubo de pvc para rede coletora de esgoto de parede maciça, dn 100 mm, junta elástica, instalado em local com nível alto de interferências (não inclui fornecimento). af_06/2015 | C106: m | D106: 4.67 | E106: C
A107: 90749 | B107: Assentamento de tubo de pvc para rede coletora de esgoto de parede maciça, dn 150 mm, junta elástica, instalado em local com nível alto de interferências (não inclui fornecimento). af_06/2015 | C107: m | D107: 5.25 | E107: C
A108: 90750 | B108: Assentamento de tubo de pvc para rede coletora de esgoto de parede maciça, dn 200 mm, junta elástica, instalado em local com nível alto de interferências (não inclui fornecimento). af_06/2015 | C108: m | D108: 5.83 | E108: C
A109: 90751 | B109: Assentamento de tubo de pvc para rede coletora de esgoto de parede maciça, dn 250 mm, junta elástica, instalado em local com nível alto de interferências (não inclui fornecimento). af_06/2015 | C109: m | D109: 6.41 | E109: C
A110: 90752 | B110: Assentamento de tubo de pvc para rede coletora de esgoto de parede maciça, dn 300 mm, junta elástica, instalado em local com nível alto de interferências (não inclui fornecimento). af_06/2015 | C110: m | D110: 7 | E110: C
A111: 90753 | B111: Assentamento de tubo de pvc para rede coletora de esgoto de parede maciça, dn 350 mm, junta elástica, instalado em local com nível alto de interferências (não inclui fornecimento). af_06/2015 | C111: m | D111: 7.58 | E111: C
A112: 90754 | B112: Assentamento de tubo de pvc para rede coletora de esgoto de parede maciça, dn 400 mm, junta elástica, instalado em local com nível alto de interferências (não inclui fornecimento). af_06/2015 | C112: m | D112: 16.28 | E112: C
A113: 90755 | B113: Assentamento de tubo de pvc corrugado de dupla parede para rede coletora de esgoto, dn 150 mm, junta elástica, instalado em local com nível alto de interferências (não inclui fornecimento). af_06/2015 | C113: m | D113: 7.87 | E113: C
A114: 90756 | B114: Assentamento de tubo de pvc corrugado de dupla parede para rede coletora de esgoto, dn 200 mm, junta elástica, instalado em local com nível alto de interferências (não inclui fornecimento). af_06/2015 | C114: m | D114: 8.45 | E114: C
A115: 90757 | B115: Assentamento de tubo de pvc corrugado de dupla parede para rede coletora de esgoto, dn 250 mm, junta elástica, instalado em local com nível alto de interferências (não inclui fornecimento). af_06/2015 | C115: m | D115: 9.04 | E115: C
A116: 90758 | B116: Assentamento de tubo de pvc corrugado de dupla parede para rede coletora de esgoto, dn 300 mm, junta elástica, instalado em local com nível alto de interferências (não inclui fornecimento). af_06/2015 | C116: m | D116: 9.62 | E116: C
A117: 90759 | B117: Assentamento de tubo de pvc corrugado de dupla parede para rede coletora de esgoto, dn 350 mm, junta elástica, instalado em local com nível alto de interferências (não inclui fornecimento). af_06/2015 | C117: m | D117: 10.2 | E117: C
A118: 90760 | B118: Assentamento de tubo de pvc corrugado de dupla parede para rede coletora de esgoto, dn 400 mm, em junta elástica, instalado em local com nível alto de interferências (não inclui fornecimento). af_06/2015 | C118: m | D118: 21.52 | E118: C
A119: 90761 | B119: Assentamento de tubo de pead corrugado de dupla parede para rede coletora de esgoto, dn 450 mm, junta elástica integrada, instalado em local com nível alto de interferências (não inclui fornecimento). af_06/2015 | C119: m | D119: 4.33 | E119: C
A120: 90762 | B120: Assentamento de tubo de pead corrugado de dupla parede para rede coletora de esgoto, dn 600 mm, junta elástica integrada, instalado em local com nível alto de interferências (não inclui fornecimento). af_06/2015 | C120: m | D120: 16.14 | E120: C
A121: 94869 | B121: Tubo de pead corrugado de dupla parede para rede coletora de esgoto, dn 250 mm, junta elástica integrada, instalado em local com nível baixo de interferências - fornecimento e assentamento. af_06/2016 | C121: m | D121: 128.03 | E121: C
A122: 94870 | B122: Assentamento de tubo de pead corrugado de dupla parede para rede coletora de esgoto, dn 250 mm, junta elástica integrada, instalado em local com nível baixo de interferências (não inclui fornecimento). af_06/2016 | C122: m | D122: 0.86 | E122: C
A123: 94871 | B123: Tubo de pead corrugado de dupla parede para rede coletora de esgoto, dn 300 mm, junta elástica integrada, instalado em local com nível baixo de interferências - fornecimento e assentamento. af_06/2016 | C123: m | D123: 151.86 | E123: C
A124: 94872 | B124: Assentamento de tubo de pead corrugado de dupla parede para rede coletora de esgoto, dn 300 mm, junta elástica integrada, instalado em local com nível baixo de interferências (não inclui fornecimento). af_06/2016 | C124: m | D124: 1.51 | E124: C
A125: 94875 | B125: Tubo de pead corrugado de dupla parede para rede coletora de esgoto, dn 750 mm, junta elástica integrada, instalado em local com nível baixo de interferências - fornecimento e assentamento. af_06/2016 | C125: m | D125: 892.63 | E125: C
A126: 94876 | B126: Assentamento de tubo de pead corrugado de dupla parede para rede coletora de esgoto, dn 750 mm, junta elástica integrada, instalado em local com nível baixo de interferências (não inclui fornecimento). af_06/2016 | C126: m | D126: 20.52 | E126: C
A127: 94878 | B127: Assentamento de tubo de pead corrugado de dupla parede para rede coletora de esgoto, dn 900 mm, junta elástica integrada, instalado em local com nível baixo de interferências (não inclui fornecimento). af_06/2016 | C127: m | D127: 24.09 | E127: C
A128: 94879 | B128: Tubo de pead corrugado de dupla parede para rede coletora de esgoto, dn 1000 mm, junta elástica integrada, instalado em local com nível baixo de interferências - fornecimento e assentamento. af_06/2016 | C128: m | D128: 1190 | E128: C
A129: 94880 | B129: Assentamento de tubo de pead corrugado de dupla parede para rede coletora de esgoto, dn 1000 mm, junta elástica integrada, instalado em local com nível baixo de interferências (não inclui fornecimento). af_06/2016 | C129: m | D129: 29.5 | E129: C
A130: 94881 | B130: Tubo de pead corrugado de dupla parede para rede coletora de esgoto, dn 1200 mm, junta elástica integrada, instalado em local com nível baixo de interferências - fornecimento e assentamento. af_06/2016 | C130: m | D130: 1854.17 | E130: C
A131: 94882 | B131: Assentamento de tubo de pead corrugado de dupla parede para rede coletora de esgoto, dn 1200 mm, junta elástica integrada, instalado em local com nível baixo de interferências (não inclui fornecimento). af_06/2016 | C131: m | D131: 35 | E131: C
A132: 94884 | B132: Assentamento de tubo de pead corrugado de dupla parede para rede coletora de esgoto, dn 1500 mm, junta elástica integrada, instalado em local com nível baixo de interferências (não inclui fornecimento). af_06/2016 | C132: m | D132: 46.14 | E132: C
A133: 94885 | B133: Tubo de pead corrugado de dupla parede para rede coletora de esgoto, dn 250 mm, junta elástica integrada, instalado em local com nível alto de interferências - fornecimento e assentamento. af_06/2016 | C133: m | D133: 128.29 | E133: C
A134: 94886 | B134: Assentamento de tubo de pead corrugado de dupla parede para rede coletora de esgoto, dn 250 mm, junta elástica integrada, instalado em local com nível alto de interferências (não inclui fornecimento). af_06/2016 | C134: m | D134: 1.12 | E134: C
A135: 94887 | B135: Tubo de pead corrugado de dupla parede para rede coletora de esgoto, dn 300 mm, junta elástica integrada, instalado em local com nível alto de interferências - fornecimento e assentamento. af_06/2016 | C135: m | D135: 152.27 | E135: C
A136: 94888 | B136: Assentamento de tubo de pead corrugado de dupla parede para rede coletora de esgoto, dn 300 mm, junta elástica integrada, instalado em local com nível alto de interferências (não inclui fornecimento). af_06/2016 | C136: m | D136: 1.92 | E136: C
A137: 94891 | B137: Tubo de pead corrugado de dupla parede para rede coletora de esgoto, dn 750 mm, junta elástica integrada, instalado em local com nível alto de interferências - fornecimento e assentamento. af_06/2016 | C137: m | D137: 895.94 | E137: C
A138: 94892 | B138: Assentamento de tubo de pead corrugado de dupla parede para rede coletora de esgoto, dn 750 mm, junta elástica integrada, instalado em local com nível alto de interferências (não inclui fornecimento). af_06/2016 | C138: m | D138: 23.83 | E138: C
A139: 94894 | B139: Assentamento de tubo de pead corrugado de dupla parede para rede coletora de esgoto, dn 900 mm, junta elástica integrada, instalado em local com nível alto de interferências (não inclui fornecimento). af_06/2016 | C139: m | D139: 27.69 | E139: C
A140: 94895 | B140: Tubo de pead corrugado de dupla parede para rede coletora de esgoto, dn 1000 mm, junta elástica integrada, instalado em local com nível alto de interferências - fornecimento e assentamento. af_06/2016 | C140: m | D140: 1193.96 | E140: C
A141: 94896 | B141: Assentamento de tubo de pead corrugado de dupla parede para rede coletora de esgoto, dn 1000 mm, junta elástica integrada, instalado em local com nível alto de interferências (não inclui fornecimento). af_06/2016 | C141: m | D141: 33.46 | E141: C
A142: 94897 | B142: Tubo de pead corrugado de dupla parede para rede coletora de esgoto, dn 1200 mm, junta elástica integrada, instalado em local com nível alto de interferências - fornecimento e assentamento. af_06/2016 | C142: m | D142: 1858.4 | E142: C
A143: 94898 | B143: Assentamento de tubo de pead corrugado de dupla parede para rede coletora de esgoto, dn 1200 mm, junta elástica integrada, instalado em local com nível alto de interferências (não inclui fornecimento). af_06/2016 | C143: m | D143: 39.23 | E143: C
A144: 94900 | B144: Assentamento de tubo de pead corrugado de dupla parede para rede coletora de esgoto, dn 1500 mm, junta elástica integrada, instalado em local com nível alto de interferências (não inclui fornecimento). af_06/2016 | C144: m | D144: 50.77 | E144: C
A145: 97121 | B145: Assentamento de tubo de pvc pba para rede de água, dn 50 mm, junta elástica integrada, instalado em local com nível alto de interferências (não inclui fornecimento). af_11/2017 | C145: m | D145: 1.93 | E145: C
A146: 97122 | B146: Assentamento de tubo de pvc pba para rede de água, dn 75 mm, junta elástica integrada, instalado em local com nível alto de interferências (não inclui fornecimento). af_11/2017 | C146: m | D146: 2.66 | E146: C
A147: 97123 | B147: Assentamento de tubo de pvc pba para rede de água, dn 100 mm, junta elástica integrada, instalado em local com nível alto de interferências (não inclui fornecimento). af_11/2017 | C147: m | D147: 3.38 | E147: C
A148: 97124 | B148: Assentamento de tubo de pvc pba para rede de água, dn 50 mm, junta elástica integrada, instalado em local com nível baixo de interferências (não inclui fornecimento). af_11/2017 | C148: m | D148: 0.84 | E148: C
A149: 97125 | B149: Assentamento de tubo de pvc pba para rede de água, dn 75 mm, junta elástica integrada, instalado em local com nível baixo de interferências (não inclui fornecimento). af_11/2017 | C149: m | D149: 1.18 | E149: C
A150: 97126 | B150: Assentamento de tubo de pvc pba para rede de água, dn 100 mm, junta elástica integrada, instalado em local com nível baixo de interferências (não inclui fornecimento). af_11/2017 | C150: m | D150: 1.5 | E150: C
A151: 92833 | B151: Tubo de concreto para redes coletoras de esgoto sanitário, diâmetro de 300 mm, junta elástica, instalado em local com baixo nível de interferências - fornecimento e assentamento. af_12/2015 | C151: m | D151: 139.8 | E151: C
A152: 92834 | B152: Assentamento de tubo de concreto para redes coletoras de esgoto sanitário, diâmetro de 300 mm, junta elástica, instalado em local com baixo nível de interferências (não inclui fornecimento). af_12/2015 | C152: m | D152: 7.24 | E152: C
A153: 92835 | B153: Tubo de concreto para redes coletoras de esgoto sanitário, diâmetro de 400 mm, junta elástica, instalado em local com baixo nível de interferências - fornecimento e assentamento. af_12/2015 | C153: m | D153: 184.01 | E153: C
A154: 92836 | B154: Assentamento de tubo de concreto para redes coletoras de esgoto sanitário, diâmetro de 400 mm, junta elástica, instalado em local com baixo nível de interferências (não inclui fornecimento). af_12/2015 | C154: m | D154: 9.25 | E154: C
A155: 92837 | B155: Tubo de concreto para redes coletoras de esgoto sanitário, diâmetro de 500 mm, junta elástica, instalado em local com baixo nível de interferências - fornecimento e assentamento. af_12/2015 | C155: m | D155: 231.82 | E155: C
A156: 92838 | B156: Assentamento de tubo de concreto para redes coletoras de esgoto sanitário, diâmetro de 500 mm, junta elástica, instalado em local com baixo nível de interferências (não inclui fornecimento). af_12/2015 | C156: m | D156: 11.11 | E156: C
A157: 92839 | B157: Tubo de concreto para redes coletoras de esgoto sanitário, diâmetro de 600 mm, junta elástica, instalado em local com baixo nível de interferências - fornecimento e assentamento. af_12/2015 | C157: m | D157: 303.89 | E157: C
A158: 92840 | B158: Assentamento de tubo de concreto para redes coletoras de esgoto sanitário, diâmetro de 600 mm, junta elástica, instalado em local com baixo nível de interferências (não inclui fornecimento). af_12/2015 | C158: m | D158: 13.15 | E158: C
A159: 92841 | B159: Tubo de concreto para redes coletoras de esgoto sanitário, diâmetro de 700 mm, junta elástica, instalado em local com baixo nível de interferências - fornecimento e assentamento. af_12/2015 | C159: m | D159: 344.36 | E159: C
A160: 92842 | B160: Assentamento de tubo de concreto para redes coletoras de esgoto sanitário, diâmetro de 700 mm, junta elástica, instalado em local com baixo nível de interferências (não inclui fornecimento). af_12/2015 | C160: m | D160: 15.02 | E160: C
A161: 92844 | B161: Assentamento de tubo de concreto para redes coletoras de esgoto sanitário, diâmetro de 800 mm, junta elástica, instalado em local com baixo nível de interferências (não inclui fornecimento). af_12/2015 | C161: m | D161: 17.06 | E161: C
A162: 92846 | B162: Assentamento de tubo de concreto para redes coletoras de esgoto sanitário, diâmetro de 900 mm, junta elástica, instalado em local com baixo nível de interferências (não inclui fornecimento). af_12/2015 | C162: m | D162: 18.93 | E162: C
A163: 92847 | B163: Tubo de concreto para redes coletoras de esgoto sanitário, diâmetro de 1000 mm, junta elástica, instalado em local com baixo nível de interferências - fornecimento e assentamento. af_12/2015 | C163: m | D163: 599.87 | E163: C
A164: 92848 | B164: Assentamento de tubo de concreto para redes coletoras de esgoto sanitário, diâmetro de 1000 mm, junta elástica, instalado em local com baixo nível de interferências (não inclui fornecimento). af_12/2015 | C164: m | D164: 21 | E164: C
A165: 92849 | B165: Tubo de concreto para redes coletoras de esgoto sanitário, diâmetro de 300 mm, junta elástica, instalado em local com alto nível de interferências - fornecimento e assentamento. af_12/2015 | C165: m | D165: 147.67 | E165: C
A166: 92850 | B166: Assentamento de tubo de concreto para redes coletoras de esgoto sanitário, diâmetro de 300 mm, junta elástica, instalado em local com alto nível de interferências (não inclui fornecimento). af_12/2015 | C166: m | D166: 13.71 | E166: C
A167: 92851 | B167: Tubo de concreto para redes coletoras de esgoto sanitário, diâmetro de 400 mm, junta elástica, instalado em local com alto nível de interferências - fornecimento e assentamento. af_12/2015 | C167: m | D167: 193.83 | E167: C
A168: 92852 | B168: Assentamento de tubo de concreto para redes coletoras de esgoto sanitário, diâmetro de 400 mm, junta elástica, instalado em local com alto nível de interferências (não inclui fornecimento). af_12/2015 | C168: m | D168: 17.3 | E168: C
A169: 92853 | B169: Tubo de concreto para redes coletoras de esgoto sanitário, diâmetro de 500 mm, junta elástica, instalado em local com alto nível de interferências - fornecimento e assentamento. af_12/2015 | C169: m | D169: 243.93 | E169: C
A170: 92854 | B170: Assentamento de tubo de concreto para redes coletoras de esgoto sanitário, diâmetro de 500 mm, junta elástica, instalado em local com alto nível de interferências (não inclui fornecimento). af_12/2015 | C170: m | D170: 21.08 | E170: C
A171: 92855 | B171: Tubo de concreto para redes coletoras de esgoto sanitário, diâmetro de 600 mm, junta elástica, instalado em local com alto nível de interferências - fornecimento e assentamento. af_12/2015 | C171: m | D171: 318.14 | E171: C
A172: 92856 | B172: Assentamento de tubo de concreto para redes coletoras de esgoto sanitário, diâmetro de 600 mm, junta elástica, instalado em local com alto nível de interferências (não inclui fornecimento). af_12/2015 | C172: m | D172: 24.85 | E172: C
A173: 92857 | B173: Tubo de concreto para redes coletoras de esgoto sanitário, diâmetro de 700 mm, junta elástica, instalado em local com alto nível de interferências - fornecimento e assentamento. af_12/2015 | C173: m | D173: 360.67 | E173: C
A174: 92858 | B174: Assentamento de tubo de concreto para redes coletoras de esgoto sanitário, diâmetro de 700 mm, junta elástica, instalado em local com alto nível de interferências (não inclui fornecimento). af_12/2015 | C174: m | D174: 28.43 | E174: C
A175: 92860 | B175: Assentamento de tubo de concreto para redes coletoras de esgoto sanitário, diâmetro de 800 mm, junta elástica, instalado em local com alto nível de interferências (não inclui fornecimento). af_12/2015 | C175: m | D175: 32.27 | E175: C
A176: 92862 | B176: Assentamento de tubo de concreto para redes coletoras de esgoto sanitário, diâmetro de 900 mm, junta elástica, instalado em local com alto nível de interferências (não inclui fornecimento). af_12/2015 | C176: m | D176: 36.02 | E176: C
A177: 92863 | B177: Tubo de concreto para redes coletoras de esgoto sanitário, diâmetro de 1000 mm, junta elástica, instalado em local com alto nível de interferências - fornecimento e assentamento. af_12/2015 | C177: m | D177: 622.71 | E177: C
A178: 92864 | B178: Assentamento de tubo de concreto para redes coletoras de esgoto sanitário, diâmetro de 1000 mm, junta elástica, instalado em local com alto nível de interferências (não inclui fornecimento). af_12/2015 | C178: m | D178: 39.79 | E178: C
A179: 92210 | B179: Tubo de concreto para redes coletoras de águas pluviais, diâmetro de 400 mm, junta rígida, instalado em local com baixo nível de interferências - fornecimento e assentamento. af_12/2015 | C179: m | D179: 115.55 | E179: C
A180: 92211 | B180: Tubo de concreto para redes coletoras de águas pluviais, diâmetro de 500 mm, junta rígida, instalado em local com baixo nível de interferências - fornecimento e assentamento. af_12/2015 | C180: m | D180: 148.26 | E180: C
A181: 92212 | B181: Tubo de concreto para redes coletoras de águas pluviais, diâmetro de 600 mm, junta rígida, instalado em local com baixo nível de interferências - fornecimento e assentamento. af_12/2015 | C181: m | D181: 189.4 | E181: C
A182: 92213 | B182: Tubo de concreto para redes coletoras de águas pluviais, diâmetro de 700 mm, junta rígida, instalado em local com baixo nível de interferências - fornecimento e assentamento. af_12/2015 | C182: m | D182: 250.95 | E182: C
A183: 92214 | B183: Tubo de concreto para redes coletoras de águas pluviais, diâmetro de 800 mm, junta rígida, instalado em local com baixo nível de interferências - fornecimento e assentamento. af_12/2015 | C183: m | D183: 286.36 | E183: C
A184: 92215 | B184: Tubo de concreto para redes coletoras de águas pluviais, diâmetro de 900 mm, junta rígida, instalado em local com baixo nível de interferências - fornecimento e assentamento. af_12/2015 | C184: m | D184: 346.17 | E184: C
A185: 92216 | B185: Tubo de concreto para redes coletoras de águas pluviais, diâmetro de 1000 mm, junta rígida, instalado em local com baixo nível de interferências - fornecimento e assentamento. af_12/2015 | C185: m | D185: 387.95 | E185: C
A186: 92219 | B186: Tubo de concreto para redes coletoras de águas pluviais, diâmetro de 400 mm, junta rígida, instalado em local com alto nível de interferências - fornecimento e assentamento. af_12/2015 | C186: m | D186: 123.59 | E186: C
A187: 92220 | B187: Tubo de concreto para redes coletoras de águas pluviais, diâmetro de 500 mm, junta rígida, instalado em local com alto nível de interferências - fornecimento e assentamento. af_12/2015 | C187: m | D187: 158.23 | E187: C
A188: 92221 | B188: Tubo de concreto para redes coletoras de águas pluviais, diâmetro de 600 mm, junta rígida, instalado em local com alto nível de interferências - fornecimento e assentamento. af_12/2015 | C188: m | D188: 201.09 | E188: C
A189: 92222 | B189: Tubo de concreto para redes coletoras de águas pluviais, diâmetro de 700 mm, junta rígida, instalado em local com alto nível de interferências - fornecimento e assentamento. af_12/2015 | C189: m | D189: 264.53 | E189: C
A190: 92223 | B190: Tubo de concreto para redes coletoras de águas pluviais, diâmetro de 800 mm, junta rígida, instalado em local com alto nível de interferências - fornecimento e assentamento. af_12/2015 | C190: m | D190: 301.58 | E190: C
A191: 92224 | B191: Tubo de concreto para redes coletoras de águas pluviais, diâmetro de 900 mm, junta rígida, instalado em local com alto nível de interferências - fornecimento e assentamento. af_12/2015 | C191: m | D191: 363.06 | E191: C
A192: 92226 | B192: Tubo de concreto para redes coletoras de águas pluviais, diâmetro de 1000 mm, junta rígida, instalado em local com alto nível de interferências - fornecimento e assentamento. af_12/2015 | C192: m | D192: 406.81 | E192: C
A193: 92808 | B193: Assentamento de tubo de concreto para redes coletoras de águas pluviais, diâmetro de 300 mm, junta rígida, instalado em local com baixo nível de interferências (não inclui fornecimento). af_12/2015 | C193: m | D193: 32.63 | E193: C
A194: 92809 | B194: Assentamento de tubo de concreto para redes coletoras de águas pluviais, diâmetro de 400 mm, junta rígida, instalado em local com baixo nível de interferências (não inclui fornecimento). af_12/2015 | C194: m | D194: 41.86 | E194: C
A195: 92810 | B195: Assentamento de tubo de concreto para redes coletoras de águas pluviais, diâmetro de 500 mm, junta rígida, instalado em local com baixo nível de interferências (não inclui fornecimento). af_12/2015 | C195: m | D195: 50.94 | E195: C
A196: 92811 | B196: Assentamento de tubo de concreto para redes coletoras de águas pluviais, diâmetro de 600 mm, junta rígida, instalado em local com baixo nível de interferências (não inclui fornecimento). af_12/2015 | C196: m | D196: 60.65 | E196: C
A197: 92812 | B197: Assentamento de tubo de concreto para redes coletoras de águas pluviais, diâmetro de 700 mm, junta rígida, instalado em local com baixo nível de interferências (não inclui fornecimento). af_12/2015 | C197: m | D197: 70.24 | E197: C
A198: 92813 | B198: Assentamento de tubo de concreto para redes coletoras de águas pluviais, diâmetro de 800 mm, junta rígida, instalado em local com baixo nível de interferências (não inclui fornecimento). af_12/2015 | C198: m | D198: 81.44 | E198: C
A199: 92814 | B199: Assentamento de tubo de concreto para redes coletoras de águas pluviais, diâmetro de 900 mm, junta rígida, instalado em local com baixo nível de interferências (não inclui fornecimento). af_12/2015 | C199: m | D199: 93.17 | E199: C
A200: 92815 | B200: Assentamento de tubo de concreto para redes coletoras de águas pluviais, diâmetro de 1000 mm, junta rígida, instalado em local com baixo nível de interferências (não inclui fornecimento). af_12/2015 | C200: m | D200: 106.66 | E200: C
A201: 92816 | B201: Tubo de concreto para redes coletoras de águas pluviais, diâmetro de 1200 mm, junta rígida, instalado em local com baixo nível de interferências - fornecimento e assentamento. af_12/2015 | C201: m | D201: 532.1 | E201: C
... 11497 more rows

Sheet SEM DESONERADO (hidden)
A2: 97141 | B2: Assentamento de tubo de ferro fundido para rede de água, dn 80 mm, junta elástica, instalado em local com nível alto de interferências (não inclui fornecimento). af_11/2017 | C2: m | D2: 7.79 | E2: C
A3: 97142 | B3: Assentamento de tubo de ferro fundido para rede de água, dn 100 mm, junta elástica, instalado em local com nível alto de interferências (não inclui fornecimento). af_11/2017 | C3: m | D3: 8.74 | E3: C
A4: 97143 | B4: Assentamento de tubo de ferro fundido para rede de água, dn 150 mm, junta elástica, instalado em local com nível alto de interferências (não inclui fornecimento). af_11/2017 | C4: m | D4: 11.06 | E4: C
A5: 97144 | B5: Assentamento de tubo de ferro fundido para rede de água, dn 200 mm, junta elástica, instalado em local com nível alto de interferências (não inclui fornecimento). af_11/2017 | C5: m | D5: 13.38 | E5: C
A6: 97145 | B6: Assentamento de tubo de ferro fundido para rede de água, dn 250 mm, junta elástica, instalado em local com nível alto de interferências (não inclui fornecimento). af_11/2017 | C6: m | D6: 15.74 | E6: C
A7: 97146 | B7: Assentamento de tubo de ferro fundido para rede de água, dn 300 mm, junta elástica, instalado em local com nível alto de interferências (não inclui fornecimento). af_11/2017 | C7: m | D7: 18.08 | E7: C
A8: 97147 | B8: Assentamento de tubo de ferro fundido para rede de água, dn 350 mm, junta elástica, instalado em local com nível alto de interferências (não inclui fornecimento). af_11/2017 | C8: m | D8: 20.43 | E8: C
A9: 97148 | B9: Assentamento de tubo de ferro fundido para rede de água, dn 400 mm, junta elástica, instalado em local com nível alto de interferências (não inclui fornecimento). af_11/2017 | C9: m | D9: 22.77 | E9: C
A10: 97149 | B10: Assentamento de tubo de ferro fundido para rede de água, dn 450 mm, junta elástica, instalado em local com nível alto de interferências (não inclui fornecimento). af_11/2017 | C10: m | D10: 25.14 | E10: C
A11: 97150 | B11: Assentamento de tubo de ferro fundido para rede de água, dn 500 mm, junta elástica, instalado em local com nível alto de interferências (não inclui fornecimento). af_11/2017 | C11: m | D11: 30.53 | E11: C
A12: 97151 | B12: Assentamento de tubo de ferro fundido para rede de água, dn 600 mm, junta elástica, instalado em local com nível alto de interferências (não inclui fornecimento). af_11/2017 | C12: m | D12: 35.68 | E12: C
A13: 97152 | B13: Assentamento de tubo de ferro fundido para rede de água, dn 700 mm, junta elástica, instalado em local com nível alto de interferências (não inclui fornecimento). af_11/2017 | C13: m | D13: 40.66 | E13: C
A14: 97153 | B14: Assentamento de tubo de ferro fundido para rede de água, dn 800 mm, junta elástica, instalado em local com nível alto de interferências (não inclui fornecimento). af_11/2017 | C14: m | D14: 45.75 | E14: C
A15: 97154 | B15: Assentamento de tubo de ferro fundido para rede de água, dn 900 mm, junta elástica, instalado em local com nível alto de interferências (não inclui fornecimento). af_11/2017 | C15: m | D15: 50.85 | E15: C
A16: 97155 | B16: Assentamento de tubo de ferro fundido para rede de água, dn 1000 mm, junta elástica, instalado em local com nível alto de interferências (não inclui fornecimento). af_11/2017 | C16: m | D16: 55.97 | E16: C
A17: 97156 | B17: Assentamento de tubo de ferro fundido para rede de água, dn 1200 mm, junta elástica, instalado em local com nível alto de interferências (não inclui fornecimento). af_11/2017 | C17: m | D17: 66.49 | E17: C
A18: 97157 | B18: Assentamento de tubo de ferro fundido para rede de água, dn 80 mm, junta elástica, instalado em local com nível baixo de interferências (não inclui fornecimento). af_11/2017 | C18: m | D18: 4.72 | E18: C
A19: 97158 | B19: Assentamento de tubo de ferro fundido para rede de água, dn 100 mm, junta elástica, instalado em local com nível baixo de interferências (não inclui fornecimento). af_11/2017 | C19: m | D19: 5.29 | E19: C
A20: 97159 | B20: Assentamento de tubo de ferro fundido para rede de água, dn 150 mm, junta elástica, instalado em local com nível baixo de interferências (não inclui fornecimento). af_11/2017 | C20: m | D20: 6.72 | E20: C
A21: 97160 | B21: Assentamento de tubo de ferro fundido para rede de água, dn 200 mm, junta elástica, instalado em local com nível baixo de interferências (não inclui fornecimento). af_11/2017 | C21: m | D21: 8.12 | E21: C
A22: 97161 | B22: Assentamento de tubo de ferro fundido para rede de água, dn 250 mm, junta elástica, instalado em local com nível baixo de interferências (não inclui fornecimento). af_11/2017 | C22: m | D22: 9.58 | E22: C
A23: 97162 | B23: Assentamento de tubo de ferro fundido para rede de água, dn 300 mm, junta elástica, instalado em local com nível baixo de interferências (não inclui fornecimento). af_11/2017 | C23: m | D23: 10.99 | E23: C
A24: 97163 | B24: Assentamento de tubo de ferro fundido para rede de água, dn 350 mm, junta elástica, instalado em local com nível baixo de interferências (não inclui fornecimento). af_11/2017 | C24: m | D24: 12.43 | E24: C
A25: 97164 | B25: Assentamento de tubo de ferro fundido para rede de água, dn 400 mm, junta elástica, instalado em local com nível baixo de interferências (não inclui fornecimento). af_11/2017 | C25: m | D25: 13.87 | E25: C
A26: 97165 | B26: Assentamento de tubo de ferro fundido para rede de água, dn 450 mm, junta elástica, instalado em local com nível baixo de interferências (não inclui fornecimento). af_11/2017 | C26: m | D26: 15.33 | E26: C
A27: 97166 | B27: Assentamento de tubo de ferro fundido para rede de água, dn 500 mm, junta elástica, instalado em local com nível baixo de interferências (não inclui fornecimento). af_11/2017 | C27: m | D27: 18.6 | E27: C
A28: 97167 | B28: Assentamento de tubo de ferro fundido para rede de água, dn 600 mm, junta elástica, instalado em local com nível baixo de interferências (não inclui fornecimento). af_11/2017 | C28: m | D28: 21.75 | E28: C
A29: 97168 | B29: Assentamento de tubo de ferro fundido para rede de água, dn 700 mm, junta elástica, instalado em local com nível baixo de interferências (não inclui fornecimento). af_11/2017 | C29: m | D29: 24.75 | E29: C
A30: 97169 | B30: Assentamento de tubo de ferro fundido para rede de água, dn 800 mm, junta elástica, instalado em local com nível baixo de interferências (não inclui fornecimento). af_11/2017 | C30: m | D30: 27.84 | E30: C
A31: 97170 | B31: Assentamento de tubo de ferro fundido para rede de água, dn 900 mm, junta elástica, instalado em local com nível baixo de interferências (não inclui fornecimento). af_11/2017 | C31: m | D31: 30.95 | E31: C
A32: 97171 | B32: Assentamento de tubo de ferro fundido para rede de água, dn 1000 mm, junta elástica, instalado em local com nível baixo de interferências (não inclui fornecimento). af_11/2017 | C32: m | D32: 34.09 | E32: C
A33: 97172 | B33: Assentamento de tubo de ferro fundido para rede de água, dn 1200 mm, junta elástica, instalado em local com nível baixo de interferências (não inclui fornecimento). af_11/2017 | C33: m | D33: 40.62 | E33: C
A34: 97173 | B34: Assentamento de tubo de aço carbono para rede de água, dn 600 mm (24), junta soldada, instalado em local com nível alto de interferências (não inclui fornecimento). af_11/2017 | C34: m | D34: 27.44 | E34: C
A35: 97174 | B35: Assentamento de tubo de aço carbono para rede de água, dn 700 mm (28), junta soldada, instalado em local com nível alto de interferências (não inclui fornecimento). af_11/2017 | C35: m | D35: 31.66 | E35: C
A36: 97175 | B36: Assentamento de tubo de aço carbono para rede de água, dn 800 mm (32), junta soldada, instalado em local com nível alto de interferências (não inclui fornecimento). af_11/2017 | C36: m | D36: 35.85 | E36: C
A37: 97176 | B37: Assentamento de tubo de aço carbono para rede de água, dn 900 mm (36), junta soldada, instalado em local com nível alto de interferências (não inclui fornecimento). af_11/2017 | C37: m | D37: 40.05 | E37: C
A38: 97177 | B38: Assentamento de tubo de aço carbono para rede de água, dn 1000 mm (40) ou dn 1100 mm (44), junta soldada, instalado em local com nível alto de interferências (não inclui fornecimento). af_11/2017 | C38: m | D38: 48.48 | E38: C
A39: 97178 | B39: Assentamento de tubo de aço carbono para rede de água, dn 1200 mm (48) ou dn 1300 mm (52), junta soldada, instalado em local com nível alto de interferências (não inclui fornecimento). af_11/2017 | C39: m | D39: 56.89 | E39: C
A40: 97179 | B40: Assentamento de tubo de aço carbono para rede de água, dn 1400 mm (56'') ou dn 1500 mm (60), junta soldada, instalado em local com nível alto de interferências (não inclui fornecimento). af_11/2017 | C40: m | D40: 65.3 | E40: C
A41: 97180 | B41: Assentamento de tubo de aço carbono para rede de água, dn 1600 mm (64) ou dn 1700 mm (68), junta soldada, instalado em local com nível alto de interferências (não inclui fornecimento). af_11/2017 | C41: m | D41: 73.7 | E41: C
A42: 97181 | B42: Assentamento de tubo de aço carbono para rede de água, dn 1800 mm (72) ou dn 1900 mm (76), junta soldada, instalado em local com nível alto de interferências (não inclui fornecimento). af_11/2017 | C42: m | D42: 85.34 | E42: C
A43: 97182 | B43: Assentamento de tubo de aço carbono para rede de água, dn 2000 mm (80) ou dn 2100 mm (84), junta soldada, instalado em local com nível alto de interferências (não inclui fornecimento). af_11/2017 | C43: m | D43: 94.1 | E43: C
A44: 97183 | B44: Assentamento de tubo de aço carbono para rede de água, dn 600 mm (24), junta soldada, instalado em local com nível baixo de interferências (não inclui fornecimento). af_11/2017 | C44: m | D44: 21.51 | E44: C
A45: 97184 | B45: Assentamento de tubo de aço carbono para rede de água, dn 700 mm (28), junta soldada, instalado em local com nível baixo de interferências (não inclui fornecimento). af_11/2017 | C45: m | D45: 24.87 | E45: C
A46: 97185 | B46: Assentamento de tubo de aço carbono para rede de água, dn 800 mm (32), junta soldada, instalado em local com nível baixo de interferências (não inclui fornecimento). af_11/2017 | C46: m | D46: 28.23 | E46: C
A47: 97186 | B47: Assentamento de tubo de aço carbono para rede de água, dn 900 mm (36), junta soldada, instalado em local com nível baixo de interferências (não inclui fornecimento). af_11/2017 | C47: m | D47: 31.59 | E47: C
A48: 97187 | B48: Assentamento de tubo de aço carbono para rede de água, dn 1000 mm (40 ) ou dn 1100 mm (44 ), junta soldada, instalado em local com nível baixo de interferências (não inclui fornecimento). af_11/2017 | C48: m | D48: 38.34 | E48: C
A49: 97188 | B49: Assentamento de tubo de aço carbono para rede de água, dn 1200 mm (48) ou dn 1300 mm (52), junta soldada, instalado em local com nível baixo de interferências (não inclui fornecimento). af_11/2017 | C49: m | D49: 45.06 | E49: C
A50: 97189 | B50: Assentamento de tubo de aço carbono para rede de água, dn 1400 mm (56'') ou dn 1500 mm (60), junta soldada, instalado em local com nível baixo de interferências (não inclui fornecimento). af_11/2017 | C50: m | D50: 51.8 | E50: C
A51: 97190 | B51: Assentamento de tubo de aço carbono para rede de água, dn 1600 mm (64) ou dn 1700 mm (68), junta soldada, instalado em local com nível baixo de interferências (não inclui fornecimento). af_11/2017 | C51: m | D51: 58.5 | E51: C
A52: 97191 | B52: Assentamento de tubo de aço carbono para rede de água, dn 1800 mm (72) ou dn 1900 mm (76), junta soldada, instalado em local com nível baixo de interferências (não inclui fornecimento). af_11/2017 | C52: m | D52: 67.73 | E52: C
A53: 97192 | B53: Assentamento de tubo de aço carbono para rede de água, dn 2000 mm (80) ou dn 2100 mm (84), junta soldada, instalado em local com nível baixo de interferências (não inclui fornecimento). af_11/2017 | C53: m | D53: 74.72 | E53: C
A54: 90694 | B54: Tubo de pvc para rede coletora de esgoto de parede maciça, dn 100 mm, junta elástica, instalado em local com nível baixo de interferências - fornecimento e assentamento. af_06/2015 | C54: m | D54: 23.39 | E54: C
A55: 90695 | B55: Tubo de pvc para rede coletora de esgoto de parede maciça, dn 150 mm, junta elástica, instalado em local com nível baixo de interferências - fornecimento e assentamento. af_06/2015 | C55: m | D55: 47.57 | E55: C
A56: 90696 | B56: Tubo de pvc para rede coletora de esgoto de parede maciça, dn 200 mm, junta elástica, instalado em local com nível baixo de interferências - fornecimento e assentamento. af_06/2015 | C56: m | D56: 70.2 | E56: C
A57: 90697 | B57: Tubo de pvc para rede coletora de esgoto de parede maciça, dn 250 mm, junta elástica, instalado em local com nível baixo de interferências - fornecimento e assentamento. af_06/2015 | C57: m | D57: 117.24 | E57: C
A58: 90698 | B58: Tubo de pvc para rede coletora de esgoto de parede maciça, dn 300 mm, junta elástica, instalado em local com nível baixo de interferências - fornecimento e assentamento. af_06/2015 | C58: m | D58: 186.87 | E58: C
A59: 90699 | B59: Tubo de pvc para rede coletora de esgoto de parede maciça, dn 350 mm, junta elástica, instalado em local com nível baixo de interferências - fornecimento e assentamento. af_06/2015 | C59: m | D59: 230.72 | E59: C
A60: 90700 | B60: Tubo de pvc para rede coletora de esgoto de parede maciça, dn 400 mm, junta elástica, instalado em local com nível baixo de interferências - fornecimento e assentamento. af_06/2015 | C60: m | D60: 303.9 | E60: C
A61: 90701 | B61: Tubo de pvc corrugado de dupla parede para rede coletora de esgoto, dn 150 mm, junta elástica, instalado em local com nível baixo de interferências - fornecimento e assentamento. af_06/2015 | C61: m | D61: 42.18 | E61: C
A62: 90702 | B62: Tubo de pvc corrugado de dupla parede para rede coletora de esgoto, dn 200 mm, junta elástica, instalado em local com nível baixo de interferências - fornecimento e assentamento. af_06/2015 | C62: m | D62: 64.76 | E62: C
A63: 90703 | B63: Tubo de pvc corrugado de dupla parede para rede coletora de esgoto, dn 250 mm, junta elástica, instalado em local com nível baixo de interferências - fornecimento e assentamento. af_06/2015 | C63: m | D63: 103.49 | E63: C
A64: 90704 | B64: Tubo de pvc corrugado de dupla parede para rede coletora de esgoto, dn 300 mm, junta elástica, instalado em local com nível baixo de interferências - fornecimento e assentamento. af_06/2015 | C64: m | D64: 141.49 | E64: C
A65: 90705 | B65: Tubo de pvc corrugado de dupla parede para rede coletora de esgoto, dn 350 mm, junta elástica, instalado em local com nível baixo de interferências - fornecimento e assentamento. af_06/2015 | C65: m | D65: 197.29 | E65: C
A66: 90706 | B66: Tubo de pvc corrugado de dupla parede para rede coletora de esgoto, dn 400 mm, junta elástica, instalado em local com nível baixo de interferências - fornecimento e assentamento. af_06/2015 | C66: m | D66: 237.74 | E66: C
A67: 90708 | B67: Tubo de pead corrugado de dupla parede para rede coletora de esgoto, dn 600 mm, junta elástica integrada, instalado em local com nível baixo de interferências - fornecimento e assentamento. af_06/2015 | C67: m | D67: 632.39 | E67: C
A68: 90709 | B68: Tubo de pvc para rede coletora de esgoto de parede maciça, dn 100 mm, junta elástica, instalado em local com nível alto de interferências - fornecimento e assentamento. af_06/2015 | C68: m | D68: 25.72 | E68: C
A69: 90710 | B69: Tubo de pvc para rede coletora de esgoto de parede maciça, dn 150 mm, junta elástica, instalado em local com nível alto de interferências - fornecimento e assentamento. af_06/2015 | C69: m | D69: 49.91 | E69: C
A70: 90711 | B70: Tubo de pvc para rede coletora de esgoto de parede maciça, dn 200 mm, junta elástica, instalado em local com nível alto de interferências - fornecimento e assentamento. af_06/2015 | C70: m | D70: 72.52 | E70: C
A71: 90712 | B71: Tubo de pvc para rede coletora de esgoto de parede maciça, dn 250 mm, junta elástica, instalado em local com nível alto de interferências - fornecimento e assentamento. af_06/2015 | C71: m | D71: 119.56 | E71: C
A72: 90713 | B72: Tubo de pvc para rede coletora de esgoto de parede maciça, dn 300 mm, junta elástica, instalado em local com nível alto de interferências - fornecimento e assentamento. af_06/2015 | C72: m | D72: 189.18 | E72: C
A73: 90714 | B73: Tubo de pvc para rede coletora de esgoto de parede maciça, dn 350 mm, junta elástica, instalado em local com nível alto de interferências - fornecimento e assentamento. af_06/2015 | C73: m | D73: 233.03 | E73: C
A74: 90715 | B74: Tubo de pvc para rede coletora de esgoto de parede maciça, dn 400 mm, junta elástica, instalado em local com nível alto de interferências - fornecimento e assentamento. af_06/2015 | C74: m | D74: 308.37 | E74: C
A75: 90716 | B75: Tubo de pvc corrugado de dupla parede para rede coletora de esgoto, dn 150 mm, junta elástica, instalado em local com nível alto de interferências - fornecimento e assentamento. af_06/2015 | C75: m | D75: 44.5 | E75: C
A76: 90717 | B76: Tubo de pvc corrugado de dupla parede para rede coletora de esgoto, dn 200 mm, junta elástica, instalado em local com nível alto de interferências - fornecimento e assentamento. af_06/2015 | C76: m | D76: 67.08 | E76: C
A77: 90718 | B77: Tubo de pvc corrugado de dupla parede para rede coletora de esgoto, dn 250 mm, junta elástica, instalado em local com nível alto de interferências - fornecimento e assentamento. af_06/2015 | C77: m | D77: 105.81 | E77: C
A78: 90719 | B78: Tubo de pvc corrugado de dupla parede para rede coletora de esgoto, dn 300 mm, junta elástica, instalado em local com nível alto de interferências - fornecimento e assentamento. af_06/2015 | C78: m | D78: 143.81 | E78: C
A79: 90720 | B79: Tubo de pvc corrugado de dupla parede para rede coletora de esgoto, dn 350 mm, junta elástica, instalado em local com nível alto de interferências - fornecimento e assentamento. af_06/2015 | C79: m | D79: 199.6 | E79: C
A80: 90721 | B80: Tubo de pvc corrugado de dupla parede para rede coletora de esgoto, dn 400 mm, em junta elástica, instalado em local com nível alto de interferências - fornecimento e assentamento. af_06/2015 | C80: m | D80: 242.2 | E80: C
A81: 90723 | B81: Tubo de pead corrugado de dupla parede para rede coletora de esgoto, dn 600 mm, junta elástica integrada, instalado em local com nível alto de interferências - fornecimento e assentamento. af_06/2015 | C81: m | D81: 635.16 | E81: C
A82: 90724 | B82: Junta argamassada entre tubo dn 100 mm e o poço de visita/ caixa de concreto ou alvenaria em redes de esgoto. af_06/2015 | C82: und | D82: 26.76 | E82: C
A83: 90725 | B83: Junta argamassada entre tubo dn 150 mm e o poço de visita/ caixa de concreto ou alvenaria em redes de esgoto. af_06/2015 | C83: und | D83: 33 | E83: C
A84: 90726 | B84: Junta argamassada entre tubo dn 200 mm e o poço/ caixa de concreto ou alvenaria em redes de esgoto. af_06/2015 | C84: und | D84: 39.25 | E84: C
A85: 90727 | B85: Junta argamassada entre tubo dn 250 mm e o poço de visita/ caixa de concreto ou alvenaria em redes de esgoto. af_06/2015 | C85: und | D85: 45.5 | E85: C
A86: 90728 | B86: Junta argamassada entre tubo dn 300 mm e o poço de visita/ caixa de concreto ou alvenaria em redes de esgoto. af_06/2015 | C86: und | D86: 51.74 | E86: C
A87: 90729 | B87: Junta argamassada entre tubo dn 350 mm e o poço de visita/ caixa de concreto ou alvenaria em redes de esgoto. af_06/2015 | C87: und | D87: 58 | E87: C
A88: 90730 | B88: Junta argamassada entre tubo dn 400 mm e o poço de visita/ caixa de concreto ou alvenaria em redes de esgoto. af_06/2015 | C88: und | D88: 64.3 | E88: C
A89: 90731 | B89: Junta argamassada entre tubo dn 450 mm e o poço de visita/ caixa de concreto ou alvenaria em redes de esgoto. af_06/2015 | C89: und | D89: 70.54 | E89: C
A90: 90732 | B90: Junta argamassada entre tubo dn 600 mm e o poço de visita/ caixa de concreto ou alvenaria em redes de esgoto. af_06/2015 | C90: und | D90: 89.28 | E90: C
A91: 90733 | B91: Assentamento de tubo de pvc para rede coletora de esgoto de parede maciça, dn 100 mm, junta elástica, instalado em local com nível baixo de interferências (não inclui fornecimento). af_06/2015 | C91: m | D91: 2.92 | E91: C
A92: 90734 | B92: Assentamento de tubo de pvc para rede coletora de esgoto de parede maciça, dn 150 mm, junta elástica, instalado em local com nível baixo de interferências (não inclui fornecimento). af_06/2015 | C92: m | D92: 3.56 | E92: C
A93: 90735 | B93: Assentamento de tubo de pvc para rede coletora de esgoto de parede maciça, dn 200 mm, junta elástica, instalado em local com nível baixo de interferências (não inclui fornecimento). af_06/2015 | C93: m | D93: 4.23 | E93: C
A94: 90736 | B94: Assentamento de tubo de pvc para rede coletora de esgoto de parede maciça, dn 250 mm, junta elástica, instalado em local com nível baixo de interferências (não inclui fornecimento). af_06/2015 | C94: m | D94: 4.88 | E94: C
A95: 90737 | B95: Assentamento de tubo de pvc para rede coletora de esgoto de parede maciça, dn 300 mm, junta elástica, instalado em local com nível baixo de interferências (não inclui fornecimento). af_06/2015 | C95: m | D95: 5.54 | E95: C
A96: 90738 | B96: Assentamento de tubo de pvc para rede coletora de esgoto de parede maciça, dn 350 mm, junta elástica, instalado em local com nível baixo de interferências (não inclui fornecimento). af_06/2015 | C96: m | D96: 6.19 | E96: C
A97: 90739 | B97: Assentamento de tubo de pvc para rede coletora de esgoto de parede maciça, dn 400 mm, junta elástica, instalado em local com nível baixo de interferências (não inclui fornecimento). af_06/2015 | C97: m | D97: 13.15 | E97: C
A98: 90740 | B98: Assentamento de tubo de pvc corrugado de dupla parede para rede coletora de esgoto, dn 150 mm, junta elástica, instalado em local com nível baixo de interferências (não inclui fornecimento). af_06/2015 | C98: m | D98: 6.52 | E98: C
A99: 90741 | B99: Assentamento de tubo de pvc corrugado de dupla parede para rede coletora de esgoto, dn 200 mm, junta elástica, instalado em local com nível baixo de interferências (não inclui fornecimento). af_06/2015 | C99: m | D99: 7.17 | E99: C
A100: 90742 | B100: Assentamento de tubo de pvc corrugado de dupla parede para rede coletora de esgoto, dn 250 mm, junta elástica, instalado em local com nível baixo de interferências (não inclui fornecimento). af_06/2015 | C100: m | D100: 7.82 | E100: C
A101: 90743 | B101: Assentamento de tubo de pvc corrugado de dupla parede para rede coletora de esgoto, dn 300 mm, junta elástica, instalado em local com nível baixo de interferências (não inclui fornecimento). af_06/2015 | C101: m | D101: 8.47 | E101: C
A102: 90744 | B102: Assentamento de tubo de pvc corrugado de dupla parede para rede coletora de esgoto, dn 350 mm, junta elástica, instalado em local com nível baixo de interferências (não inclui fornecimento). af_06/2015 | C102: m | D102: 9.13 | E102: C
A103: 90745 | B103: Assentamento de tubo de pvc corrugado de dupla parede para rede coletora de esgoto, dn 400 mm, junta elástica, instalado em local com nível baixo de interferências (não inclui fornecimento). af_06/2015 | C103: m | D103: 18.82 | E103: C
A104: 90746 | B104: Assentamento de tubo de pead corrugado de dupla parede para rede coletora de esgoto, dn 450 mm, junta elástica integrada, instalado em local com nível baixo de interferências (não inclui fornecimento). af_06/2015 | C104: m | D104: 3.98 | E104: C
A105: 90747 | B105: Assentamento de tubo de pead corrugado de dupla parede para rede coletora de esgoto, dn 600 mm, junta elástica integrada, instalado em local com nível baixo de interferências (não inclui fornecimento). af_06/2015 | C105: m | D105: 14.48 | E105: C
A106: 90748 | B106: Assentamento de tubo de pvc para rede coletora de esgoto de parede maciça, dn 100 mm, junta elástica, instalado em local com nível alto de interferências (não inclui fornecimento). af_06/2015 | C106: m | D106: 5.25 | E106: C
A107: 90749 | B107: Assentamento de tubo de pvc para rede coletora de esgoto de parede maciça, dn 150 mm, junta elástica, instalado em local com nível alto de interferências (não inclui fornecimento). af_06/2015 | C107: m | D107: 5.9 | E107: C
A108: 90750 | B108: Assentamento de tubo de pvc para rede coletora de esgoto de parede maciça, dn 200 mm, junta elástica, instalado em local com nível alto de interferências (não inclui fornecimento). af_06/2015 | C108: m | D108: 6.55 | E108: C
A109: 90751 | B109: Assentamento de tubo de pvc para rede coletora de esgoto de parede maciça, dn 250 mm, junta elástica, instalado em local com nível alto de interferências (não inclui fornecimento). af_06/2015 | C109: m | D109: 7.2 | E109: C
A110: 90752 | B110: Assentamento de tubo de pvc para rede coletora de esgoto de parede maciça, dn 300 mm, junta elástica, instalado em local com nível alto de interferências (não inclui fornecimento). af_06/2015 | C110: m | D110: 7.85 | E110: C
A111: 90753 | B111: Assentamento de tubo de pvc para rede coletora de esgoto de parede maciça, dn 350 mm, junta elástica, instalado em local com nível alto de interferências (não inclui fornecimento). af_06/2015 | C111: m | D111: 8.5 | E111: C
A112: 90754 | B112: Assentamento de tubo de pvc para rede coletora de esgoto de parede maciça, dn 400 mm, junta elástica, instalado em local com nível alto de interferências (não inclui fornecimento). af_06/2015 | C112: m | D112: 17.62 | E112: C
A113: 90755 | B113: Assentamento de tubo de pvc corrugado de dupla parede para rede coletora de esgoto, dn 150 mm, junta elástica, instalado em local com nível alto de interferências (não inclui fornecimento). af_06/2015 | C113: m | D113: 8.84 | E113: C
A114: 90756 | B114: Assentamento de tubo de pvc corrugado de dupla parede para rede coletora de esgoto, dn 200 mm, junta elástica, instalado em local com nível alto de interferências (não inclui fornecimento). af_06/2015 | C114: m | D114: 9.49 | E114: C
A115: 90757 | B115: Assentamento de tubo de pvc corrugado de dupla parede para rede coletora de esgoto, dn 250 mm, junta elástica, instalado em local com nível alto de interferências (não inclui fornecimento). af_06/2015 | C115: m | D115: 10.14 | E115: C
A116: 90758 | B116: Assentamento de tubo de pvc corrugado de dupla parede para rede coletora de esgoto, dn 300 mm, junta elástica, instalado em local com nível alto de interferências (não inclui fornecimento). af_06/2015 | C116: m | D116: 10.79 | E116: C
A117: 90759 | B117: Assentamento de tubo de pvc corrugado de dupla parede para rede coletora de esgoto, dn 350 mm, junta elástica, instalado em local com nível alto de interferências (não inclui fornecimento). af_06/2015 | C117: m | D117: 11.44 | E117: C
A118: 90760 | B118: Assentamento de tubo de pvc corrugado de dupla parede para rede coletora de esgoto, dn 400 mm, em junta elástica, instalado em local com nível alto de interferências (não inclui fornecimento). af_06/2015 | C118: m | D118: 23.28 | E118: C
A119: 90761 | B119: Assentamento de tubo de pead corrugado de dupla parede para rede coletora de esgoto, dn 450 mm, junta elástica integrada, instalado em local com nível alto de interferências (não inclui fornecimento). af_06/2015 | C119: m | D119: 4.86 | E119: C
A120: 90762 | B120: Assentamento de tubo de pead corrugado de dupla parede para rede coletora de esgoto, dn 600 mm, junta elástica integrada, instalado em local com nível alto de interferências (não inclui fornecimento). af_06/2015 | C120: m | D120: 17.25 | E120: C
A121: 94869 | B121: Tubo de pead corrugado de dupla parede para rede coletora de esgoto, dn 250 mm, junta elástica integrada, instalado em local com nível baixo de interferências - fornecimento e assentamento. af_06/2016 | C121: m | D121: 128.14 | E121: C
A122: 94870 | B122: Assentamento de tubo de pead corrugado de dupla parede para rede coletora de esgoto, dn 250 mm, junta elástica integrada, instalado em local com nível baixo de interferências (não inclui fornecimento). af_06/2016 | C122: m | D122: 0.97 | E122: C
A123: 94871 | B123: Tubo de pead corrugado de dupla parede para rede coletora de esgoto, dn 300 mm, junta elástica integrada, instalado em local com nível baixo de interferências - fornecimento e assentamento. af_06/2016 | C123: m | D123: 152.05 | E123: C
A124: 94872 | B124: Assentamento de tubo de pead corrugado de dupla parede para rede coletora de esgoto, dn 300 mm, junta elástica integrada, instalado em local com nível baixo de interferências (não inclui fornecimento). af_06/2016 | C124: m | D124: 1.7 | E124: C
A125: 94875 | B125: Tubo de pead corrugado de dupla parede para rede coletora de esgoto, dn 750 mm, junta elástica integrada, instalado em local com nível baixo de interferências - fornecimento e assentamento. af_06/2016 | C125: m | D125: 894.04 | E125: C
A126: 94876 | B126: Assentamento de tubo de pead corrugado de dupla parede para rede coletora de esgoto, dn 750 mm, junta elástica integrada, instalado em local com nível baixo de interferências (não inclui fornecimento). af_06/2016 | C126: m | D126: 21.93 | E126: C
A127: 94878 | B127: Assentamento de tubo de pead corrugado de dupla parede para rede coletora de esgoto, dn 900 mm, junta elástica integrada, instalado em local com nível baixo de interferências (não inclui fornecimento). af_06/2016 | C127: m | D127: 25.74 | E127: C
A128: 94879 | B128: Tubo de pead corrugado de dupla parede para rede coletora de esgoto, dn 1000 mm, junta elástica integrada, instalado em local com nível baixo de interferências - fornecimento e assentamento. af_06/2016 | C128: m | D128: 1192.02 | E128: C
A129: 94880 | B129: Assentamento de tubo de pead corrugado de dupla parede para rede coletora de esgoto, dn 1000 mm, junta elástica integrada, instalado em local com nível baixo de interferências (não inclui fornecimento). af_06/2016 | C129: m | D129: 31.52 | E129: C
A130: 94881 | B130: Tubo de pead corrugado de dupla parede para rede coletora de esgoto, dn 1200 mm, junta elástica integrada, instalado em local com nível baixo de interferências - fornecimento e assentamento. af_06/2016 | C130: m | D130: 1856.56 | E130: C
A131: 94882 | B131: Assentamento de tubo de pead corrugado de dupla parede para rede coletora de esgoto, dn 1200 mm, junta elástica integrada, instalado em local com nível baixo de interferências (não inclui fornecimento). af_06/2016 | C131: m | D131: 37.39 | E131: C
A132: 94884 | B132: Assentamento de tubo de pead corrugado de dupla parede para rede coletora de esgoto, dn 1500 mm, junta elástica integrada, instalado em local com nível baixo de interferências (não inclui fornecimento). af_06/2016 | C132: m | D132: 49.29 | E132: C
A133: 94885 | B133: Tubo de pead corrugado de dupla parede para rede coletora de esgoto, dn 250 mm, junta elástica integrada, instalado em local com nível alto de interferências - fornecimento e assentamento. af_06/2016 | C133: m | D133: 128.42 | E133: C
A134: 94886 | B134: Assentamento de tubo de pead corrugado de dupla parede para rede coletora de esgoto, dn 250 mm, junta elástica integrada, instalado em local com nível alto de interferências (não inclui fornecimento). af_06/2016 | C134: m | D134: 1.25 | E134: C
A135: 94887 | B135: Tubo de pead corrugado de dupla parede para rede coletora de esgoto, dn 300 mm, junta elástica integrada, instalado em local com nível alto de interferências - fornecimento e assentamento. af_06/2016 | C135: m | D135: 152.5 | E135: C
A136: 94888 | B136: Assentamento de tubo de pead corrugado de dupla parede para rede coletora de esgoto, dn 300 mm, junta elástica integrada, instalado em local com nível alto de interferências (não inclui fornecimento). af_06/2016 | C136: m | D136: 2.15 | E136: C
A137: 94891 | B137: Tubo de pead corrugado de dupla parede para rede coletora de esgoto, dn 750 mm, junta elástica integrada, instalado em local com nível alto de interferências - fornecimento e assentamento. af_06/2016 | C137: m | D137: 897.57 | E137: C
A138: 94892 | B138: Assentamento de tubo de pead corrugado de dupla parede para rede coletora de esgoto, dn 750 mm, junta elástica integrada, instalado em local com nível alto de interferências (não inclui fornecimento). af_06/2016 | C138: m | D138: 25.46 | E138: C
A139: 94894 | B139: Assentamento de tubo de pead corrugado de dupla parede para rede coletora de esgoto, dn 900 mm, junta elástica integrada, instalado em local com nível alto de interferências (não inclui fornecimento). af_06/2016 | C139: m | D139: 29.59 | E139: C
A140: 94895 | B140: Tubo de pead corrugado de dupla parede para rede coletora de esgoto, dn 1000 mm, junta elástica integrada, instalado em local com nível alto de interferências - fornecimento e assentamento. af_06/2016 | C140: m | D140: 1196.24 | E140: C
A141: 94896 | B141: Assentamento de tubo de pead corrugado de dupla parede para rede coletora de esgoto, dn 1000 mm, junta elástica integrada, instalado em local com nível alto de interferências (não inclui fornecimento). af_06/2016 | C141: m | D141: 35.74 | E141: C
A142: 94897 | B142: Tubo de pead corrugado de dupla parede para rede coletora de esgoto, dn 1200 mm, junta elástica integrada, instalado em local com nível alto de interferências - fornecimento e assentamento. af_06/2016 | C142: m | D142: 1861.06 | E142: C
A143: 94898 | B143: Assentamento de tubo de pead corrugado de dupla parede para rede coletora de esgoto, dn 1200 mm, junta elástica integrada, instalado em local com nível alto de interferências (não inclui fornecimento). af_06/2016 | C143: m | D143: 41.89 | E143: C
A144: 94900 | B144: Assentamento de tubo de pead corrugado de dupla parede para rede coletora de esgoto, dn 1500 mm, junta elástica integrada, instalado em local com nível alto de interferências (não inclui fornecimento). af_06/2016 | C144: m | D144: 54.23 | E144: C
A145: 97121 | B145: Assentamento de tubo de pvc pba para rede de água, dn 50 mm, junta elástica integrada, instalado em local com nível alto de interferências (não inclui fornecimento). af_11/2017 | C145: m | D145: 2.15 | E145: C
A146: 97122 | B146: Assentamento de tubo de pvc pba para rede de água, dn 75 mm, junta elástica integrada, instalado em local com nível alto de interferências (não inclui fornecimento). af_11/2017 | C146: m | D146: 2.97 | E146: C
A147: 97123 | B147: Assentamento de tubo de pvc pba para rede de água, dn 100 mm, junta elástica integrada, instalado em local com nível alto de interferências (não inclui fornecimento). af_11/2017 | C147: m | D147: 3.77 | E147: C
A148: 97124 | B148: Assentamento de tubo de pvc pba para rede de água, dn 50 mm, junta elástica integrada, instalado em local com nível baixo de interferências (não inclui fornecimento). af_11/2017 | C148: m | D148: 0.93 | E148: C
A149: 97125 | B149: Assentamento de tubo de pvc pba para rede de água, dn 75 mm, junta elástica integrada, instalado em local com nível baixo de interferências (não inclui fornecimento). af_11/2017 | C149: m | D149: 1.31 | E149: C
A150: 97126 | B150: Assentamento de tubo de pvc pba para rede de água, dn 100 mm, junta elástica integrada, instalado em local com nível baixo de interferências (não inclui fornecimento). af_11/2017 | C150: m | D150: 1.66 | E150: C
A151: 92833 | B151: Tubo de concreto para redes coletoras de esgoto sanitário, diâmetro de 300 mm, junta elástica, instalado em local com baixo nível de interferências - fornecimento e assentamento. af_12/2015 | C151: m | D151: 140.61 | E151: C
A152: 92834 | B152: Assentamento de tubo de concreto para redes coletoras de esgoto sanitário, diâmetro de 300 mm, junta elástica, instalado em local com baixo nível de interferências (não inclui fornecimento). af_12/2015 | C152: m | D152: 7.8 | E152: C
A153: 92835 | B153: Tubo de concreto para redes coletoras de esgoto sanitário, diâmetro de 400 mm, junta elástica, instalado em local com baixo nível de interferências - fornecimento e assentamento. af_12/2015 | C153: m | D153: 185.06 | E153: C
A154: 92836 | B154: Assentamento de tubo de concreto para redes coletoras de esgoto sanitário, diâmetro de 400 mm, junta elástica, instalado em local com baixo nível de interferências (não inclui fornecimento). af_12/2015 | C154: m | D154: 9.98 | E154: C
A155: 92837 | B155: Tubo de concreto para redes coletoras de esgoto sanitário, diâmetro de 500 mm, junta elástica, instalado em local com baixo nível de interferências - fornecimento e assentamento. af_12/2015 | C155: m | D155: 233.07 | E155: C
A156: 92838 | B156: Assentamento de tubo de concreto para redes coletoras de esgoto sanitário, diâmetro de 500 mm, junta elástica, instalado em local com baixo nível de interferências (não inclui fornecimento). af_12/2015 | C156: m | D156: 11.99 | E156: C
A157: 92839 | B157: Tubo de concreto para redes coletoras de esgoto sanitário, diâmetro de 600 mm, junta elástica, instalado em local com baixo nível de interferências - fornecimento e assentamento. af_12/2015 | C157: m | D157: 305.36 | E157: C
A158: 92840 | B158: Assentamento de tubo de concreto para redes coletoras de esgoto sanitário, diâmetro de 600 mm, junta elástica, instalado em local com baixo nível de interferências (não inclui fornecimento). af_12/2015 | C158: m | D158: 14.17 | E158: C
A159: 92841 | B159: Tubo de concreto para redes coletoras de esgoto sanitário, diâmetro de 700 mm, junta elástica, instalado em local com baixo nível de interferências - fornecimento e assentamento. af_12/2015 | C159: m | D159: 346.06 | E159: C
A160: 92842 | B160: Assentamento de tubo de concreto para redes coletoras de esgoto sanitário, diâmetro de 700 mm, junta elástica, instalado em local com baixo nível de interferências (não inclui fornecimento). af_12/2015 | C160: m | D160: 16.21 | E160: C
A161: 92844 | B161: Assentamento de tubo de concreto para redes coletoras de esgoto sanitário, diâmetro de 800 mm, junta elástica, instalado em local com baixo nível de interferências (não inclui fornecimento). af_12/2015 | C161: m | D161: 18.4 | E161: C
A162: 92846 | B162: Assentamento de tubo de concreto para redes coletoras de esgoto sanitário, diâmetro de 900 mm, junta elástica, instalado em local com baixo nível de interferências (não inclui fornecimento). af_12/2015 | C162: m | D162: 20.42 | E162: C
A163: 92847 | B163: Tubo de concreto para redes coletoras de esgoto sanitário, diâmetro de 1000 mm, junta elástica, instalado em local com baixo nível de interferências - fornecimento e assentamento. af_12/2015 | C163: m | D163: 602.24 | E163: C
A164: 92848 | B164: Assentamento de tubo de concreto para redes coletoras de esgoto sanitário, diâmetro de 1000 mm, junta elástica, instalado em local com baixo nível de interferências (não inclui fornecimento). af_12/2015 | C164: m | D164: 22.66 | E164: C
A165: 92849 | B165: Tubo de concreto para redes coletoras de esgoto sanitário, diâmetro de 300 mm, junta elástica, instalado em local com alto nível de interferências - fornecimento e assentamento. af_12/2015 | C165: m | D165: 149.2 | E165: C
A166: 92850 | B166: Assentamento de tubo de concreto para redes coletoras de esgoto sanitário, diâmetro de 300 mm, junta elástica, instalado em local com alto nível de interferências (não inclui fornecimento). af_12/2015 | C166: m | D166: 14.78 | E166: C
A167: 92851 | B167: Tubo de concreto para redes coletoras de esgoto sanitário, diâmetro de 400 mm, junta elástica, instalado em local com alto nível de interferências - fornecimento e assentamento. af_12/2015 | C167: m | D167: 195.79 | E167: C
A168: 92852 | B168: Assentamento de tubo de concreto para redes coletoras de esgoto sanitário, diâmetro de 400 mm, junta elástica, instalado em local com alto nível de interferências (não inclui fornecimento). af_12/2015 | C168: m | D168: 18.68 | E168: C
A169: 92853 | B169: Tubo de concreto para redes coletoras de esgoto sanitário, diâmetro de 500 mm, junta elástica, instalado em local com alto nível de interferências - fornecimento e assentamento. af_12/2015 | C169: m | D169: 246.3 | E169: C
A170: 92854 | B170: Assentamento de tubo de concreto para redes coletoras de esgoto sanitário, diâmetro de 500 mm, junta elástica, instalado em local com alto nível de interferências (não inclui fornecimento). af_12/2015 | C170: m | D170: 22.74 | E170: C
A171: 92855 | B171: Tubo de concreto para redes coletoras de esgoto sanitário, diâmetro de 600 mm, junta elástica, instalado em local com alto nível de interferências - fornecimento e assentamento. af_12/2015 | C171: m | D171: 320.92 | E171: C
A172: 92856 | B172: Assentamento de tubo de concreto para redes coletoras de esgoto sanitário, diâmetro de 600 mm, junta elástica, instalado em local com alto nível de interferências (não inclui fornecimento). af_12/2015 | C172: m | D172: 26.79 | E172: C
A173: 92857 | B173: Tubo de concreto para redes coletoras de esgoto sanitário, diâmetro de 700 mm, junta elástica, instalado em local com alto nível de interferências - fornecimento e assentamento. af_12/2015 | C173: m | D173: 363.87 | E173: C
A174: 92858 | B174: Assentamento de tubo de concreto para redes coletoras de esgoto sanitário, diâmetro de 700 mm, junta elástica, instalado em local com alto nível de interferências (não inclui fornecimento). af_12/2015 | C174: m | D174: 30.67 | E174: C
A175: 92860 | B175: Assentamento de tubo de concreto para redes coletoras de esgoto sanitário, diâmetro de 800 mm, junta elástica, instalado em local com alto nível de interferências (não inclui fornecimento). af_12/2015 | C175: m | D175: 34.82 | E175: C
A176: 92862 | B176: Assentamento de tubo de concreto para redes coletoras de esgoto sanitário, diâmetro de 900 mm, junta elástica, instalado em local com alto nível de interferências (não inclui fornecimento). af_12/2015 | C176: m | D176: 38.84 | E176: C
A177: 92863 | B177: Tubo de concreto para redes coletoras de esgoto sanitário, diâmetro de 1000 mm, junta elástica, instalado em local com alto nível de interferências - fornecimento e assentamento. af_12/2015 | C177: m | D177: 627.18 | E177: C
A178: 92864 | B178: Assentamento de tubo de concreto para redes coletoras de esgoto sanitário, diâmetro de 1000 mm, junta elástica, instalado em local com alto nível de interferências (não inclui fornecimento). af_12/2015 | C178: m | D178: 42.92 | E178: C
A179: 92210 | B179: Tubo de concreto para redes coletoras de águas pluviais, diâmetro de 400 mm, junta rígida, instalado em local com baixo nível de interferências - fornecimento e assentamento. af_12/2015 | C179: m | D179: 118.78 | E179: C
A180: 92211 | B180: Tubo de concreto para redes coletoras de águas pluviais, diâmetro de 500 mm, junta rígida, instalado em local com baixo nível de interferências - fornecimento e assentamento. af_12/2015 | C180: m | D180: 152.18 | E180: C
A181: 92212 | B181: Tubo de concreto para redes coletoras de águas pluviais, diâmetro de 600 mm, junta rígida, instalado em local com baixo nível de interferências - fornecimento e assentamento. af_12/2015 | C181: m | D181: 194.03 | E181: C
A182: 92213 | B182: Tubo de concreto para redes coletoras de águas pluviais, diâmetro de 700 mm, junta rígida, instalado em local com baixo nível de interferências - fornecimento e assentamento. af_12/2015 | C182: m | D182: 256.31 | E182: C
A183: 92214 | B183: Tubo de concreto para redes coletoras de águas pluviais, diâmetro de 800 mm, junta rígida, instalado em local com baixo nível de interferências - fornecimento e assentamento. af_12/2015 | C183: m | D183: 292.48 | E183: C
A184: 92215 | B184: Tubo de concreto para redes coletoras de águas pluviais, diâmetro de 900 mm, junta rígida, instalado em local com baixo nível de interferências - fornecimento e assentamento. af_12/2015 | C184: m | D184: 353.05 | E184: C
A185: 92216 | B185: Tubo de concreto para redes coletoras de águas pluviais, diâmetro de 1000 mm, junta rígida, instalado em local com baixo nível de interferências - fornecimento e assentamento. af_12/2015 | C185: m | D185: 395.63 | E185: C
A186: 92219 | B186: Tubo de concreto para redes coletoras de águas pluviais, diâmetro de 400 mm, junta rígida, instalado em local com alto nível de interferências - fornecimento e assentamento. af_12/2015 | C186: m | D186: 127.48 | E186: C
A187: 92220 | B187: Tubo de concreto para redes coletoras de águas pluviais, diâmetro de 500 mm, junta rígida, instalado em local com alto nível de interferências - fornecimento e assentamento. af_12/2015 | C187: m | D187: 162.94 | E187: C
A188: 92221 | B188: Tubo de concreto para redes coletoras de águas pluviais, diâmetro de 600 mm, junta rígida, instalado em local com alto nível de interferências - fornecimento e assentamento. af_12/2015 | C188: m | D188: 206.65 | E188: C
A189: 92222 | B189: Tubo de concreto para redes coletoras de águas pluviais, diâmetro de 700 mm, junta rígida, instalado em local com alto nível de interferências - fornecimento e assentamento. af_12/2015 | C189: m | D189: 270.94 | E189: C
A190: 92223 | B190: Tubo de concreto para redes coletoras de águas pluviais, diâmetro de 800 mm, junta rígida, instalado em local com alto nível de interferências - fornecimento e assentamento. af_12/2015 | C190: m | D190: 308.89 | E190: C
A191: 92224 | B191: Tubo de concreto para redes coletoras de águas pluviais, diâmetro de 900 mm, junta rígida, instalado em local com alto nível de interferências - fornecimento e assentamento. af_12/2015 | C191: m | D191: 371.26 | E191: C
A192: 92226 | B192: Tubo de concreto para redes coletoras de águas pluviais, diâmetro de 1000 mm, junta rígida, instalado em local com alto nível de interferências - fornecimento e assentamento. af_12/2015 | C192: m | D192: 415.99 | E192: C
A193: 92808 | B193: Assentamento de tubo de concreto para redes coletoras de águas pluviais, diâmetro de 300 mm, junta rígida, instalado em local com baixo nível de interferências (não inclui fornecimento). af_12/2015 | C193: m | D193: 35.18 | E193: C
A194: 92809 | B194: Assentamento de tubo de concreto para redes coletoras de águas pluviais, diâmetro de 400 mm, junta rígida, instalado em local com baixo nível de interferências (não inclui fornecimento). af_12/2015 | C194: m | D194: 45.09 | E194: C
A195: 92810 | B195: Assentamento de tubo de concreto para redes coletoras de águas pluviais, diâmetro de 500 mm, junta rígida, instalado em local com baixo nível de interferências (não inclui fornecimento). af_12/2015 | C195: m | D195: 54.86 | E195: C
A196: 92811 | B196: Assentamento de tubo de concreto para redes coletoras de águas pluviais, diâmetro de 600 mm, junta rígida, instalado em local com baixo nível de interferências (não inclui fornecimento). af_12/2015 | C196: m | D196: 65.28 | E196: C
A197: 92812 | B197: Assentamento de tubo de concreto para redes coletoras de águas pluviais, diâmetro de 700 mm, junta rígida, instalado em local com baixo nível de interferências (não inclui fornecimento). af_12/2015 | C197: m | D197: 75.6 | E197: C
A198: 92813 | B198: Assentamento de tubo de concreto para redes coletoras de águas pluviais, diâmetro de 800 mm, junta rígida, instalado em local com baixo nível de interferências (não inclui fornecimento). af_12/2015 | C198: m | D198: 87.56 | E198: C
A199: 92814 | B199: Assentamento de tubo de concreto para redes coletoras de águas pluviais, diâmetro de 900 mm, junta rígida, instalado em local com baixo nível de interferências (não inclui fornecimento). af_12/2015 | C199: m | D199: 100.05 | E199: C
A200: 92815 | B200: Assentamento de tubo de concreto para redes coletoras de águas pluviais, diâmetro de 1000 mm, junta rígida, instalado em local com baixo nível de interferências (não inclui fornecimento). af_12/2015 | C200: m | D200: 114.34 | E200: C
A201: 92816 | B201: Tubo de concreto para redes coletoras de águas pluviais, diâmetro de 1200 mm, junta rígida, instalado em local com baixo nível de interferências - fornecimento e assentamento. af_12/2015 | C201: m | D201: 541.74 | E201: C
... 11497 more rows
